Workbook

Sheet Introductie
B2: Automatische gegevensupdate - versie 2025-09 → het openen kan iets langer duren dan voorheen - als u problemen ondervindt, kunt u de tool opnieuw downloaden op onze website →
B4: Tot op heden gaan de gegevens van Revtool slechts terug tot 1 januari 2018 !
C5: Welkom, deze heeft als doel om ondernemers bewust te maken van de indexering in de sector. Opgepast! Deze tool is geen juridisch instrument, maar louter een berekeningstool.
C7: Aan de slag in 4 stappen!
B14: Extra info: Profiteer van de volgende bonuspagina's als u verder onderzoek wilt doen (ze zijn standaard verborgen, klik op de witte knoppen om ze te laten verschijnen)
C15: Werkblad | D15: U kunt op deze pagina een prognose maken van wat de prijs na een bepaalde periode zou kunnen zijn. (Indien het project bijvoorbeeld pas over 10 maanden van start zal gaan.)
D16: De resultaten van deze prognoses blijven gebaseerd op inschattingen. Helaas kunnen wij toekomstige prijsontwikkelingen niet exact voorspellen.
C18: Werkblad | D18: Hier kunt u nagaan welke toeslagpercentages men kan gebruiken zonder dat de catalogusprijzen van uw leveranciers worden overschreden.
D19: U kunt ook de uiteindelijke impact op het budget van de klant berekenen door de prijswijziging als eerste opslag en het BTW-tarief als tweede opslag toe te passen. Op die manier kunt u het verschil zien tussen het uiteindelijke budget van de klant en het oorspronkelijke budget door ze te vergelijken.
C21: Werkbladen | D21: Deze werkbladen doen dienst als achtergrondinformatie. Hier kan je het cijfermateriaal raadplegen dat gebruikt wordt in de berekeningen.
D22: Je vindt op deze pagina’s ook tal van grafieken die de cijfers visueel voorstellen.
D23: Deze pagina's worden elke maand bijgewerkt. Vergeet niet telkens de laatste nieuwe versie te downloaden.
D25: Dit blad geeft een samenvatting van de inflatie in verschillende voorgaande analyseperioden ... ... En stelt je in staat om ESTIMATIEVE voorspellingen te doen over wat de prijs 'KAN' zijn na een bepaalde periode, gebaseerd op een 'constante' prijsontwikkeling. → We zijn natuurlijk niet in het bezit van een kristallen bol.
C27: Wij willen er op wijzen dat prijsindexering niet automatisch gebeurt. De met de klant overeengekomen prijs moet worden gerespecteerd en kan niet eenzijdig worden aangepast. In sommige gevallen voorzien de contractuele documenten of de aanbestedingsdocumenten in het gebruik van een herzieningsformule. In dit geval maakt het gebruik van deze formule het mogelijk een verandering in de prijs van materialen en arbeid door te voeren. (zowel naar boven als naar beneden) RevTool is ontwikkeld door Buildwise om haar leden bewust te maken van de impact van inflatie op de bouwprijzen. Buildwise kan niet verantwoordelijk worden gehouden voor de juiste toepassing van de tool. De berekeningen zijn afhankelijk van de overeenkomsten tussen de contracterende partijen. Buildwise biedt geen expliciete of impliciete garantie en de garantie van geschiktheid voor een specifiek doel is uitgesloten. De Gebruiker zal nagaan of de aldus verkregen resultaten kunnen worden gebruikt in het kader van zijn professionele doelstellingen en zal deze steeds controleren. Hij is als enige verantwoordelijk voor de nauwkeurigheid van de resultaten. Buildwise garandeert niet dat Revtool volledig vrij is van bugs of fouten. Buildwise zal alle redelijke inspanningen leveren om de goede werking van de tool te waarborgen.
C34: Voor vragen over de tool en het gebruik ervan kan je de afdeling "Beheer en kwaliteit" van Buildwise contacteren
C35: gebe@buildwise.be | D35: https://www.buildwise.be/expertise-ondersteuning/bedrijfsbeheer-bim/
C37: Voor juridische vragen over de toepassing van de herzieningsformules, modeldocumenten of juridische clausules kan je contact opnemen met Embuild of Bouwunie
C38: https://embuild.be/nl | D38: https://www.bouwunie.be/nl/
C46: naar de Juridische clausule van Buildwise

Sheet Grafiek evolutie van indexen
B2: Op dit blad ziet u de evolutie van alle prijsindexen die in deze tool beschikbaar zijn (vanaf 2018 tot op heden). U kunt de grafieken personaliseren met behulp van de grafiekfilterfunctie alnaargelang uw voorkeuren. Om de filterfunctionaliteit te gebruiken : klikt u op de grafiek en selecteert u het 3e symbool dat in de rechterbovenhoek verschijnt. Selecteer vervolgens de gegevens en perioden die u wilt tonen.
B6: Als je de data/gegevens niet goed ziet, ververs dan gerust de data → "Data" tab → "Queries and connections" sectie → "Refresh all" → Wacht ... en het is OK!
AM125: Natuursteen-materialen en Zand | BS125: Metalen | CZ125: Hout | DD125: Bakstenen en cement | DH125: Cement | DL125: Betonproducten | DS125: Brandstoffen en Bitumineuze Materialen | ED125: kunststoffen | EM125: GRYMAFER | EQ125: Elektriciteit 04.5.1.0 | ER125: Aardgas 04.5.2.1 | ES125: Water 04.4.1.0 | ET125: CPI Consumptie Prijs Index Statbel | EU125: Inflatie Index Statbel | EV125: Gezondheids Index Statbel | EW125: Afzetprijsindex in de bouwnijverheid Statbel | EX125: Huur index Statbel
B126: datum | C126: =Standard_indexen___màj_aout_2025[[#Headers],[index "i"]] -> index "i" | D126: =Standard_indexen___màj_aout_2025[[#Headers],[index "i2021"]] -> index "i2021" | E126: =Standard_indexen___màj_aout_2025[[#Headers],[index "K1"]] -> index "K1" | F126: =Standard_indexen___màj_aout_2025[[#Headers],[index "K2"]] -> index "K2" | G126: =Standard_indexen___màj_aout_2025[[#Headers],[index "M"]] -> index "M" | H126: =Standard_indexen___màj_aout_2025[[#Headers],[index "MM"]] -> index "MM" | I126: =Standard_indexen___màj_aout_2025[[#Headers],[PPI 23 - Vervaardiging van andere niet-metaalhoudende minerale producten]] -> PPI 23 - Vervaardiging van andere niet-metaalhoudende minerale producten | J126: =Standard_indexen___màj_aout_2025[[#Headers],[PPI 24 - Vervaardiging van metalen in primaire vorm]] -> PPI 24 - Vervaardiging van metalen in primaire vorm | K126: =Standard_indexen___màj_aout_2025[[#Headers],[PPI 161 - Zagen en schaven van hout]] -> PPI 161 - Zagen en schaven van hout | L126: =Standard_indexen___màj_aout_2025[[#Headers],[PPI 162 - Vervaardiging van artikelen van hout, kurk, riet of vlechtwerk]] -> PPI 162 - Vervaardiging van artikelen van hout, kurk, riet of vlechtwerk | M126: =Standard_indexen___màj_aout_2025[[#Headers],[PPI 203 - Vervaardiging van verf, vernis e.d., drukinkt en mastiek]] -> PPI 203 - Vervaardiging van verf, vernis e.d., drukinkt en mastiek | N126: =Standard_indexen___màj_aout_2025[[#Headers],[PPI 205 - Vervaardiging van andere chemische producten]] -> PPI 205 - Vervaardiging van andere chemische producten | O126: =Standard_indexen___màj_aout_2025[[#Headers],[PPI 222 - Vervaardiging van producten van kunststof]] -> PPI 222 - Vervaardiging van producten van kunststof | P126: =Standard_indexen___màj_aout_2025[[#Headers],[PPI 231 - Vervaardiging van glas en glaswerk]] -> PPI 231 - Vervaardiging van glas en glaswerk | Q126: =Standard_indexen___màj_aout_2025[[#Headers],[PPI 233 - Vervaardiging van producten voor de bouw, van klei]] -> PPI 233 - Vervaardiging van producten voor de bouw, van klei | R126: =Standard_indexen___màj_aout_2025[[#Headers],[PPI 235 - Vervaardiging van cement, kalk en gips]] -> PPI 235 - Vervaardiging van cement, kalk en gips | S126: =Standard_indexen___màj_aout_2025[[#Headers],[PPI 236 - Vervaardiging van artikelen van beton, cement en gips]] -> PPI 236 - Vervaardiging van artikelen van beton, cement en gips | T126: =Standard_indexen___màj_aout_2025[[#Headers],[PPI 237 - Houwen, bewerken en afwerken van natuursteen]] -> PPI 237 - Houwen, bewerken en afwerken van natuursteen | U126: =Standard_indexen___màj_aout_2025[[#Headers],[PPI 239 - Vervaardiging van andere schuurmiddelen en niet-metaalhoudende minerale producten n.e.g.]] -> PPI 239 - Vervaardiging van andere schuurmiddelen en niet-metaalhoudende minerale producten n.e.g. | V126: =Standard_indexen___màj_aout_2025[[#Headers],[PPI 241 - Vervaardiging van ijzer en staal en van ferrolegeringen]] -> PPI 241 - Vervaardiging van ijzer en staal en van ferrolegeringen | W126: =Standard_indexen___màj_aout_2025[[#Headers],[PPI 243 - Vervaardiging van andere producten van de eerste verwerking van staal]] -> PPI 243 - Vervaardiging van andere producten van de eerste verwerking van staal | X126: =Standard_indexen___màj_aout_2025[[#Headers],[PPI 244 - Productie van edele metalen en van andere non-ferrometalen]] -> PPI 244 - Productie van edele metalen en van andere non-ferrometalen | Y126: =Standard_indexen___màj_aout_2025[[#Headers],[PPI 251 - Vervaardiging van metalen constructiewerken]] -> PPI 251 - Vervaardiging van metalen constructiewerken | Z126: =Standard_indexen___màj_aout_2025[[#Headers],[PPI 252 - Vervaardiging van tanks, reservoirs en bergingsmiddelen, van metaal]] -> PPI 252 - Vervaardiging van tanks, reservoirs en bergingsmiddelen, van metaal | AA126: =Standard_indexen___màj_aout_2025[[#Headers],[PPI 257 - Vervaardiging van scharen, messen, bestekken, gereedschap en ijzerwaren]] -> PPI 257 - Vervaardiging van scharen, messen, bestekken, gereedschap en ijzerwaren | AB126: =Standard_indexen___màj_aout_2025[[#Headers],[PPI 259 - Vervaardiging van andere producten van metaal]] -> PPI 259 - Vervaardiging van andere producten van metaal | AC126: =Standard_indexen___màj_aout_2025[[#Headers],[PPI 263 - Vervaardiging van communicatieapparatuur]] -> PPI 263 - Vervaardiging van communicatieapparatuur | AD126: =Standard_indexen___màj_aout_2025[[#Headers],[PPI 271 - Vervaardiging van elektromotoren, van elektrische generatoren en transformatoren en van schakel- en verdeelinrichtingen]] -> PPI 271 - Vervaardiging van elektromotoren, van elektrische generatoren en transformatoren en van schakel- en verdeelinrichtingen | AE126: =Standard_indexen___màj_aout_2025[[#Headers],[PPI 273 - Vervaardiging van kabels en van schakelaars, stekkers, stopcontacten e. d.]] -> PPI 273 - Vervaardiging van kabels en van schakelaars, stekkers, stopcontacten e. d. | AF126: =Standard_indexen___màj_aout_2025[[#Headers],[PPI 274 - Vervaardiging van lampen en verlichtingsapparaten]] -> PPI 274 - Vervaardiging van lampen en verlichtingsapparaten | AG126: =Standard_indexen___màj_aout_2025[[#Headers],[PPI 282 - Vervaardiging van andere machines en apparaten voor algemeen gebruik]] -> PPI 282 - Vervaardiging van andere machines en apparaten voor algemeen gebruik | AH126: =Standard_indexen___màj_aout_2025[[#Headers],[PPI 310 - Vervaardiging van meubelen]] -> PPI 310 - Vervaardiging van meubelen | AI126: =Standard_indexen___màj_aout_2025[[#Headers],[PPI 081 - Winning van steen, zand en klei]] -> PPI 081 - Winning van steen, zand en klei | AJ126: =Standard_indexen___màj_aout_2025[[#Headers],[CEMENT (specifieke serie - Onderzoek)]] -> CEMENT (specifieke serie - Onderzoek) | AK126: ='Achteraf en prognoses'!R56 -> Belgische algemene inflatie (Consumentenprijsindex 'CPI' Statbel) | AL126: ='Achteraf en prognoses'!O56 -> Totale prijsverandering volgens de prijsherzieningsformule (a = 40% / b = 40% / c = 20% / index "s" - cat A (< 10 p) / index "i2021" ) | AM126: =OW_indexen___màj_aout_2025[[#Headers],[OW 101 - Porfierslag - 40/56]] -> OW 101 - Porfierslag - 40/56 | AN126: =OW_indexen___màj_aout_2025[[#Headers],[OW 102 - Porfierslag - 20/32]] -> OW 102 - Porfierslag - 20/32 | AO126: =OW_indexen___màj_aout_2025[[#Headers],[OW 103 - Porfierslag - 6/20]] -> OW 103 - Porfierslag - 6/20 | AP126: =OW_indexen___màj_aout_2025[[#Headers],[OW 104 - Porfierslag - 2/6]] -> OW 104 - Porfierslag - 2/6 | AQ126: =OW_indexen___màj_aout_2025[[#Headers],[OW 105 - Porfierslag - alle kalibers vanaf 12/2023]] -> OW 105 - Porfierslag - alle kalibers vanaf 12/2023 | AR126: =OW_indexen___màj_aout_2025[[#Headers],[OW 109 - Zandsteenslag - 32/56]] -> OW 109 - Zandsteenslag - 32/56 | AS126: =OW_indexen___màj_aout_2025[[#Headers],[OW 110 - Zandsteenslag - 20/32]] -> OW 110 - Zandsteenslag - 20/32 | AT126: =OW_indexen___màj_aout_2025[[#Headers],[OW 111 - Zandsteenslag - 6/20]] -> OW 111 - Zandsteenslag - 6/20 | AU126: =OW_indexen___màj_aout_2025[[#Headers],[OW 112 - Zandsteenslag - 2/6]] -> OW 112 - Zandsteenslag - 2/6 | AV126: =OW_indexen___màj_aout_2025[[#Headers],[OW 115 - Zandsteenslag - alle kalibers vanaf 12/2023]] -> OW 115 - Zandsteenslag - alle kalibers vanaf 12/2023 | AW126: =OW_indexen___màj_aout_2025[[#Headers],[OW 117 - Kalksteen - 20/32]] -> OW 117 - Kalksteen - 20/32 | AX126: =OW_indexen___màj_aout_2025[[#Headers],[OW 118 - Kalksteen - 14/20]] -> OW 118 - Kalksteen - 14/20 | AY126: =OW_indexen___màj_aout_2025[[#Headers],[OW 119 - Kalksteen - 6/14]] -> OW 119 - Kalksteen - 6/14 | AZ126: =OW_indexen___màj_aout_2025[[#Headers],[OW 120 - Kalksteen - 2/6]] -> OW 120 - Kalksteen - 2/6 | BA126: =OW_indexen___màj_aout_2025[[#Headers],[OW 121 - Kalksteen - 0/2 - 0/4]] -> OW 121 - Kalksteen - 0/2 - 0/4 | BB126: =OW_indexen___màj_aout_2025[[#Headers],[OW 125 - Kalksteen - alle kalibers vanaf 12/2023]] -> OW 125 - Kalksteen - alle kalibers vanaf 12/2023 | BC126: =OW_indexen___màj_aout_2025[[#Headers],[OW 130 - Binnenlands zand - voor gestabiliseerd zand]] -> OW 130 - Binnenlands zand - voor gestabiliseerd zand | BD126: =OW_indexen___màj_aout_2025[[#Headers],[OW 131 - Binnenlands zand - voor beton]] -> OW 131 - Binnenlands zand - voor beton | BE126: =OW_indexen___màj_aout_2025[[#Headers],[OW 132 - Binnenlands grind - grind 4/28]] -> OW 132 - Binnenlands grind - grind 4/28 | BF126: =OW_indexen___màj_aout_2025[[#Headers],[OW 133 - Binnenlands grind - zand van de Maas]] -> OW 133 - Binnenlands grind - zand van de Maas | BG126: =OW_indexen___màj_aout_2025[[#Headers],[OW 134 - Binnenlands grind - gebroken 2/6]] -> OW 134 - Binnenlands grind - gebroken 2/6 | BH126: =OW_indexen___màj_aout_2025[[#Headers],[OW 135 - Binnenlands grind - gebroken 6/20]] -> OW 135 - Binnenlands grind - gebroken 6/20 | BI126: =OW_indexen___màj_aout_2025[[#Headers],[OW 136 - Binnenlands grind - gebroken 2/32]] -> OW 136 - Binnenlands grind - gebroken 2/32 | BJ126: =OW_indexen___màj_aout_2025[[#Headers],[OW 137 - Grind Rijnland - kaai Brussel]] -> OW 137 - Grind Rijnland - kaai Brussel | BK126: =OW_indexen___màj_aout_2025[[#Headers],[OW 137² - Grind Rijnland - kaai Antwerpen]] -> OW 137² - Grind Rijnland - kaai Antwerpen | BL126: =OW_indexen___màj_aout_2025[[#Headers],[OW 138 - Rivierzand Waal - kaai Brussel]] -> OW 138 - Rivierzand Waal - kaai Brussel | BM126: =OW_indexen___màj_aout_2025[[#Headers],[OW 138² - Rivierzand Waal - kaai Antwerpen]] -> OW 138² - Rivierzand Waal - kaai Antwerpen | BN126: =OW_indexen___màj_aout_2025[[#Headers],[OW 140 - Fijn zeezand BCP-NCP]] -> OW 140 - Fijn zeezand BCP-NCP | BO126: =OW_indexen___màj_aout_2025[[#Headers],[OW 141 - Grof zeezand ECP]] -> OW 141 - Grof zeezand ECP | BP126: =OW_indexen___màj_aout_2025[[#Headers],[OW 142 - Zeegrind ECP]] -> OW 142 - Zeegrind ECP | BQ126: =OW_indexen___màj_aout_2025[[#Headers],[OW 143 - Belgisch en ingevoerd rivierzand]] -> OW 143 - Belgisch en ingevoerd rivierzand | BR126: =OW_indexen___màj_aout_2025[[#Headers],[OW 144 - Belgisch en ingevoerd riviergrind]] -> OW 144 - Belgisch en ingevoerd riviergrind | BS126: =OW_indexen___màj_aout_2025[[#Headers],[OW 205 - Koudgewalste dunne platen - 1mm zie OW 234]] -> OW 205 - Koudgewalste dunne platen - 1mm zie OW 234 | BT126: =OW_indexen___màj_aout_2025[[#Headers],[OW 210 - Profielstaal, kwaliteitsstaal - staal AE 355 D zie OW 231]] -> OW 210 - Profielstaal, kwaliteitsstaal - staal AE 355 D zie OW 231 | BU126: =OW_indexen___màj_aout_2025[[#Headers],[OW 211 - Staafstaal, andere kwaliteiten - courant staal AE 235 A zie OW 230]] -> OW 211 - Staafstaal, andere kwaliteiten - courant staal AE 235 A zie OW 230 | BV126: =OW_indexen___màj_aout_2025[[#Headers],[OW 212 - Dikke platen, kwaliteitsstaal - staal AE 355 D zie OW 232]] -> OW 212 - Dikke platen, kwaliteitsstaal - staal AE 355 D zie OW 232 | BW126: =OW_indexen___màj_aout_2025[[#Headers],[OW 213 - Profielstaal, kwaliteitsstaal - staal AE 235 C zie OW 231]] -> OW 213 - Profielstaal, kwaliteitsstaal - staal AE 235 C zie OW 231 | BX126: =OW_indexen___màj_aout_2025[[#Headers],[OW 215 - Dikke platen, kwaliteitsstaal - staal AE 235 A zie OW 232]] -> OW 215 - Dikke platen, kwaliteitsstaal - staal AE 235 A zie OW 232 | BY126: =OW_indexen___màj_aout_2025[[#Headers],[OW 216 - platen gemiddeldes - courant staal A320 zie OW 232]] -> OW 216 - platen gemiddeldes - courant staal A320 zie OW 232 | BZ126: =OW_indexen___màj_aout_2025[[#Headers],[OW 217 - Profielstaal, kwaliteitsstaal - courant staal AE 235 A zie OW 231]] -> OW 217 - Profielstaal, kwaliteitsstaal - courant staal AE 235 A zie OW 231 | CA126: =OW_indexen___màj_aout_2025[[#Headers],[OW 218 - betonijzer - BE 500 grof]] -> OW 218 - betonijzer - BE 500 grof | CB126: =OW_indexen___màj_aout_2025[[#Headers],[OW 219 - Staafstaal, andere kwaliteiten - staal AE 355 C zie OW 230]] -> OW 219 - Staafstaal, andere kwaliteiten - staal AE 355 C zie OW 230 | CC126: =OW_indexen___màj_aout_2025[[#Headers],[OW 220 - Dikke platen, kwaliteitsstaal - courant staal A 320 zie OW 232]] -> OW 220 - Dikke platen, kwaliteitsstaal - courant staal A 320 zie OW 232 | CD126: =OW_indexen___màj_aout_2025[[#Headers],[OW 221 - Warmgewalste dunne platen - courant staal A 320 - 1,5 mm zie OW 233]] -> OW 221 - Warmgewalste dunne platen - courant staal A 320 - 1,5 mm zie OW 233 | CE126: =OW_indexen___màj_aout_2025[[#Headers],[OW 222 - Warmgewalste dunne platen - courant staal A 320 - 2 mm zie OW 233]] -> OW 222 - Warmgewalste dunne platen - courant staal A 320 - 2 mm zie OW 233 | CF126: =OW_indexen___màj_aout_2025[[#Headers],[OW 223 - Warmgewalste dunne platen - courant staal A 320 - 2,75 mm zie OW 233]] -> OW 223 - Warmgewalste dunne platen - courant staal A 320 - 2,75 mm zie OW 233 | CG126: =OW_indexen___màj_aout_2025[[#Headers],[OW 224 - betonijzer - diam. 10 tot 40 mm]] -> OW 224 - betonijzer - diam. 10 tot 40 mm | CH126: =OW_indexen___màj_aout_2025[[#Headers],[OW 226 - Damplanken - profielen AZ 18 - PAE 320]] -> OW 226 - Damplanken - profielen AZ 18 - PAE 320 | CI126: =OW_indexen___màj_aout_2025[[#Headers],[OW 227 - vormgietijzer -]] -> OW 227 - vormgietijzer - | CJ126: =OW_indexen___màj_aout_2025[[#Headers],[OW 230 - Staal - Handelsstaal vanaf 12/2023]] -> OW 230 - Staal - Handelsstaal vanaf 12/2023 | CK126: =OW_indexen___màj_aout_2025[[#Headers],[OW 231 - Staal - H-balken vanaf 12/2023]] -> OW 231 - Staal - H-balken vanaf 12/2023 | CL126: =OW_indexen___màj_aout_2025[[#Headers],[OW 232 - Staal - Plaatstaal vanaf 12/2023]] -> OW 232 - Staal - Plaatstaal vanaf 12/2023 | CM126: =OW_indexen___màj_aout_2025[[#Headers],[OW 233 - Staal - Warmgewalste rollen vanaf 12/2023]] -> OW 233 - Staal - Warmgewalste rollen vanaf 12/2023 | CN126: =OW_indexen___màj_aout_2025[[#Headers],[OW 234 - Staal - Koudgewalste rollen vanaf 12/2023]] -> OW 234 - Staal - Koudgewalste rollen vanaf 12/2023 | CO126: =OW_indexen___màj_aout_2025[[#Headers],[OW 235 - Staal - Verzinkt vanaf 12/2023]] -> OW 235 - Staal - Verzinkt vanaf 12/2023 | CP126: =OW_indexen___màj_aout_2025[[#Headers],[OW 236 - 304 roestvrij staal - koudgewalste coils vanaf 12/2023]] -> OW 236 - 304 roestvrij staal - koudgewalste coils vanaf 12/2023 | CQ126: =OW_indexen___màj_aout_2025[[#Headers],[OW 259 - lood - onbehandeld]] -> OW 259 - lood - onbehandeld | CR126: =OW_indexen___màj_aout_2025[[#Headers],[OW 260 - Elektrolytisch koper - onbehandeld zie OW 260 bis]] -> OW 260 - Elektrolytisch koper - onbehandeld zie OW 260 bis | CS126: =OW_indexen___màj_aout_2025[[#Headers],[OW 260 bis - koper - ruw]] -> OW 260 bis - koper - ruw | CT126: =OW_indexen___màj_aout_2025[[#Headers],[OW 261 - zink - onbehandeld zie OW 261 bis]] -> OW 261 - zink - onbehandeld zie OW 261 bis | CU126: =OW_indexen___màj_aout_2025[[#Headers],[OW 261 bis - ruw zink]] -> OW 261 bis - ruw zink | CV126: =OW_indexen___màj_aout_2025[[#Headers],[OW 262 - aluminium - onbehandeld zie OW 262 ter]] -> OW 262 - aluminium - onbehandeld zie OW 262 ter | CW126: =OW_indexen___màj_aout_2025[[#Headers],[OW 262 bis - aluminium - brut]] -> OW 262 bis - aluminium - brut | CX126: =OW_indexen___màj_aout_2025[[#Headers],[OW 262 ter - aluminiumplaten vanaf 12/2023]] -> OW 262 ter - aluminiumplaten vanaf 12/2023 | CY126: =OW_indexen___màj_aout_2025[[#Headers],[OW 263 - ruw nikkel]] -> OW 263 - ruw nikkel | CZ126: =OW_indexen___màj_aout_2025[[#Headers],[OW 339 - Gezaagd inlands naaldhout - epicea inlands - 2½ x 7]] -> OW 339 - Gezaagd inlands naaldhout - epicea inlands - 2½ x 7 | DA126: =OW_indexen___màj_aout_2025[[#Headers],[OW 340 - Gezaagd inlands naaldhout - epicea inlands - 4/4 x 4]] -> OW 340 - Gezaagd inlands naaldhout - epicea inlands - 4/4 x 4 | DB126: =OW_indexen___màj_aout_2025[[#Headers],[OW 341 - Gezaagd naaldhout Noorse grenen - noorse berd - 2½ x 7]] -> OW 341 - Gezaagd naaldhout Noorse grenen - noorse berd - 2½ x 7 | DC126: =OW_indexen___màj_aout_2025[[#Headers],[OW 342 - Gezaagd naaldhout Noorse grenen - noorse berd - 4/4 x 4]] -> OW 342 - Gezaagd naaldhout Noorse grenen - noorse berd - 4/4 x 4 | DD126: =OW_indexen___màj_aout_2025[[#Headers],[OW 442 - geperforeerde bouwblokken - L : 290 / b : 140 /h : 90]] -> OW 442 - geperforeerde bouwblokken - L : 290 / b : 140 /h : 90 | DE126: =OW_indexen___màj_aout_2025[[#Headers],[OW 443 - geperforeerde bouwblokken - L : 290 / b : 140 / h : 140]] -> OW 443 - geperforeerde bouwblokken - L : 290 / b : 140 / h : 140 | DF126: =OW_indexen___màj_aout_2025[[#Headers],[OW 445 - bakstenen - West-Vl. + Doornik - L : 190 / b : 09 / h : 65]] -> OW 445 - bakstenen - West-Vl. + Doornik - L : 190 / b : 09 / h : 65 | DG126: =OW_indexen___màj_aout_2025[[#Headers],[OW 448 - bakstenen - gevelstenen : L : 190 / b : 90 / h : 50]] -> OW 448 - bakstenen - gevelstenen : L : 190 / b : 90 / h : 50 | DH126: =OW_indexen___màj_aout_2025[[#Headers],[OW 462 - cement - klasse 32,5]] -> OW 462 - cement - klasse 32,5 | DI126: =OW_indexen___màj_aout_2025[[#Headers],[OW 464 - cement - klasse 42,5]] -> OW 464 - cement - klasse 42,5 | DJ126: =OW_indexen___màj_aout_2025[[#Headers],[OW 466 - cement - klasse 52,5]] -> OW 466 - cement - klasse 52,5 | DK126: =OW_indexen___màj_aout_2025[[#Headers],[OW 467 - cement - zakken]] -> OW 467 - cement - zakken | DL126: =OW_indexen___màj_aout_2025[[#Headers],[OW 470 - betonproducten voor het wegennetwerk - betonnen tegels - 30/30/6 cm]] -> OW 470 - betonproducten voor het wegennetwerk - betonnen tegels - 30/30/6 cm | DM126: =OW_indexen___màj_aout_2025[[#Headers],[OW 475 - betonproducten voor het wegennetwerk - betonnen straatstenen - 22/11/10 cm]] -> OW 475 - betonproducten voor het wegennetwerk - betonnen straatstenen - 22/11/10 cm | DN126: =OW_indexen___màj_aout_2025[[#Headers],[OW 476 - betonproducten voor de bouwsector - holle betonblokken - klasse p - 0,8 39/19/19]] -> OW 476 - betonproducten voor de bouwsector - holle betonblokken - klasse p - 0,8 39/19/19 | DO126: =OW_indexen___màj_aout_2025[[#Headers],[OW 477 - betonproducten voor de bouwsector - volle betonblokken - klasse p 2,2 - 39/19/19]] -> OW 477 - betonproducten voor de bouwsector - volle betonblokken - klasse p 2,2 - 39/19/19 | DP126: =OW_indexen___màj_aout_2025[[#Headers],[OW 480 - betonproducten voor het wegennetwerk - boordstenen - 21-411 - type 1A]] -> OW 480 - betonproducten voor het wegennetwerk - boordstenen - 21-411 - type 1A | DQ126: =OW_indexen___màj_aout_2025[[#Headers],[OW 486 - betonproducten voor het wegennetwerk - buizen ongewapend - L : 2,5 m - diam. 80cm]] -> OW 486 - betonproducten voor het wegennetwerk - buizen ongewapend - L : 2,5 m - diam. 80cm | DR126: =OW_indexen___màj_aout_2025[[#Headers],[OW 486² - betonproducten voor het wegennetwerk - buizen ongewapend - L : 2 m - diam. 80cm]] -> OW 486² - betonproducten voor het wegennetwerk - buizen ongewapend - L : 2 m - diam. 80cm | DS126: =OW_indexen___màj_aout_2025[[#Headers],[OW 549 - Diesel B7 aan de pomp - 10 ppm]] -> OW 549 - Diesel B7 aan de pomp - 10 ppm | DT126: =OW_indexen___màj_aout_2025[[#Headers],[OW 549² - Diesel B7 aan de pomp - 50 ppm]] -> OW 549² - Diesel B7 aan de pomp - 50 ppm | DU126: =OW_indexen___màj_aout_2025[[#Headers],[OW 549³ - Diesel B7 aan de pomp - -]] -> OW 549³ - Diesel B7 aan de pomp - - | DV126: =OW_indexen___màj_aout_2025[[#Headers],[OW 550 - Gasolie verwarming - 1000 ppm]] -> OW 550 - Gasolie verwarming - 1000 ppm | DW126: =OW_indexen___màj_aout_2025[[#Headers],[OW 550² - Gasolie verwarming - 2000 ppm]] -> OW 550² - Gasolie verwarming - 2000 ppm | DX126: =OW_indexen___màj_aout_2025[[#Headers],[OW 551 - Eurosuper 95 aan de pomp - 10 ppm]] -> OW 551 - Eurosuper 95 aan de pomp - 10 ppm | DY126: =OW_indexen___màj_aout_2025[[#Headers],[OW 551² - Eurosuper 95 aan de pomp - 50 ppm]] -> OW 551² - Eurosuper 95 aan de pomp - 50 ppm | DZ126: =OW_indexen___màj_aout_2025[[#Headers],[OW 551³ - Eurosuper 95 aan de pomp - -]] -> OW 551³ - Eurosuper 95 aan de pomp - - | EA126: =OW_indexen___màj_aout_2025[[#Headers],[OW 552 - LPG - -]] -> OW 552 - LPG - - | EB126: =OW_indexen___màj_aout_2025[[#Headers],[OW 563 - Oliebitumen - vaten]] -> OW 563 - Oliebitumen - vaten | EC126: =OW_indexen___màj_aout_2025[[#Headers],[OW 564 - Oliebitumen - valk]] -> OW 564 - Oliebitumen - valk | ED126: =OW_indexen___màj_aout_2025[[#Headers],[OW 671 - polyester (UP) - vloeibaar Stop 01/2024]] -> OW 671 - polyester (UP) - vloeibaar Stop 01/2024 | EE126: =OW_indexen___màj_aout_2025[[#Headers],[OW 672 - PVC - Polyvinylchloride zie OW 680]] -> OW 672 - PVC - Polyvinylchloride zie OW 680 | EF126: =OW_indexen___màj_aout_2025[[#Headers],[OW 673 - polyethyleen lage dichtheid - PE/LD - lage dichtheid zie OW 681]] -> OW 673 - polyethyleen lage dichtheid - PE/LD - lage dichtheid zie OW 681 | EG126: =OW_indexen___màj_aout_2025[[#Headers],[OW 674 - polyethyleen hoge dichtheid - PE/HD - hoge dichtheid zie OW 683]] -> OW 674 - polyethyleen hoge dichtheid - PE/HD - hoge dichtheid zie OW 683 | EH126: =OW_indexen___màj_aout_2025[[#Headers],[OW 675 - buizen in polyethyleen - PE/HD - hoge dichtheid zie OW 683]] -> OW 675 - buizen in polyethyleen - PE/HD - hoge dichtheid zie OW 683 | EI126: =OW_indexen___màj_aout_2025[[#Headers],[OW 680 - PVC - buizen vanaf 12/2023]] -> OW 680 - PVC - buizen vanaf 12/2023 | EJ126: =OW_indexen___màj_aout_2025[[#Headers],[OW 681 - PELD - film vanaf 12/2023]] -> OW 681 - PELD - film vanaf 12/2023 | EK126: =OW_indexen___màj_aout_2025[[#Headers],[OW 683 - PEHD - spuitgieten vanaf 12/2023]] -> OW 683 - PEHD - spuitgieten vanaf 12/2023 | EL126: =OW_indexen___màj_aout_2025[[#Headers],[OW 684 - PP - polypropyleen (homopolymeer) vanaf 12/2023]] -> OW 684 - PP - polypropyleen (homopolymeer) vanaf 12/2023 | EM126: beton staven - GRYMAFER - BELMETAL - RSR | EN126: Koudgewalste draad - GRYMAFER - BELMETAL - FKC | EO126: Warmgewalste draad - GRYMAFER - BELMETAL - CWH | EP126: Netten - GRYMAFER - BELMETAL - TNM | EQ126: Elektriciteit - Statbel - 04.5.1.0 | ER126: Aardgas - Statbel - 04.5.2.1 | ES126: Water - Statbel - 04.4.1.0 | ET126: Consumptie Prijs Index Statbel | EU126: Inflatie Index Statbel | EV126: Gezondheids Index Statbel | EW126: Afzetprijsindex in de bouwnijverheid - Statbel | EX126: Huur index Statbel | FA126: periode | FB126: 49.41 - Goederenvervoer over de weg | FC126: 50.2 - Zee- en kustvaart, goederenvervoer | FD126: 52.1 - Opslag en bewaring | FE126: 52.24 - Behandeling | FF126: 53.2 - Andere post- en koeriersdiensten | FG126: 61 - Telecommunicatie | FH126: 62 - Programmering, advies en en andere IT-activiteiten | FI126: 71 - Architecten en ingenieurs; technische controle en analyse | FJ126: 73 - Reclame en marktonderzoek | FK126: 78 - Activiteiten in verband met werkgelegenheid | FL126: 80 - Privé onderzoek en veiligheid | FM126: 81.2 - Schoonmaakactiviteiten | FN126: 90 - Energie | FO126: 255 - Metallurgie en producten van metaal (24-25) | FP126: 257 - Metaalverwerking (25-30) | FQ126: 267 - Vervaardiging van elektrische machines en van audio-, video- en communicatieapparatuur (261-264 + 27) | FR126: 800 - Overige winning van delfstoffen | FS126: 810 - Winning van steen, zand en klei | FT126: 811 - Winning van bouw- en siersteen, kalksteen, gips, krijt en leisteen | FU126: 812 - Winning van grind, zand, klei en kaolien | FV126: 1083 - Verwerking van thee en koffie | FW126: 1105 - Vervaardiging van bier | FX126: 1393 - Vervaardiging van vloerkleden en tapijt | FY126: 1412 - Vervaardiging van werkkleding | FZ126: 1600 - Houtindustrie en vervaardiging van artikelen van hout en van kurk, exclusief meubelen; vervaardiging van artikelen van riet en van vlechtwerk | GA126: 1610 - Zagen en schaven van hout | GB126: 1620 - Vervaardiging van artikelen van hout, kurk, riet of vlechtwerk | GC126: 1621 - Vervaardiging van fineer en van panelen op basis van hout | GD126: 1623 - Vervaardiging van ander schrijn- en timmerwerk | GE126: 1700 - Vervaardiging van papier en papierwaren | GF126: 1920 - Vervaardiging van geraffineerde aardolieproducten | GG126: 2000 - Vervaardiging van chemische producten | GH126: 2010 - Vervaardiging van chemische basisproducten, kunstmeststoffen en stikstofverbindingen en van kunststoffen en synthetische rubber in primaire vormen | GI126: 2012 - Vervaardiging van kleurstoffen en pigmenten | GJ126: 2013 - Vervaardiging van andere anorganische chemische basisproducten | GK126: 2016 - Vervaardiging van kunststoffen in primaire vormen | GL126: 2030 - Vervaardiging van verf, vernis e.d., drukinkt en mastiek | GM126: 2200 - Vervaardiging van producten van rubber of kunststof | GN126: 2210 - Vervaardiging van producten van rubber | GO126: 2220 - Vervaardiging van producten van kunststof | GP126: 2221 - Vervaardiging van platen, vellen, buizen en profielen van kunststof | GQ126: 2222 - Vervaardiging van verpakkingsmateriaal van kunststof | GR126: 2223 - Vervaardiging van kunststofartikelen voor de bouw | GS126: 2300 - Vervaardiging van andere niet-metaalhoudende minerale producten | GT126: 2310 - Vervaardiging van glas en glaswerk | GU126: 2312 - Vormen en bewerken van vlakglas | GV126: 2330 - Vervaardiging van producten voor de bouw, van klei | GW126: 2332 - Vervaardiging van bakstenen, tegels en producten voor de bouw van gebakken klei | GX126: 2350 - Vervaardiging van cement, kalk en gips | GY126: 2351 - Vervaardiging van cement | GZ126: 2360 - Vervaardiging van artikelen van beton, cement en gips | HA126: 2361 - Vervaardiging van artikelen van beton voor de bouw | HB126: 2363 - Vervaardiging van stortklare beton | HC126: 2369 - Vervaardiging van andere artikelen van beton, gips en cement | HD126: 2370 - Houwen, bewerken en afwerken van natuursteen | HE126: 2390 - Vervaardiging van andere schuurmiddelen en niet-metaalhoudende minerale producten n.e.g. | HF126: 2400 - Vervaardiging van metalen in primaire vorm | HG126: 2410 - Vervaardiging van ijzer en staal en van ferrolegeringen | HH126: 2430 - Vervaardiging van andere producten van de eerste verwerking van staal | HI126: 2434 - Koudtrekken van draad | HJ126: 2440 - Productie van edele metalen en van andere non-ferrometalen | HK126: 2444 - Productie van koper | HL126: 2450 - Gieten van metalen | HM126: 2451 - Gieten van ijzer | HN126: 2500 - Vervaardiging van informaticaproducten en van elektronische en optische producten | HO126: 2510 - Vervaardiging van metalen constructiewerken | HP126: 2511 - Vervaardiging van metalen constructiewerken en delen daarvan | HQ126: 2512 - Vervaardiging van metalen deuren en vensters | HR126: 2520 - Vervaardiging van tanks, reservoirs en bergingsmiddelen, van metaal | HS126: 2521 - Vervaardiging van radiatoren en ketels voor centrale verwarming | HT126: 2600 - Manufacture of computer, electronic and optical products | HU126: 2630 - Communicatieapparatuur (productie) | HV126: 2700 - Vervaardiging van elektrische apparatuur | HW126: 2730 - Vervaardiging van kabels en van schakelaars, stekkers, stopcontacten e. d. | HX126: 2733 - Vervaardiging van schakelaars, stekkers, stopcontacten e.d. | HY126: 2740 - Vervaardiging van lampen en verlichtingsapparaten | HZ126: 2750 - Vervaardiging van huishoudapparaten | IA126: 2800 - Vervaardiging van machines, apparaten en werktuigen, n.e.g. | IB126: 2822 - Vervaardiging van hijs-, hef- en transportwerktuigen | IC126: 2900 - Vervaardiging en assemblage van motorvoertuigen, aanhangwagens en opleggers | ID126: 3100 - Vervaardiging van meubelen | IE126: 3101 - Vervaardiging van kantoor- en winkelmeubelen | IF126: 3102 - Vervaardiging van keukenmeubelen | IG126: 3200 - Overige industrie | IH126: 3300 - Reparatie en installatie van machines en apparaten | II126: 3500 - Productie en distributie van elektriciteit, gas, stoom en gekoelde lucht | IJ126: 3510 - Opwekking, transmissie en distributie van elektriciteit | IK126: 3520 - Productie en distributie van gas | IL126: 3600 - Winning, behandeling en distributie van water | IN126: Période | IO126: =Standard_indexen___màj_aout_2025[[#Headers],[index "s" - cat A (< 10 p)]] -> index "s" - cat A (< 10 p) | IP126: =Standard_indexen___màj_aout_2025[[#Headers],[index "s" - cat A (van 10 tot 19 p)]] -> index "s" - cat A (van 10 tot 19 p) | IQ126: =Standard_indexen___màj_aout_2025[[#Headers],[index "s" - cat A (≥ 20 p)]] -> index "s" - cat A (≥ 20 p) | IR126: =Standard_indexen___màj_aout_2025[[#Headers],[index "s" - cat B (< 10 p)]] -> index "s" - cat B (< 10 p) | IS126: =Standard_indexen___màj_aout_2025[[#Headers],[index "s" - cat B (van 10 tot 19 p)]] -> index "s" - cat B (van 10 tot 19 p) | IT126: =Standard_indexen___màj_aout_2025[[#Headers],[index "s" - cat B (≥ 20 p)]] -> index "s" - cat B (≥ 20 p) | IU126: =Standard_indexen___màj_aout_2025[[#Headers],[index "s" - cat C (< 10 p)]] -> index "s" - cat C (< 10 p) | IV126: =Standard_indexen___màj_aout_2025[[#Headers],[index "s" - cat C (van 10 tot 19 p)]] -> index "s" - cat C (van 10 tot 19 p) | IW126: =Standard_indexen___màj_aout_2025[[#Headers],[index "s" - cat C (≥ 20 p)]] -> index "s" - cat C (≥ 20 p) | IX126: =Standard_indexen___màj_aout_2025[[#Headers],[index "s" - cat D (< 10 p)]] -> index "s" - cat D (< 10 p) | IY126: =Standard_indexen___màj_aout_2025[[#Headers],[index "s" - cat D (van 10 tot 19 p)]] -> index "s" - cat D (van 10 tot 19 p) | IZ126: =Standard_indexen___màj_aout_2025[[#Headers],[index "s" - cat D (≥ 20 p)]] -> index "s" - cat D (≥ 20 p) | JA126: =Standard_indexen___màj_aout_2025[[#Headers],[index "s" - elektriciens (< 10 p)]] -> index "s" - elektriciens (< 10 p) | JB126: =Standard_indexen___màj_aout_2025[[#Headers],[index "s" - elektriciens (≥ 10 p)]] -> index "s" - elektriciens (≥ 10 p) | JC126: =Standard_indexen___màj_aout_2025[[#Headers],[Index T0 - asfalteerders]] -> Index T0 - asfalteerders | JD126: =Standard_indexen___màj_aout_2025[[#Headers],[Index T1 - asfalteerders]] -> Index T1 - asfalteerders | JE126: =Standard_indexen___màj_aout_2025[[#Headers],[Index T2 - asfalteerders]] -> Index T2 - asfalteerders | JF126: =Standard_indexen___màj_aout_2025[[#Headers],[Index T3 - asfalteerders]] -> Index T3 - asfalteerders | JG126: =Standard_indexen___màj_aout_2025[[#Headers],[Index T4 - asfalteerders]] -> Index T4 - asfalteerders | JH126: =Standard_indexen___màj_aout_2025[[#Headers],[Index T5 - asfalteerders]] -> Index T5 - asfalteerders | JI126: PC 124 - bouw - arbeiders | JJ126: PC 200 - bedienden | JK126: PC 149.01 - elektriciens - arbeiders | JL126: PC 116.0001 - Chemische industrie - arbeiders | JM126: PC 121 - Schoonmaak - arbeiders | JN126: PC 111.0030 - Staalbouw - arbeiders | JO126: PC 209 - Staalbouw - bedienden | JP126: PC 126 - Houtverwerking - arbeiders | JQ126: PC 126 - Houtverwerking - bedienden | JR126: PC 115.0003 - beglazing - arbeiders
B127: =Standaardindexen!C28 -> 2018-01-01 | C127: =IFERROR(IF(Standaardindexen!D28/IF(Standaardindexen!D$28=0,INDEX(Standard_indexen___màj_aout_2025[index "i"],MATCH(TRUE,Standard_indexen___màj_aout_2025[index "i"]<>"",0)),Standaardindexen!D$28)=0,NA(),Standaardindexen!D28/IF(Standaardindexen!D$28=0, INDEX(Standard_indexen___màj_aout_2025[index "i"],MATCH(TRUE,Standard_indexen___màj_aout_2025[index "i"]<>"",0)),Standaardindexen!D$28)),NA()) -> 1 | D127: =IFERROR(IF(Standaardindexen!E28/IF(Standaardindexen!E$28=0,INDEX(Standard_indexen___màj_aout_2025[index "i2021"],MATCH(TRUE,Standard_indexen___màj_aout_2025[index "i2021"]<>"",0)),Standaardindexen!E$28)=0,NA(),Standaardindexen!E28/IF(Standaardindexen!E$28=0, INDEX(Standard_indexen___màj_aout_2025[index "i2021"],MATCH(TRUE,Standard_indexen___màj_aout_2025[index "i2021"]<>"",0)),Standaardindexen!E$28)),NA()) -> 1 | E127: =IFERROR(IF(Standaardindexen!F28/IF(Standaardindexen!F$28=0,INDEX(Standard_indexen___màj_aout_2025[index "K1"],MATCH(TRUE,Standard_indexen___màj_aout_2025[index "K1"]<>"",0)),Standaardindexen!F$28)=0,NA(),Standaardindexen!F28/IF(Standaardindexen!F$28=0, INDEX(Standard_indexen___màj_aout_2025[index "K1"],MATCH(TRUE,Standard_indexen___màj_aout_2025[index "K1"]<>"",0)),Standaardindexen!F$28)),NA()) -> 1 | F127: =IFERROR(IF(Standaardindexen!G28/IF(Standaardindexen!G$28=0,INDEX(Standard_indexen___màj_aout_2025[index "K2"],MATCH(TRUE,Standard_indexen___màj_aout_2025[index "K2"]<>"",0)),Standaardindexen!G$28)=0,NA(),Standaardindexen!G28/IF(Standaardindexen!G$28=0, INDEX(Standard_indexen___màj_aout_2025[index "K2"],MATCH(TRUE,Standard_indexen___màj_aout_2025[index "K2"]<>"",0)),Standaardindexen!G$28)),NA()) -> 1 | G127: =IFERROR(IF(Standaardindexen!H28/IF(Standaardindexen!H$28=0,INDEX(Standard_indexen___màj_aout_2025[index "M"],MATCH(TRUE,Standard_indexen___màj_aout_2025[index "M"]<>"",0)),Standaardindexen!H$28)=0,NA(),Standaardindexen!H28/IF(Standaardindexen!H$28=0, INDEX(Standard_indexen___màj_aout_2025[index "M"],MATCH(TRUE,Standard_indexen___màj_aout_2025[index "M"]<>"",0)),Standaardindexen!H$28)),NA()) -> 1 | H127: =IFERROR(IF(Standaardindexen!I28/IF(Standaardindexen!I$28=0,INDEX(Standard_indexen___màj_aout_2025[index "MM"],MATCH(TRUE,Standard_indexen___màj_aout_2025[index "MM"]<>"",0)),Standaardindexen!I$28)=0,NA(),Standaardindexen!I28/IF(Standaardindexen!I$28=0, INDEX(Standard_indexen___màj_aout_2025[index "MM"],MATCH(TRUE,Standard_indexen___màj_aout_2025[index "MM"]<>"",0)),Standaardindexen!I$28)),NA()) -> 1 | I127: =IFERROR(IF(Standaardindexen!AE28/IF(Standaardindexen!AE$28=0,INDEX(Standard_indexen___màj_aout_2025[PPI 23 - Vervaardiging van andere niet-metaalhoudende minerale producten],MATCH(TRUE,Standard_indexen___màj_aout_2025[PPI 23 - Vervaardiging van andere niet-metaalhoudende minerale producten]<>"",0)),Standaardindexen!AE$28)=0,NA(),Standaardindexen!AE28/IF(Standaardindexen!AE$28=0, INDEX(Standard_indexen___màj_aout_2025[PPI 23 - Vervaardiging van andere niet-metaalhoudende minerale producten],MATCH(TRUE,Standard_indexen___màj_aout_2025[PPI 23 - Vervaardiging van andere niet-metaalhoudende minerale producten]<>"",0)),Standaardindexen!AE$28)),NA()) ->  | J127: =IFERROR(IF(Standaardindexen!AF28/IF(Standaardindexen!AF$28=0,INDEX(Standard_indexen___màj_aout_2025[PPI 24 - Vervaardiging van metalen in primaire vorm],MATCH(TRUE,Standard_indexen___màj_aout_2025[PPI 24 - Vervaardiging van metalen in primaire vorm]<>"",0)),Standaardindexen!AF$28)=0,NA(),Standaardindexen!AF28/IF(Standaardindexen!AF$28=0, INDEX(Standard_indexen___màj_aout_2025[PPI 24 - Vervaardiging van metalen in primaire vorm],MATCH(TRUE,Standard_indexen___màj_aout_2025[PPI 24 - Vervaardiging van metalen in primaire vorm]<>"",0)),Standaardindexen!AF$28)),NA()) ->  | K127: =IFERROR(IF(Standaardindexen!AG28/IF(Standaardindexen!AG$28=0,INDEX(Standard_indexen___màj_aout_2025[PPI 161 - Zagen en schaven van hout],MATCH(TRUE,Standard_indexen___màj_aout_2025[PPI 161 - Zagen en schaven van hout]<>"",0)),Standaardindexen!AG$28)=0,NA(),Standaardindexen!AG28/IF(Standaardindexen!AG$28=0, INDEX(Standard_indexen___màj_aout_2025[PPI 161 - Zagen en schaven van hout],MATCH(TRUE,Standard_indexen___màj_aout_2025[PPI 161 - Zagen en schaven van hout]<>"",0)),Standaardindexen!AG$28)),NA()) ->  | L127: =IFERROR(IF(Standaardindexen!AH28/IF(Standaardindexen!AH$28=0,INDEX(Standard_indexen___màj_aout_2025[PPI 162 - Vervaardiging van artikelen van hout, kurk, riet of vlechtwerk],MATCH(TRUE,Standard_indexen___màj_aout_2025[PPI 162 - Vervaardiging van artikelen van hout, kurk, riet of vlechtwerk]<>"",0)),Standaardindexen!AH$28)=0,NA(),Standaardindexen!AH28/IF(Standaardindexen!AH$28=0, INDEX(Standard_indexen___màj_aout_2025[PPI 162 - Vervaardiging van artikelen van hout, kurk, riet of vlechtwerk],MATCH(TRUE,Standard_indexen___màj_aout_2025[PPI 162 - Vervaardiging van artikelen van hout, kurk, riet of vlechtwerk]<>"",0)),Standaardindexen!AH$28)),NA()) ->  | M127: =IFERROR(IF(Standaardindexen!AI28/IF(Standaardindexen!AI$28=0,INDEX(Standard_indexen___màj_aout_2025[PPI 203 - Vervaardiging van verf, vernis e.d., drukinkt en mastiek],MATCH(TRUE,Standard_indexen___màj_aout_2025[PPI 203 - Vervaardiging van verf, vernis e.d., drukinkt en mastiek]<>"",0)),Standaardindexen!AI$28)=0,NA(),Standaardindexen!AI28/IF(Standaardindexen!AI$28=0, INDEX(Standard_indexen___màj_aout_2025[PPI 203 - Vervaardiging van verf, vernis e.d., drukinkt en mastiek],MATCH(TRUE,Standard_indexen___màj_aout_2025[PPI 203 - Vervaardiging van verf, vernis e.d., drukinkt en mastiek]<>"",0)),Standaardindexen!AI$28)),NA()) ->  | N127: =IFERROR(IF(Standaardindexen!AJ28/IF(Standaardindexen!AJ$28=0,INDEX(Standard_indexen___màj_aout_2025[PPI 205 - Vervaardiging van andere chemische producten],MATCH(TRUE,Standard_indexen___màj_aout_2025[PPI 205 - Vervaardiging van andere chemische producten]<>"",0)),Standaardindexen!AJ$28)=0,NA(),Standaardindexen!AJ28/IF(Standaardindexen!AJ$28=0, INDEX(Standard_indexen___màj_aout_2025[PPI 205 - Vervaardiging van andere chemische producten],MATCH(TRUE,Standard_indexen___màj_aout_2025[PPI 205 - Vervaardiging van andere chemische producten]<>"",0)),Standaardindexen!AJ$28)),NA()) ->  | O127: =IFERROR(IF(Standaardindexen!AK28/IF(Standaardindexen!AK$28=0,INDEX(Standard_indexen___màj_aout_2025[PPI 222 - Vervaardiging van producten van kunststof],MATCH(TRUE,Standard_indexen___màj_aout_2025[PPI 222 - Vervaardiging van producten van kunststof]<>"",0)),Standaardindexen!AK$28)=0,NA(),Standaardindexen!AK28/IF(Standaardindexen!AK$28=0, INDEX(Standard_indexen___màj_aout_2025[PPI 222 - Vervaardiging van producten van kunststof],MATCH(TRUE,Standard_indexen___màj_aout_2025[PPI 222 - Vervaardiging van producten van kunststof]<>"",0)),Standaardindexen!AK$28)),NA()) ->  | P127: =IFERROR(IF(Standaardindexen!AL28/IF(Standaardindexen!AL$28=0,INDEX(Standard_indexen___màj_aout_2025[PPI 231 - Vervaardiging van glas en glaswerk],MATCH(TRUE,Standard_indexen___màj_aout_2025[PPI 231 - Vervaardiging van glas en glaswerk]<>"",0)),Standaardindexen!AL$28)=0,NA(),Standaardindexen!AL28/IF(Standaardindexen!AL$28=0, INDEX(Standard_indexen___màj_aout_2025[PPI 231 - Vervaardiging van glas en glaswerk],MATCH(TRUE,Standard_indexen___màj_aout_2025[PPI 231 - Vervaardiging van glas en glaswerk]<>"",0)),Standaardindexen!AL$28)),NA()) ->  | Q127: =IFERROR(IF(Standaardindexen!AM28/IF(Standaardindexen!AM$28=0,INDEX(Standard_indexen___màj_aout_2025[PPI 233 - Vervaardiging van producten voor de bouw, van klei],MATCH(TRUE,Standard_indexen___màj_aout_2025[PPI 233 - Vervaardiging van producten voor de bouw, van klei]<>"",0)),Standaardindexen!AM$28)=0,NA(),Standaardindexen!AM28/IF(Standaardindexen!AM$28=0, INDEX(Standard_indexen___màj_aout_2025[PPI 233 - Vervaardiging van producten voor de bouw, van klei],MATCH(TRUE,Standard_indexen___màj_aout_2025[PPI 233 - Vervaardiging van producten voor de bouw, van klei]<>"",0)),Standaardindexen!AM$28)),NA()) ->  | R127: =IFERROR(IF(Standaardindexen!AN28/IF(Standaardindexen!AN$28=0,INDEX(Standard_indexen___màj_aout_2025[PPI 235 - Vervaardiging van cement, kalk en gips],MATCH(TRUE,Standard_indexen___màj_aout_2025[PPI 235 - Vervaardiging van cement, kalk en gips]<>"",0)),Standaardindexen!AN$28)=0,NA(),Standaardindexen!AN28/IF(Standaardindexen!AN$28=0, INDEX(Standard_indexen___màj_aout_2025[PPI 235 - Vervaardiging van cement, kalk en gips],MATCH(TRUE,Standard_indexen___màj_aout_2025[PPI 235 - Vervaardiging van cement, kalk en gips]<>"",0)),Standaardindexen!AN$28)),NA()) ->  | S127: =IFERROR(IF(Standaardindexen!AO28/IF(Standaardindexen!AO$28=0,INDEX(Standard_indexen___màj_aout_2025[PPI 236 - Vervaardiging van artikelen van beton, cement en gips],MATCH(TRUE,Standard_indexen___màj_aout_2025[PPI 236 - Vervaardiging van artikelen van beton, cement en gips]<>"",0)),Standaardindexen!AO$28)=0,NA(),Standaardindexen!AO28/IF(Standaardindexen!AO$28=0, INDEX(Standard_indexen___màj_aout_2025[PPI 236 - Vervaardiging van artikelen van beton, cement en gips],MATCH(TRUE,Standard_indexen___màj_aout_2025[PPI 236 - Vervaardiging van artikelen van beton, cement en gips]<>"",0)),Standaardindexen!AO$28)),NA()) ->  | T127: =IFERROR(IF(Standaardindexen!AP28/IF(Standaardindexen!AP$28=0,INDEX(Standard_indexen___màj_aout_2025[PPI 237 - Houwen, bewerken en afwerken van natuursteen],MATCH(TRUE,Standard_indexen___màj_aout_2025[PPI 237 - Houwen, bewerken en afwerken van natuursteen]<>"",0)),Standaardindexen!AP$28)=0,NA(),Standaardindexen!AP28/IF(Standaardindexen!AP$28=0, INDEX(Standard_indexen___màj_aout_2025[PPI 237 - Houwen, bewerken en afwerken van natuursteen],MATCH(TRUE,Standard_indexen___màj_aout_2025[PPI 237 - Houwen, bewerken en afwerken van natuursteen]<>"",0)),Standaardindexen!AP$28)),NA()) ->  | U127: =IFERROR(IF(Standaardindexen!AQ28/IF(Standaardindexen!AQ$28=0,INDEX(Standard_indexen___màj_aout_2025[PPI 239 - Vervaardiging van andere schuurmiddelen en niet-metaalhoudende minerale producten n.e.g.],MATCH(TRUE,Standard_indexen___màj_aout_2025[PPI 239 - Vervaardiging van andere schuurmiddelen en niet-metaalhoudende minerale producten n.e.g.]<>"",0)),Standaardindexen!AQ$28)=0,NA(),Standaardindexen!AQ28/IF(Standaardindexen!AQ$28=0, INDEX(Standard_indexen___màj_aout_2025[PPI 239 - Vervaardiging van andere schuurmiddelen en niet-metaalhoudende minerale producten n.e.g.],MATCH(TRUE,Standard_indexen___màj_aout_2025[PPI 239 - Vervaardiging van andere schuurmiddelen en niet-metaalhoudende minerale producten n.e.g.]<>"",0)),Standaardindexen!AQ$28)),NA()) ->  | V127: =IFERROR(IF(Standaardindexen!AR28/IF(Standaardindexen!AR$28=0,INDEX(Standard_indexen___màj_aout_2025[PPI 241 - Vervaardiging van ijzer en staal en van ferrolegeringen],MATCH(TRUE,Standard_indexen___màj_aout_2025[PPI 241 - Vervaardiging van ijzer en staal en van ferrolegeringen]<>"",0)),Standaardindexen!AR$28)=0,NA(),Standaardindexen!AR28/IF(Standaardindexen!AR$28=0, INDEX(Standard_indexen___màj_aout_2025[PPI 241 - Vervaardiging van ijzer en staal en van ferrolegeringen],MATCH(TRUE,Standard_indexen___màj_aout_2025[PPI 241 - Vervaardiging van ijzer en staal en van ferrolegeringen]<>"",0)),Standaardindexen!AR$28)),NA()) ->  | W127: =IFERROR(IF(Standaardindexen!AS28/IF(Standaardindexen!AS$28=0,INDEX(Standard_indexen___màj_aout_2025[PPI 243 - Vervaardiging van andere producten van de eerste verwerking van staal],MATCH(TRUE,Standard_indexen___màj_aout_2025[PPI 243 - Vervaardiging van andere producten van de eerste verwerking van staal]<>"",0)),Standaardindexen!AS$28)=0,NA(),Standaardindexen!AS28/IF(Standaardindexen!AS$28=0, INDEX(Standard_indexen___màj_aout_2025[PPI 243 - Vervaardiging van andere producten van de eerste verwerking van staal],MATCH(TRUE,Standard_indexen___màj_aout_2025[PPI 243 - Vervaardiging van andere producten van de eerste verwerking van staal]<>"",0)),Standaardindexen!AS$28)),NA()) ->  | X127: =IFERROR(IF(Standaardindexen!AT28/IF(Standaardindexen!AT$28=0,INDEX(Standard_indexen___màj_aout_2025[PPI 244 - Productie van edele metalen en van andere non-ferrometalen],MATCH(TRUE,Standard_indexen___màj_aout_2025[PPI 244 - Productie van edele metalen en van andere non-ferrometalen]<>"",0)),Standaardindexen!AT$28)=0,NA(),Standaardindexen!AT28/IF(Standaardindexen!AT$28=0, INDEX(Standard_indexen___màj_aout_2025[PPI 244 - Productie van edele metalen en van andere non-ferrometalen],MATCH(TRUE,Standard_indexen___màj_aout_2025[PPI 244 - Productie van edele metalen en van andere non-ferrometalen]<>"",0)),Standaardindexen!AT$28)),NA()) ->  | Y127: =IFERROR(IF(Standaardindexen!AU28/IF(Standaardindexen!AU$28=0,INDEX(Standard_indexen___màj_aout_2025[PPI 251 - Vervaardiging van metalen constructiewerken],MATCH(TRUE,Standard_indexen___màj_aout_2025[PPI 251 - Vervaardiging van metalen constructiewerken]<>"",0)),Standaardindexen!AU$28)=0,NA(),Standaardindexen!AU28/IF(Standaardindexen!AU$28=0, INDEX(Standard_indexen___màj_aout_2025[PPI 251 - Vervaardiging van metalen constructiewerken],MATCH(TRUE,Standard_indexen___màj_aout_2025[PPI 251 - Vervaardiging van metalen constructiewerken]<>"",0)),Standaardindexen!AU$28)),NA()) ->  | Z127: =IFERROR(IF(Standaardindexen!AV28/IF(Standaardindexen!AV$28=0,INDEX(Standard_indexen___màj_aout_2025[PPI 252 - Vervaardiging van tanks, reservoirs en bergingsmiddelen, van metaal],MATCH(TRUE,Standard_indexen___màj_aout_2025[PPI 252 - Vervaardiging van tanks, reservoirs en bergingsmiddelen, van metaal]<>"",0)),Standaardindexen!AV$28)=0,NA(),Standaardindexen!AV28/IF(Standaardindexen!AV$28=0, INDEX(Standard_indexen___màj_aout_2025[PPI 252 - Vervaardiging van tanks, reservoirs en bergingsmiddelen, van metaal],MATCH(TRUE,Standard_indexen___màj_aout_2025[PPI 252 - Vervaardiging van tanks, reservoirs en bergingsmiddelen, van metaal]<>"",0)),Standaardindexen!AV$28)),NA()) ->  | AA127: =IFERROR(IF(Standaardindexen!AW28/IF(Standaardindexen!AW$28=0,INDEX(Standard_indexen___màj_aout_2025[PPI 257 - Vervaardiging van scharen, messen, bestekken, gereedschap en ijzerwaren],MATCH(TRUE,Standard_indexen___màj_aout_2025[PPI 257 - Vervaardiging van scharen, messen, bestekken, gereedschap en ijzerwaren]<>"",0)),Standaardindexen!AW$28)=0,NA(),Standaardindexen!AW28/IF(Standaardindexen!AW$28=0, INDEX(Standard_indexen___màj_aout_2025[PPI 257 - Vervaardiging van scharen, messen, bestekken, gereedschap en ijzerwaren],MATCH(TRUE,Standard_indexen___màj_aout_2025[PPI 257 - Vervaardiging van scharen, messen, bestekken, gereedschap en ijzerwaren]<>"",0)),Standaardindexen!AW$28)),NA()) ->  | AB127: =IFERROR(IF(Standaardindexen!AX28/IF(Standaardindexen!AX$28=0,INDEX(Standard_indexen___màj_aout_2025[PPI 259 - Vervaardiging van andere producten van metaal],MATCH(TRUE,Standard_indexen___màj_aout_2025[PPI 259 - Vervaardiging van andere producten van metaal]<>"",0)),Standaardindexen!AX$28)=0,NA(),Standaardindexen!AX28/IF(Standaardindexen!AX$28=0, INDEX(Standard_indexen___màj_aout_2025[PPI 259 - Vervaardiging van andere producten van metaal],MATCH(TRUE,Standard_indexen___màj_aout_2025[PPI 259 - Vervaardiging van andere producten van metaal]<>"",0)),Standaardindexen!AX$28)),NA()) ->  | AC127: =IFERROR(IF(Standaardindexen!AY28/IF(Standaardindexen!AY$28=0,INDEX(Standard_indexen___màj_aout_2025[PPI 263 - Vervaardiging van communicatieapparatuur],MATCH(TRUE,Standard_indexen___màj_aout_2025[PPI 263 - Vervaardiging van communicatieapparatuur]<>"",0)),Standaardindexen!AY$28)=0,NA(),Standaardindexen!AY28/IF(Standaardindexen!AY$28=0, INDEX(Standard_indexen___màj_aout_2025[PPI 263 - Vervaardiging van communicatieapparatuur],MATCH(TRUE,Standard_indexen___màj_aout_2025[PPI 263 - Vervaardiging van communicatieapparatuur]<>"",0)),Standaardindexen!AY$28)),NA()) ->  | AD127: =IFERROR(IF(Standaardindexen!AZ28/IF(Standaardindexen!AZ$28=0,INDEX(Standard_indexen___màj_aout_2025[PPI 271 - Vervaardiging van elektromotoren, van elektrische generatoren en transformatoren en van schakel- en verdeelinrichtingen],MATCH(TRUE,Standard_indexen___màj_aout_2025[PPI 271 - Vervaardiging van elektromotoren, van elektrische generatoren en transformatoren en van schakel- en verdeelinrichtingen]<>"",0)),Standaardindexen!AZ$28)=0,NA(),Standaardindexen!AZ28/IF(Standaardindexen!AZ$28=0, INDEX(Standard_indexen___màj_aout_2025[PPI 271 - Vervaardiging van elektromotoren, van elektrische generatoren en transformatoren en van schakel- en verdeelinrichtingen],MATCH(TRUE,Standard_indexen___màj_aout_2025[PPI 271 - Vervaardiging van elektromotoren, van elektrische generatoren en transformatoren en van schakel- en verdeelinrichtingen]<>"",0)),Standaardindexen!AZ$28)),NA()) ->  | AE127: =IFERROR(IF(Standaardindexen!BA28/IF(Standaardindexen!BA$28=0,INDEX(Standard_indexen___màj_aout_2025[PPI 273 - Vervaardiging van kabels en van schakelaars, stekkers, stopcontacten e. d.],MATCH(TRUE,Standard_indexen___màj_aout_2025[PPI 273 - Vervaardiging van kabels en van schakelaars, stekkers, stopcontacten e. d.]<>"",0)),Standaardindexen!BA$28)=0,NA(),Standaardindexen!BA28/IF(Standaardindexen!BA$28=0, INDEX(Standard_indexen___màj_aout_2025[PPI 273 - Vervaardiging van kabels en van schakelaars, stekkers, stopcontacten e. d.],MATCH(TRUE,Standard_indexen___màj_aout_2025[PPI 273 - Vervaardiging van kabels en van schakelaars, stekkers, stopcontacten e. d.]<>"",0)),Standaardindexen!BA$28)),NA()) ->  | AF127: =IFERROR(IF(Standaardindexen!BB28/IF(Standaardindexen!BB$28=0,INDEX(Standard_indexen___màj_aout_2025[PPI 274 - Vervaardiging van lampen en verlichtingsapparaten],MATCH(TRUE,Standard_indexen___màj_aout_2025[PPI 274 - Vervaardiging van lampen en verlichtingsapparaten]<>"",0)),Standaardindexen!BB$28)=0,NA(),Standaardindexen!BB28/IF(Standaardindexen!BB$28=0, INDEX(Standard_indexen___màj_aout_2025[PPI 274 - Vervaardiging van lampen en verlichtingsapparaten],MATCH(TRUE,Standard_indexen___màj_aout_2025[PPI 274 - Vervaardiging van lampen en verlichtingsapparaten]<>"",0)),Standaardindexen!BB$28)),NA()) ->  | AG127: =IFERROR(IF(Standaardindexen!BC28/IF(Standaardindexen!BC$28=0,INDEX(Standard_indexen___màj_aout_2025[PPI 282 - Vervaardiging van andere machines en apparaten voor algemeen gebruik],MATCH(TRUE,Standard_indexen___màj_aout_2025[PPI 282 - Vervaardiging van andere machines en apparaten voor algemeen gebruik]<>"",0)),Standaardindexen!BC$28)=0,NA(),Standaardindexen!BC28/IF(Standaardindexen!BC$28=0, INDEX(Standard_indexen___màj_aout_2025[PPI 282 - Vervaardiging van andere machines en apparaten voor algemeen gebruik],MATCH(TRUE,Standard_indexen___màj_aout_2025[PPI 282 - Vervaardiging van andere machines en apparaten voor algemeen gebruik]<>"",0)),Standaardindexen!BC$28)),NA()) ->  | AH127: =IFERROR(IF(Standaardindexen!BD28/IF(Standaardindexen!BD$28=0,INDEX(Standard_indexen___màj_aout_2025[PPI 310 - Vervaardiging van meubelen],MATCH(TRUE,Standard_indexen___màj_aout_2025[PPI 310 - Vervaardiging van meubelen]<>"",0)),Standaardindexen!BD$28)=0,NA(),Standaardindexen!BD28/IF(Standaardindexen!BD$28=0, INDEX(Standard_indexen___màj_aout_2025[PPI 310 - Vervaardiging van meubelen],MATCH(TRUE,Standard_indexen___màj_aout_2025[PPI 310 - Vervaardiging van meubelen]<>"",0)),Standaardindexen!BD$28)),NA()) ->  | AI127: =IFERROR(IF(Standaardindexen!BE28/IF(Standaardindexen!BE$28=0,INDEX(Standard_indexen___màj_aout_2025[PPI 081 - Winning van steen, zand en klei],MATCH(TRUE,Standard_indexen___màj_aout_2025[PPI 081 - Winning van steen, zand en klei]<>"",0)),Standaardindexen!BE$28)=0,NA(),Standaardindexen!BE28/IF(Standaardindexen!BE$28=0, INDEX(Standard_indexen___màj_aout_2025[PPI 081 - Winning van steen, zand en klei],MATCH(TRUE,Standard_indexen___màj_aout_2025[PPI 081 - Winning van steen, zand en klei]<>"",0)),Standaardindexen!BE$28)),NA()) ->  | AJ127: =IFERROR(IF(Standaardindexen!BF28/IF(Standaardindexen!BF$28=0,INDEX(Standard_indexen___màj_aout_2025[CEMENT (specifieke serie - Onderzoek)],MATCH(TRUE,Standard_indexen___màj_aout_2025[CEMENT (specifieke serie - Onderzoek)]<>"",0)),Standaardindexen!BF$28)=0,NA(),Standaardindexen!BF28/IF(Standaardindexen!BF$28=0, INDEX(Standard_indexen___màj_aout_2025[CEMENT (specifieke serie - Onderzoek)],MATCH(TRUE,Standard_indexen___màj_aout_2025[CEMENT (specifieke serie - Onderzoek)]<>"",0)),Standaardindexen!BF$28)),NA()) ->  | AK127: ='Achteraf en prognoses'!R57 -> 1 | AL127: ='Achteraf en prognoses'!O57 ->  | AM127: =IFERROR(IF('Materiaalindexen o.w.'!D33/IF('Materiaalindexen o.w.'!D$33=0,INDEX(OW_indexen___màj_aout_2025[OW 101 - Porfierslag - 40/56],MATCH(TRUE,OW_indexen___màj_aout_2025[OW 101 - Porfierslag - 40/56]<>"",0)),'Materiaalindexen o.w.'!D$33)=0,NA(),'Materiaalindexen o.w.'!D33/IF('Materiaalindexen o.w.'!D$33=0, INDEX(OW_indexen___màj_aout_2025[OW 101 - Porfierslag - 40/56],MATCH(TRUE,OW_indexen___màj_aout_2025[OW 101 - Porfierslag - 40/56]<>"",0)),'Materiaalindexen o.w.'!D$33)),NA()) -> 1 | AN127: =IFERROR(IF('Materiaalindexen o.w.'!E33/IF('Materiaalindexen o.w.'!E$33=0,INDEX(OW_indexen___màj_aout_2025[OW 102 - Porfierslag - 20/32],MATCH(TRUE,OW_indexen___màj_aout_2025[OW 102 - Porfierslag - 20/32]<>"",0)),'Materiaalindexen o.w.'!E$33)=0,NA(),'Materiaalindexen o.w.'!E33/IF('Materiaalindexen o.w.'!E$33=0, INDEX(OW_indexen___màj_aout_2025[OW 102 - Porfierslag - 20/32],MATCH(TRUE,OW_indexen___màj_aout_2025[OW 102 - Porfierslag - 20/32]<>"",0)),'Materiaalindexen o.w.'!E$33)),NA()) -> 1 | AO127: =IFERROR(IF('Materiaalindexen o.w.'!F33/IF('Materiaalindexen o.w.'!F$33=0,INDEX(OW_indexen___màj_aout_2025[OW 103 - Porfierslag - 6/20],MATCH(TRUE,OW_indexen___màj_aout_2025[OW 103 - Porfierslag - 6/20]<>"",0)),'Materiaalindexen o.w.'!F$33)=0,NA(),'Materiaalindexen o.w.'!F33/IF('Materiaalindexen o.w.'!F$33=0, INDEX(OW_indexen___màj_aout_2025[OW 103 - Porfierslag - 6/20],MATCH(TRUE,OW_indexen___màj_aout_2025[OW 103 - Porfierslag - 6/20]<>"",0)),'Materiaalindexen o.w.'!F$33)),NA()) -> 1 | AP127: =IFERROR(IF('Materiaalindexen o.w.'!G33/IF('Materiaalindexen o.w.'!G$33=0,INDEX(OW_indexen___màj_aout_2025[OW 104 - Porfierslag - 2/6],MATCH(TRUE,OW_indexen___màj_aout_2025[OW 104 - Porfierslag - 2/6]<>"",0)),'Materiaalindexen o.w.'!G$33)=0,NA(),'Materiaalindexen o.w.'!G33/IF('Materiaalindexen o.w.'!G$33=0, INDEX(OW_indexen___màj_aout_2025[OW 104 - Porfierslag - 2/6],MATCH(TRUE,OW_indexen___màj_aout_2025[OW 104 - Porfierslag - 2/6]<>"",0)),'Materiaalindexen o.w.'!G$33)),NA()) -> 1 | AQ127: =IFERROR(IF('Materiaalindexen o.w.'!H33/IF('Materiaalindexen o.w.'!H$33=0,INDEX(OW_indexen___màj_aout_2025[OW 105 - Porfierslag - alle kalibers vanaf 12/2023],MATCH(TRUE,OW_indexen___màj_aout_2025[OW 105 - Porfierslag - alle kalibers vanaf 12/2023]<>"",0)),'Materiaalindexen o.w.'!H$33)=0,NA(),'Materiaalindexen o.w.'!H33/IF('Materiaalindexen o.w.'!H$33=0, INDEX(OW_indexen___màj_aout_2025[OW 105 - Porfierslag - alle kalibers vanaf 12/2023],MATCH(TRUE,OW_indexen___màj_aout_2025[OW 105 - Porfierslag - alle kalibers vanaf 12/2023]<>"",0)),'Materiaalindexen o.w.'!H$33)),NA()) ->  | AR127: =IFERROR(IF('Materiaalindexen o.w.'!I33/IF('Materiaalindexen o.w.'!I$33=0,INDEX(OW_indexen___màj_aout_2025[OW 109 - Zandsteenslag - 32/56],MATCH(TRUE,OW_indexen___màj_aout_2025[OW 109 - Zandsteenslag - 32/56]<>"",0)),'Materiaalindexen o.w.'!I$33)=0,NA(),'Materiaalindexen o.w.'!I33/IF('Materiaalindexen o.w.'!I$33=0, INDEX(OW_indexen___màj_aout_2025[OW 109 - Zandsteenslag - 32/56],MATCH(TRUE,OW_indexen___màj_aout_2025[OW 109 - Zandsteenslag - 32/56]<>"",0)),'Materiaalindexen o.w.'!I$33)),NA()) -> 1 | AS127: =IFERROR(IF('Materiaalindexen o.w.'!J33/IF('Materiaalindexen o.w.'!J$33=0,INDEX(OW_indexen___màj_aout_2025[OW 110 - Zandsteenslag - 20/32],MATCH(TRUE,OW_indexen___màj_aout_2025[OW 110 - Zandsteenslag - 20/32]<>"",0)),'Materiaalindexen o.w.'!J$33)=0,NA(),'Materiaalindexen o.w.'!J33/IF('Materiaalindexen o.w.'!J$33=0, INDEX(OW_indexen___màj_aout_2025[OW 110 - Zandsteenslag - 20/32],MATCH(TRUE,OW_indexen___màj_aout_2025[OW 110 - Zandsteenslag - 20/32]<>"",0)),'Materiaalindexen o.w.'!J$33)),NA()) -> 1 | AT127: =IFERROR(IF('Materiaalindexen o.w.'!K33/IF('Materiaalindexen o.w.'!K$33=0,INDEX(OW_indexen___màj_aout_2025[OW 111 - Zandsteenslag - 6/20],MATCH(TRUE,OW_indexen___màj_aout_2025[OW 111 - Zandsteenslag - 6/20]<>"",0)),'Materiaalindexen o.w.'!K$33)=0,NA(),'Materiaalindexen o.w.'!K33/IF('Materiaalindexen o.w.'!K$33=0, INDEX(OW_indexen___màj_aout_2025[OW 111 - Zandsteenslag - 6/20],MATCH(TRUE,OW_indexen___màj_aout_2025[OW 111 - Zandsteenslag - 6/20]<>"",0)),'Materiaalindexen o.w.'!K$33)),NA()) -> 1 | AU127: =IFERROR(IF('Materiaalindexen o.w.'!L33/IF('Materiaalindexen o.w.'!L$33=0,INDEX(OW_indexen___màj_aout_2025[OW 112 - Zandsteenslag - 2/6],MATCH(TRUE,OW_indexen___màj_aout_2025[OW 112 - Zandsteenslag - 2/6]<>"",0)),'Materiaalindexen o.w.'!L$33)=0,NA(),'Materiaalindexen o.w.'!L33/IF('Materiaalindexen o.w.'!L$33=0, INDEX(OW_indexen___màj_aout_2025[OW 112 - Zandsteenslag - 2/6],MATCH(TRUE,OW_indexen___màj_aout_2025[OW 112 - Zandsteenslag - 2/6]<>"",0)),'Materiaalindexen o.w.'!L$33)),NA()) -> 1 | AV127: =IFERROR(IF('Materiaalindexen o.w.'!M33/IF('Materiaalindexen o.w.'!M$33=0,INDEX(OW_indexen___màj_aout_2025[OW 115 - Zandsteenslag - alle kalibers vanaf 12/2023],MATCH(TRUE,OW_indexen___màj_aout_2025[OW 115 - Zandsteenslag - alle kalibers vanaf 12/2023]<>"",0)),'Materiaalindexen o.w.'!M$33)=0,NA(),'Materiaalindexen o.w.'!M33/IF('Materiaalindexen o.w.'!M$33=0, INDEX(OW_indexen___màj_aout_2025[OW 115 - Zandsteenslag - alle kalibers vanaf 12/2023],MATCH(TRUE,OW_indexen___màj_aout_2025[OW 115 - Zandsteenslag - alle kalibers vanaf 12/2023]<>"",0)),'Materiaalindexen o.w.'!M$33)),NA()) ->  | AW127: =IFERROR(IF('Materiaalindexen o.w.'!N33/IF('Materiaalindexen o.w.'!N$33=0,INDEX(OW_indexen___màj_aout_2025[OW 117 - Kalksteen - 20/32],MATCH(TRUE,OW_indexen___màj_aout_2025[OW 117 - Kalksteen - 20/32]<>"",0)),'Materiaalindexen o.w.'!N$33)=0,NA(),'Materiaalindexen o.w.'!N33/IF('Materiaalindexen o.w.'!N$33=0, INDEX(OW_indexen___màj_aout_2025[OW 117 - Kalksteen - 20/32],MATCH(TRUE,OW_indexen___màj_aout_2025[OW 117 - Kalksteen - 20/32]<>"",0)),'Materiaalindexen o.w.'!N$33)),NA()) -> 1 | AX127: =IFERROR(IF('Materiaalindexen o.w.'!O33/IF('Materiaalindexen o.w.'!O$33=0,INDEX(OW_indexen___màj_aout_2025[OW 118 - Kalksteen - 14/20],MATCH(TRUE,OW_indexen___màj_aout_2025[OW 118 - Kalksteen - 14/20]<>"",0)),'Materiaalindexen o.w.'!O$33)=0,NA(),'Materiaalindexen o.w.'!O33/IF('Materiaalindexen o.w.'!O$33=0, INDEX(OW_indexen___màj_aout_2025[OW 118 - Kalksteen - 14/20],MATCH(TRUE,OW_indexen___màj_aout_2025[OW 118 - Kalksteen - 14/20]<>"",0)),'Materiaalindexen o.w.'!O$33)),NA()) -> 1 | AY127: =IFERROR(IF('Materiaalindexen o.w.'!P33/IF('Materiaalindexen o.w.'!P$33=0,INDEX(OW_indexen___màj_aout_2025[OW 119 - Kalksteen - 6/14],MATCH(TRUE,OW_indexen___màj_aout_2025[OW 119 - Kalksteen - 6/14]<>"",0)),'Materiaalindexen o.w.'!P$33)=0,NA(),'Materiaalindexen o.w.'!P33/IF('Materiaalindexen o.w.'!P$33=0, INDEX(OW_indexen___màj_aout_2025[OW 119 - Kalksteen - 6/14],MATCH(TRUE,OW_indexen___màj_aout_2025[OW 119 - Kalksteen - 6/14]<>"",0)),'Materiaalindexen o.w.'!P$33)),NA()) -> 1 | AZ127: =IFERROR(IF('Materiaalindexen o.w.'!Q33/IF('Materiaalindexen o.w.'!Q$33=0,INDEX(OW_indexen___màj_aout_2025[OW 120 - Kalksteen - 2/6],MATCH(TRUE,OW_indexen___màj_aout_2025[OW 120 - Kalksteen - 2/6]<>"",0)),'Materiaalindexen o.w.'!Q$33)=0,NA(),'Materiaalindexen o.w.'!Q33/IF('Materiaalindexen o.w.'!Q$33=0, INDEX(OW_indexen___màj_aout_2025[OW 120 - Kalksteen - 2/6],MATCH(TRUE,OW_indexen___màj_aout_2025[OW 120 - Kalksteen - 2/6]<>"",0)),'Materiaalindexen o.w.'!Q$33)),NA()) -> 1 | BA127: =IFERROR(IF('Materiaalindexen o.w.'!R33/IF('Materiaalindexen o.w.'!R$33=0,INDEX(OW_indexen___màj_aout_2025[OW 121 - Kalksteen - 0/2 - 0/4],MATCH(TRUE,OW_indexen___màj_aout_2025[OW 121 - Kalksteen - 0/2 - 0/4]<>"",0)),'Materiaalindexen o.w.'!R$33)=0,NA(),'Materiaalindexen o.w.'!R33/IF('Materiaalindexen o.w.'!R$33=0, INDEX(OW_indexen___màj_aout_2025[OW 121 - Kalksteen - 0/2 - 0/4],MATCH(TRUE,OW_indexen___màj_aout_2025[OW 121 - Kalksteen - 0/2 - 0/4]<>"",0)),'Materiaalindexen o.w.'!R$33)),NA()) -> 1 | BB127: =IFERROR(IF('Materiaalindexen o.w.'!S33/IF('Materiaalindexen o.w.'!S$33=0,INDEX(OW_indexen___màj_aout_2025[OW 125 - Kalksteen - alle kalibers vanaf 12/2023],MATCH(TRUE,OW_indexen___màj_aout_2025[OW 125 - Kalksteen - alle kalibers vanaf 12/2023]<>"",0)),'Materiaalindexen o.w.'!S$33)=0,NA(),'Materiaalindexen o.w.'!S33/IF('Materiaalindexen o.w.'!S$33=0, INDEX(OW_indexen___màj_aout_2025[OW 125 - Kalksteen - alle kalibers vanaf 12/2023],MATCH(TRUE,OW_indexen___màj_aout_2025[OW 125 - Kalksteen - alle kalibers vanaf 12/2023]<>"",0)),'Materiaalindexen o.w.'!S$33)),NA()) ->  | BC127: =IFERROR(IF('Materiaalindexen o.w.'!T33/IF('Materiaalindexen o.w.'!T$33=0,INDEX(OW_indexen___màj_aout_2025[OW 130 - Binnenlands zand - voor gestabiliseerd zand],MATCH(TRUE,OW_indexen___màj_aout_2025[OW 130 - Binnenlands zand - voor gestabiliseerd zand]<>"",0)),'Materiaalindexen o.w.'!T$33)=0,NA(),'Materiaalindexen o.w.'!T33/IF('Materiaalindexen o.w.'!T$33=0, INDEX(OW_indexen___màj_aout_2025[OW 130 - Binnenlands zand - voor gestabiliseerd zand],MATCH(TRUE,OW_indexen___màj_aout_2025[OW 130 - Binnenlands zand - voor gestabiliseerd zand]<>"",0)),'Materiaalindexen o.w.'!T$33)),NA()) -> 1 | BD127: =IFERROR(IF('Materiaalindexen o.w.'!U33/IF('Materiaalindexen o.w.'!U$33=0,INDEX(OW_indexen___màj_aout_2025[OW 131 - Binnenlands zand - voor beton],MATCH(TRUE,OW_indexen___màj_aout_2025[OW 131 - Binnenlands zand - voor beton]<>"",0)),'Materiaalindexen o.w.'!U$33)=0,NA(),'Materiaalindexen o.w.'!U33/IF('Materiaalindexen o.w.'!U$33=0, INDEX(OW_indexen___màj_aout_2025[OW 131 - Binnenlands zand - voor beton],MATCH(TRUE,OW_indexen___màj_aout_2025[OW 131 - Binnenlands zand - voor beton]<>"",0)),'Materiaalindexen o.w.'!U$33)),NA()) -> 1 | BE127: =IFERROR(IF('Materiaalindexen o.w.'!V33/IF('Materiaalindexen o.w.'!V$33=0,INDEX(OW_indexen___màj_aout_2025[OW 132 - Binnenlands grind - grind 4/28],MATCH(TRUE,OW_indexen___màj_aout_2025[OW 132 - Binnenlands grind - grind 4/28]<>"",0)),'Materiaalindexen o.w.'!V$33)=0,NA(),'Materiaalindexen o.w.'!V33/IF('Materiaalindexen o.w.'!V$33=0, INDEX(OW_indexen___màj_aout_2025[OW 132 - Binnenlands grind - grind 4/28],MATCH(TRUE,OW_indexen___màj_aout_2025[OW 132 - Binnenlands grind - grind 4/28]<>"",0)),'Materiaalindexen o.w.'!V$33)),NA()) -> 1 | BF127: =IFERROR(IF('Materiaalindexen o.w.'!W33/IF('Materiaalindexen o.w.'!W$33=0,INDEX(OW_indexen___màj_aout_2025[OW 133 - Binnenlands grind - zand van de Maas],MATCH(TRUE,OW_indexen___màj_aout_2025[OW 133 - Binnenlands grind - zand van de Maas]<>"",0)),'Materiaalindexen o.w.'!W$33)=0,NA(),'Materiaalindexen o.w.'!W33/IF('Materiaalindexen o.w.'!W$33=0, INDEX(OW_indexen___màj_aout_2025[OW 133 - Binnenlands grind - zand van de Maas],MATCH(TRUE,OW_indexen___màj_aout_2025[OW 133 - Binnenlands grind - zand van de Maas]<>"",0)),'Materiaalindexen o.w.'!W$33)),NA()) -> 1 | BG127: =IFERROR(IF('Materiaalindexen o.w.'!X33/IF('Materiaalindexen o.w.'!X$33=0,INDEX(OW_indexen___màj_aout_2025[OW 134 - Binnenlands grind - gebroken 2/6],MATCH(TRUE,OW_indexen___màj_aout_2025[OW 134 - Binnenlands grind - gebroken 2/6]<>"",0)),'Materiaalindexen o.w.'!X$33)=0,NA(),'Materiaalindexen o.w.'!X33/IF('Materiaalindexen o.w.'!X$33=0, INDEX(OW_indexen___màj_aout_2025[OW 134 - Binnenlands grind - gebroken 2/6],MATCH(TRUE,OW_indexen___màj_aout_2025[OW 134 - Binnenlands grind - gebroken 2/6]<>"",0)),'Materiaalindexen o.w.'!X$33)),NA()) -> 1 | BH127: =IFERROR(IF('Materiaalindexen o.w.'!Y33/IF('Materiaalindexen o.w.'!Y$33=0,INDEX(OW_indexen___màj_aout_2025[OW 135 - Binnenlands grind - gebroken 6/20],MATCH(TRUE,OW_indexen___màj_aout_2025[OW 135 - Binnenlands grind - gebroken 6/20]<>"",0)),'Materiaalindexen o.w.'!Y$33)=0,NA(),'Materiaalindexen o.w.'!Y33/IF('Materiaalindexen o.w.'!Y$33=0, INDEX(OW_indexen___màj_aout_2025[OW 135 - Binnenlands grind - gebroken 6/20],MATCH(TRUE,OW_indexen___màj_aout_2025[OW 135 - Binnenlands grind - gebroken 6/20]<>"",0)),'Materiaalindexen o.w.'!Y$33)),NA()) -> 1 | BI127: =IFERROR(IF('Materiaalindexen o.w.'!Z33/IF('Materiaalindexen o.w.'!Z$33=0,INDEX(OW_indexen___màj_aout_2025[OW 136 - Binnenlands grind - gebroken 2/32],MATCH(TRUE,OW_indexen___màj_aout_2025[OW 136 - Binnenlands grind - gebroken 2/32]<>"",0)),'Materiaalindexen o.w.'!Z$33)=0,NA(),'Materiaalindexen o.w.'!Z33/IF('Materiaalindexen o.w.'!Z$33=0, INDEX(OW_indexen___màj_aout_2025[OW 136 - Binnenlands grind - gebroken 2/32],MATCH(TRUE,OW_indexen___màj_aout_2025[OW 136 - Binnenlands grind - gebroken 2/32]<>"",0)),'Materiaalindexen o.w.'!Z$33)),NA()) -> 1 | BJ127: =IFERROR(IF('Materiaalindexen o.w.'!AA33/IF('Materiaalindexen o.w.'!AA$33=0,INDEX(OW_indexen___màj_aout_2025[OW 137 - Grind Rijnland - kaai Brussel],MATCH(TRUE,OW_indexen___màj_aout_2025[OW 137 - Grind Rijnland - kaai Brussel]<>"",0)),'Materiaalindexen o.w.'!AA$33)=0,NA(),'Materiaalindexen o.w.'!AA33/IF('Materiaalindexen o.w.'!AA$33=0, INDEX(OW_indexen___màj_aout_2025[OW 137 - Grind Rijnland - kaai Brussel],MATCH(TRUE,OW_indexen___màj_aout_2025[OW 137 - Grind Rijnland - kaai Brussel]<>"",0)),'Materiaalindexen o.w.'!AA$33)),NA()) -> 1 | BK127: =IFERROR(IF('Materiaalindexen o.w.'!AB33/IF('Materiaalindexen o.w.'!AB$33=0,INDEX(OW_indexen___màj_aout_2025[OW 137² - Grind Rijnland - kaai Antwerpen],MATCH(TRUE,OW_indexen___màj_aout_2025[OW 137² - Grind Rijnland - kaai Antwerpen]<>"",0)),'Materiaalindexen o.w.'!AB$33)=0,NA(),'Materiaalindexen o.w.'!AB33/IF('Materiaalindexen o.w.'!AB$33=0, INDEX(OW_indexen___màj_aout_2025[OW 137² - Grind Rijnland - kaai Antwerpen],MATCH(TRUE,OW_indexen___màj_aout_2025[OW 137² - Grind Rijnland - kaai Antwerpen]<>"",0)),'Materiaalindexen o.w.'!AB$33)),NA()) -> 1 | BL127: =IFERROR(IF('Materiaalindexen o.w.'!AC33/IF('Materiaalindexen o.w.'!AC$33=0,INDEX(OW_indexen___màj_aout_2025[OW 138 - Rivierzand Waal - kaai Brussel],MATCH(TRUE,OW_indexen___màj_aout_2025[OW 138 - Rivierzand Waal - kaai Brussel]<>"",0)),'Materiaalindexen o.w.'!AC$33)=0,NA(),'Materiaalindexen o.w.'!AC33/IF('Materiaalindexen o.w.'!AC$33=0, INDEX(OW_indexen___màj_aout_2025[OW 138 - Rivierzand Waal - kaai Brussel],MATCH(TRUE,OW_indexen___màj_aout_2025[OW 138 - Rivierzand Waal - kaai Brussel]<>"",0)),'Materiaalindexen o.w.'!AC$33)),NA()) -> 1 | BM127: =IFERROR(IF('Materiaalindexen o.w.'!AD33/IF('Materiaalindexen o.w.'!AD$33=0,INDEX(OW_indexen___màj_aout_2025[OW 138² - Rivierzand Waal - kaai Antwerpen],MATCH(TRUE,OW_indexen___màj_aout_2025[OW 138² - Rivierzand Waal - kaai Antwerpen]<>"",0)),'Materiaalindexen o.w.'!AD$33)=0,NA(),'Materiaalindexen o.w.'!AD33/IF('Materiaalindexen o.w.'!AD$33=0, INDEX(OW_indexen___màj_aout_2025[OW 138² - Rivierzand Waal - kaai Antwerpen],MATCH(TRUE,OW_indexen___màj_aout_2025[OW 138² - Rivierzand Waal - kaai Antwerpen]<>"",0)),'Materiaalindexen o.w.'!AD$33)),NA()) -> 1 | BN127: =IFERROR(IF('Materiaalindexen o.w.'!AE33/IF('Materiaalindexen o.w.'!AE$33=0,INDEX(OW_indexen___màj_aout_2025[OW 140 - Fijn zeezand BCP-NCP],MATCH(TRUE,OW_indexen___màj_aout_2025[OW 140 - Fijn zeezand BCP-NCP]<>"",0)),'Materiaalindexen o.w.'!AE$33)=0,NA(),'Materiaalindexen o.w.'!AE33/IF('Materiaalindexen o.w.'!AE$33=0, INDEX(OW_indexen___màj_aout_2025[OW 140 - Fijn zeezand BCP-NCP],MATCH(TRUE,OW_indexen___màj_aout_2025[OW 140 - Fijn zeezand BCP-NCP]<>"",0)),'Materiaalindexen o.w.'!AE$33)),NA()) ->  | BO127: =IFERROR(IF('Materiaalindexen o.w.'!AF33/IF('Materiaalindexen o.w.'!AF$33=0,INDEX(OW_indexen___màj_aout_2025[OW 141 - Grof zeezand ECP],MATCH(TRUE,OW_indexen___màj_aout_2025[OW 141 - Grof zeezand ECP]<>"",0)),'Materiaalindexen o.w.'!AF$33)=0,NA(),'Materiaalindexen o.w.'!AF33/IF('Materiaalindexen o.w.'!AF$33=0, INDEX(OW_indexen___màj_aout_2025[OW 141 - Grof zeezand ECP],MATCH(TRUE,OW_indexen___màj_aout_2025[OW 141 - Grof zeezand ECP]<>"",0)),'Materiaalindexen o.w.'!AF$33)),NA()) ->  | BP127: =IFERROR(IF('Materiaalindexen o.w.'!AG33/IF('Materiaalindexen o.w.'!AG$33=0,INDEX(OW_indexen___màj_aout_2025[OW 142 - Zeegrind ECP],MATCH(TRUE,OW_indexen___màj_aout_2025[OW 142 - Zeegrind ECP]<>"",0)),'Materiaalindexen o.w.'!AG$33)=0,NA(),'Materiaalindexen o.w.'!AG33/IF('Materiaalindexen o.w.'!AG$33=0, INDEX(OW_indexen___màj_aout_2025[OW 142 - Zeegrind ECP],MATCH(TRUE,OW_indexen___màj_aout_2025[OW 142 - Zeegrind ECP]<>"",0)),'Materiaalindexen o.w.'!AG$33)),NA()) ->  | BQ127: =IFERROR(IF('Materiaalindexen o.w.'!AH33/IF('Materiaalindexen o.w.'!AH$33=0,INDEX(OW_indexen___màj_aout_2025[OW 143 - Belgisch en ingevoerd rivierzand],MATCH(TRUE,OW_indexen___màj_aout_2025[OW 143 - Belgisch en ingevoerd rivierzand]<>"",0)),'Materiaalindexen o.w.'!AH$33)=0,NA(),'Materiaalindexen o.w.'!AH33/IF('Materiaalindexen o.w.'!AH$33=0, INDEX(OW_indexen___màj_aout_2025[OW 143 - Belgisch en ingevoerd rivierzand],MATCH(TRUE,OW_indexen___màj_aout_2025[OW 143 - Belgisch en ingevoerd rivierzand]<>"",0)),'Materiaalindexen o.w.'!AH$33)),NA()) ->  | BR127: =IFERROR(IF('Materiaalindexen o.w.'!AI33/IF('Materiaalindexen o.w.'!AI$33=0,INDEX(OW_indexen___màj_aout_2025[OW 144 - Belgisch en ingevoerd riviergrind],MATCH(TRUE,OW_indexen___màj_aout_2025[OW 144 - Belgisch en ingevoerd riviergrind]<>"",0)),'Materiaalindexen o.w.'!AI$33)=0,NA(),'Materiaalindexen o.w.'!AI33/IF('Materiaalindexen o.w.'!AI$33=0, INDEX(OW_indexen___màj_aout_2025[OW 144 - Belgisch en ingevoerd riviergrind],MATCH(TRUE,OW_indexen___màj_aout_2025[OW 144 - Belgisch en ingevoerd riviergrind]<>"",0)),'Materiaalindexen o.w.'!AI$33)),NA()) ->  | BS127: =IFERROR(IF('Materiaalindexen o.w.'!AJ33/IF('Materiaalindexen o.w.'!AJ$33=0,INDEX(OW_indexen___màj_aout_2025[OW 205 - Koudgewalste dunne platen - 1mm zie OW 234],MATCH(TRUE,OW_indexen___màj_aout_2025[OW 205 - Koudgewalste dunne platen - 1mm zie OW 234]<>"",0)),'Materiaalindexen o.w.'!AJ$33)=0,NA(),'Materiaalindexen o.w.'!AJ33/IF('Materiaalindexen o.w.'!AJ$33=0, INDEX(OW_indexen___màj_aout_2025[OW 205 - Koudgewalste dunne platen - 1mm zie OW 234],MATCH(TRUE,OW_indexen___màj_aout_2025[OW 205 - Koudgewalste dunne platen - 1mm zie OW 234]<>"",0)),'Materiaalindexen o.w.'!AJ$33)),NA()) -> 1 | BT127: =IFERROR(IF('Materiaalindexen o.w.'!AK33/IF('Materiaalindexen o.w.'!AK$33=0,INDEX(OW_indexen___màj_aout_2025[OW 210 - Profielstaal, kwaliteitsstaal - staal AE 355 D zie OW 231],MATCH(TRUE,OW_indexen___màj_aout_2025[OW 210 - Profielstaal, kwaliteitsstaal - staal AE 355 D zie OW 231]<>"",0)),'Materiaalindexen o.w.'!AK$33)=0,NA(),'Materiaalindexen o.w.'!AK33/IF('Materiaalindexen o.w.'!AK$33=0, INDEX(OW_indexen___màj_aout_2025[OW 210 - Profielstaal, kwaliteitsstaal - staal AE 355 D zie OW 231],MATCH(TRUE,OW_indexen___màj_aout_2025[OW 210 - Profielstaal, kwaliteitsstaal - staal AE 355 D zie OW 231]<>"",0)),'Materiaalindexen o.w.'!AK$33)),NA()) -> 1 | BU127: =IFERROR(IF('Materiaalindexen o.w.'!AL33/IF('Materiaalindexen o.w.'!AL$33=0,INDEX(OW_indexen___màj_aout_2025[OW 211 - Staafstaal, andere kwaliteiten - courant staal AE 235 A zie OW 230],MATCH(TRUE,OW_indexen___màj_aout_2025[OW 211 - Staafstaal, andere kwaliteiten - courant staal AE 235 A zie OW 230]<>"",0)),'Materiaalindexen o.w.'!AL$33)=0,NA(),'Materiaalindexen o.w.'!AL33/IF('Materiaalindexen o.w.'!AL$33=0, INDEX(OW_indexen___màj_aout_2025[OW 211 - Staafstaal, andere kwaliteiten - courant staal AE 235 A zie OW 230],MATCH(TRUE,OW_indexen___màj_aout_2025[OW 211 - Staafstaal, andere kwaliteiten - courant staal AE 235 A zie OW 230]<>"",0)),'Materiaalindexen o.w.'!AL$33)),NA()) -> 1 | BV127: =IFERROR(IF('Materiaalindexen o.w.'!AM33/IF('Materiaalindexen o.w.'!AM$33=0,INDEX(OW_indexen___màj_aout_2025[OW 212 - Dikke platen, kwaliteitsstaal - staal AE 355 D zie OW 232],MATCH(TRUE,OW_indexen___màj_aout_2025[OW 212 - Dikke platen, kwaliteitsstaal - staal AE 355 D zie OW 232]<>"",0)),'Materiaalindexen o.w.'!AM$33)=0,NA(),'Materiaalindexen o.w.'!AM33/IF('Materiaalindexen o.w.'!AM$33=0, INDEX(OW_indexen___màj_aout_2025[OW 212 - Dikke platen, kwaliteitsstaal - staal AE 355 D zie OW 232],MATCH(TRUE,OW_indexen___màj_aout_2025[OW 212 - Dikke platen, kwaliteitsstaal - staal AE 355 D zie OW 232]<>"",0)),'Materiaalindexen o.w.'!AM$33)),NA()) -> 1 | BW127: =IFERROR(IF('Materiaalindexen o.w.'!AN33/IF('Materiaalindexen o.w.'!AN$33=0,INDEX(OW_indexen___màj_aout_2025[OW 213 - Profielstaal, kwaliteitsstaal - staal AE 235 C zie OW 231],MATCH(TRUE,OW_indexen___màj_aout_2025[OW 213 - Profielstaal, kwaliteitsstaal - staal AE 235 C zie OW 231]<>"",0)),'Materiaalindexen o.w.'!AN$33)=0,NA(),'Materiaalindexen o.w.'!AN33/IF('Materiaalindexen o.w.'!AN$33=0, INDEX(OW_indexen___màj_aout_2025[OW 213 - Profielstaal, kwaliteitsstaal - staal AE 235 C zie OW 231],MATCH(TRUE,OW_indexen___màj_aout_2025[OW 213 - Profielstaal, kwaliteitsstaal - staal AE 235 C zie OW 231]<>"",0)),'Materiaalindexen o.w.'!AN$33)),NA()) -> 1 | BX127: =IFERROR(IF('Materiaalindexen o.w.'!AO33/IF('Materiaalindexen o.w.'!AO$33=0,INDEX(OW_indexen___màj_aout_2025[OW 215 - Dikke platen, kwaliteitsstaal - staal AE 235 A zie OW 232],MATCH(TRUE,OW_indexen___màj_aout_2025[OW 215 - Dikke platen, kwaliteitsstaal - staal AE 235 A zie OW 232]<>"",0)),'Materiaalindexen o.w.'!AO$33)=0,NA(),'Materiaalindexen o.w.'!AO33/IF('Materiaalindexen o.w.'!AO$33=0, INDEX(OW_indexen___màj_aout_2025[OW 215 - Dikke platen, kwaliteitsstaal - staal AE 235 A zie OW 232],MATCH(TRUE,OW_indexen___màj_aout_2025[OW 215 - Dikke platen, kwaliteitsstaal - staal AE 235 A zie OW 232]<>"",0)),'Materiaalindexen o.w.'!AO$33)),NA()) -> 1 | BY127: =IFERROR(IF('Materiaalindexen o.w.'!AP33/IF('Materiaalindexen o.w.'!AP$33=0,INDEX(OW_indexen___màj_aout_2025[OW 216 - platen gemiddeldes - courant staal A320 zie OW 232],MATCH(TRUE,OW_indexen___màj_aout_2025[OW 216 - platen gemiddeldes - courant staal A320 zie OW 232]<>"",0)),'Materiaalindexen o.w.'!AP$33)=0,NA(),'Materiaalindexen o.w.'!AP33/IF('Materiaalindexen o.w.'!AP$33=0, INDEX(OW_indexen___màj_aout_2025[OW 216 - platen gemiddeldes - courant staal A320 zie OW 232],MATCH(TRUE,OW_indexen___màj_aout_2025[OW 216 - platen gemiddeldes - courant staal A320 zie OW 232]<>"",0)),'Materiaalindexen o.w.'!AP$33)),NA()) -> 1 | BZ127: =IFERROR(IF('Materiaalindexen o.w.'!AQ33/IF('Materiaalindexen o.w.'!AQ$33=0,INDEX(OW_indexen___màj_aout_2025[OW 217 - Profielstaal, kwaliteitsstaal - courant staal AE 235 A zie OW 231],MATCH(TRUE,OW_indexen___màj_aout_2025[OW 217 - Profielstaal, kwaliteitsstaal - courant staal AE 235 A zie OW 231]<>"",0)),'Materiaalindexen o.w.'!AQ$33)=0,NA(),'Materiaalindexen o.w.'!AQ33/IF('Materiaalindexen o.w.'!AQ$33=0, INDEX(OW_indexen___màj_aout_2025[OW 217 - Profielstaal, kwaliteitsstaal - courant staal AE 235 A zie OW 231],MATCH(TRUE,OW_indexen___màj_aout_2025[OW 217 - Profielstaal, kwaliteitsstaal - courant staal AE 235 A zie OW 231]<>"",0)),'Materiaalindexen o.w.'!AQ$33)),NA()) -> 1 | CA127: =IFERROR(IF('Materiaalindexen o.w.'!AR33/IF('Materiaalindexen o.w.'!AR$33=0,INDEX(OW_indexen___màj_aout_2025[OW 218 - betonijzer - BE 500 grof],MATCH(TRUE,OW_indexen___màj_aout_2025[OW 218 - betonijzer - BE 500 grof]<>"",0)),'Materiaalindexen o.w.'!AR$33)=0,NA(),'Materiaalindexen o.w.'!AR33/IF('Materiaalindexen o.w.'!AR$33=0, INDEX(OW_indexen___màj_aout_2025[OW 218 - betonijzer - BE 500 grof],MATCH(TRUE,OW_indexen___màj_aout_2025[OW 218 - betonijzer - BE 500 grof]<>"",0)),'Materiaalindexen o.w.'!AR$33)),NA()) -> 1 | CB127: =IFERROR(IF('Materiaalindexen o.w.'!AS33/IF('Materiaalindexen o.w.'!AS$33=0,INDEX(OW_indexen___màj_aout_2025[OW 219 - Staafstaal, andere kwaliteiten - staal AE 355 C zie OW 230],MATCH(TRUE,OW_indexen___màj_aout_2025[OW 219 - Staafstaal, andere kwaliteiten - staal AE 355 C zie OW 230]<>"",0)),'Materiaalindexen o.w.'!AS$33)=0,NA(),'Materiaalindexen o.w.'!AS33/IF('Materiaalindexen o.w.'!AS$33=0, INDEX(OW_indexen___màj_aout_2025[OW 219 - Staafstaal, andere kwaliteiten - staal AE 355 C zie OW 230],MATCH(TRUE,OW_indexen___màj_aout_2025[OW 219 - Staafstaal, andere kwaliteiten - staal AE 355 C zie OW 230]<>"",0)),'Materiaalindexen o.w.'!AS$33)),NA()) -> 1 | CC127: =IFERROR(IF('Materiaalindexen o.w.'!AT33/IF('Materiaalindexen o.w.'!AT$33=0,INDEX(OW_indexen___màj_aout_2025[OW 220 - Dikke platen, kwaliteitsstaal - courant staal A 320 zie OW 232],MATCH(TRUE,OW_indexen___màj_aout_2025[OW 220 - Dikke platen, kwaliteitsstaal - courant staal A 320 zie OW 232]<>"",0)),'Materiaalindexen o.w.'!AT$33)=0,NA(),'Materiaalindexen o.w.'!AT33/IF('Materiaalindexen o.w.'!AT$33=0, INDEX(OW_indexen___màj_aout_2025[OW 220 - Dikke platen, kwaliteitsstaal - courant staal A 320 zie OW 232],MATCH(TRUE,OW_indexen___màj_aout_2025[OW 220 - Dikke platen, kwaliteitsstaal - courant staal A 320 zie OW 232]<>"",0)),'Materiaalindexen o.w.'!AT$33)),NA()) -> 1 | CD127: =IFERROR(IF('Materiaalindexen o.w.'!AU33/IF('Materiaalindexen o.w.'!AU$33=0,INDEX(OW_indexen___màj_aout_2025[OW 221 - Warmgewalste dunne platen - courant staal A 320 - 1,5 mm zie OW 233],MATCH(TRUE,OW_indexen___màj_aout_2025[OW 221 - Warmgewalste dunne platen - courant staal A 320 - 1,5 mm zie OW 233]<>"",0)),'Materiaalindexen o.w.'!AU$33)=0,NA(),'Materiaalindexen o.w.'!AU33/IF('Materiaalindexen o.w.'!AU$33=0, INDEX(OW_indexen___màj_aout_2025[OW 221 - Warmgewalste dunne platen - courant staal A 320 - 1,5 mm zie OW 233],MATCH(TRUE,OW_indexen___màj_aout_2025[OW 221 - Warmgewalste dunne platen - courant staal A 320 - 1,5 mm zie OW 233]<>"",0)),'Materiaalindexen o.w.'!AU$33)),NA()) -> 1 | CE127: =IFERROR(IF('Materiaalindexen o.w.'!AV33/IF('Materiaalindexen o.w.'!AV$33=0,INDEX(OW_indexen___màj_aout_2025[OW 222 - Warmgewalste dunne platen - courant staal A 320 - 2 mm zie OW 233],MATCH(TRUE,OW_indexen___màj_aout_2025[OW 222 - Warmgewalste dunne platen - courant staal A 320 - 2 mm zie OW 233]<>"",0)),'Materiaalindexen o.w.'!AV$33)=0,NA(),'Materiaalindexen o.w.'!AV33/IF('Materiaalindexen o.w.'!AV$33=0, INDEX(OW_indexen___màj_aout_2025[OW 222 - Warmgewalste dunne platen - courant staal A 320 - 2 mm zie OW 233],MATCH(TRUE,OW_indexen___màj_aout_2025[OW 222 - Warmgewalste dunne platen - courant staal A 320 - 2 mm zie OW 233]<>"",0)),'Materiaalindexen o.w.'!AV$33)),NA()) -> 1 | CF127: =IFERROR(IF('Materiaalindexen o.w.'!AW33/IF('Materiaalindexen o.w.'!AW$33=0,INDEX(OW_indexen___màj_aout_2025[OW 223 - Warmgewalste dunne platen - courant staal A 320 - 2,75 mm zie OW 233],MATCH(TRUE,OW_indexen___màj_aout_2025[OW 223 - Warmgewalste dunne platen - courant staal A 320 - 2,75 mm zie OW 233]<>"",0)),'Materiaalindexen o.w.'!AW$33)=0,NA(),'Materiaalindexen o.w.'!AW33/IF('Materiaalindexen o.w.'!AW$33=0, INDEX(OW_indexen___màj_aout_2025[OW 223 - Warmgewalste dunne platen - courant staal A 320 - 2,75 mm zie OW 233],MATCH(TRUE,OW_indexen___màj_aout_2025[OW 223 - Warmgewalste dunne platen - courant staal A 320 - 2,75 mm zie OW 233]<>"",0)),'Materiaalindexen o.w.'!AW$33)),NA()) -> 1 | CG127: =IFERROR(IF('Materiaalindexen o.w.'!AX33/IF('Materiaalindexen o.w.'!AX$33=0,INDEX(OW_indexen___màj_aout_2025[OW 224 - betonijzer - diam. 10 tot 40 mm],MATCH(TRUE,OW_indexen___màj_aout_2025[OW 224 - betonijzer - diam. 10 tot 40 mm]<>"",0)),'Materiaalindexen o.w.'!AX$33)=0,NA(),'Materiaalindexen o.w.'!AX33/IF('Materiaalindexen o.w.'!AX$33=0, INDEX(OW_indexen___màj_aout_2025[OW 224 - betonijzer - diam. 10 tot 40 mm],MATCH(TRUE,OW_indexen___màj_aout_2025[OW 224 - betonijzer - diam. 10 tot 40 mm]<>"",0)),'Materiaalindexen o.w.'!AX$33)),NA()) -> 1 | CH127: =IFERROR(IF('Materiaalindexen o.w.'!AY33/IF('Materiaalindexen o.w.'!AY$33=0,INDEX(OW_indexen___màj_aout_2025[OW 226 - Damplanken - profielen AZ 18 - PAE 320],MATCH(TRUE,OW_indexen___màj_aout_2025[OW 226 - Damplanken - profielen AZ 18 - PAE 320]<>"",0)),'Materiaalindexen o.w.'!AY$33)=0,NA(),'Materiaalindexen o.w.'!AY33/IF('Materiaalindexen o.w.'!AY$33=0, INDEX(OW_indexen___màj_aout_2025[OW 226 - Damplanken - profielen AZ 18 - PAE 320],MATCH(TRUE,OW_indexen___màj_aout_2025[OW 226 - Damplanken - profielen AZ 18 - PAE 320]<>"",0)),'Materiaalindexen o.w.'!AY$33)),NA()) -> 1 | CI127: =IFERROR(IF('Materiaalindexen o.w.'!AZ33/IF('Materiaalindexen o.w.'!AZ$33=0,INDEX(OW_indexen___màj_aout_2025[OW 227 - vormgietijzer -],MATCH(TRUE,OW_indexen___màj_aout_2025[OW 227 - vormgietijzer -]<>"",0)),'Materiaalindexen o.w.'!AZ$33)=0,NA(),'Materiaalindexen o.w.'!AZ33/IF('Materiaalindexen o.w.'!AZ$33=0, INDEX(OW_indexen___màj_aout_2025[OW 227 - vormgietijzer -],MATCH(TRUE,OW_indexen___màj_aout_2025[OW 227 - vormgietijzer -]<>"",0)),'Materiaalindexen o.w.'!AZ$33)),NA()) -> 1 | CJ127: =IFERROR(IF('Materiaalindexen o.w.'!BA33/IF('Materiaalindexen o.w.'!BA$33=0,INDEX(OW_indexen___màj_aout_2025[OW 230 - Staal - Handelsstaal vanaf 12/2023],MATCH(TRUE,OW_indexen___màj_aout_2025[OW 230 - Staal - Handelsstaal vanaf 12/2023]<>"",0)),'Materiaalindexen o.w.'!BA$33)=0,NA(),'Materiaalindexen o.w.'!BA33/IF('Materiaalindexen o.w.'!BA$33=0, INDEX(OW_indexen___màj_aout_2025[OW 230 - Staal - Handelsstaal vanaf 12/2023],MATCH(TRUE,OW_indexen___màj_aout_2025[OW 230 - Staal - Handelsstaal vanaf 12/2023]<>"",0)),'Materiaalindexen o.w.'!BA$33)),NA()) ->  | CK127: =IFERROR(IF('Materiaalindexen o.w.'!BB33/IF('Materiaalindexen o.w.'!BB$33=0,INDEX(OW_indexen___màj_aout_2025[OW 231 - Staal - H-balken vanaf 12/2023],MATCH(TRUE,OW_indexen___màj_aout_2025[OW 231 - Staal - H-balken vanaf 12/2023]<>"",0)),'Materiaalindexen o.w.'!BB$33)=0,NA(),'Materiaalindexen o.w.'!BB33/IF('Materiaalindexen o.w.'!BB$33=0, INDEX(OW_indexen___màj_aout_2025[OW 231 - Staal - H-balken vanaf 12/2023],MATCH(TRUE,OW_indexen___màj_aout_2025[OW 231 - Staal - H-balken vanaf 12/2023]<>"",0)),'Materiaalindexen o.w.'!BB$33)),NA()) ->  | CL127: =IFERROR(IF('Materiaalindexen o.w.'!BC33/IF('Materiaalindexen o.w.'!BC$33=0,INDEX(OW_indexen___màj_aout_2025[OW 232 - Staal - Plaatstaal vanaf 12/2023],MATCH(TRUE,OW_indexen___màj_aout_2025[OW 232 - Staal - Plaatstaal vanaf 12/2023]<>"",0)),'Materiaalindexen o.w.'!BC$33)=0,NA(),'Materiaalindexen o.w.'!BC33/IF('Materiaalindexen o.w.'!BC$33=0, INDEX(OW_indexen___màj_aout_2025[OW 232 - Staal - Plaatstaal vanaf 12/2023],MATCH(TRUE,OW_indexen___màj_aout_2025[OW 232 - Staal - Plaatstaal vanaf 12/2023]<>"",0)),'Materiaalindexen o.w.'!BC$33)),NA()) ->  | CM127: =IFERROR(IF('Materiaalindexen o.w.'!BD33/IF('Materiaalindexen o.w.'!BD$33=0,INDEX(OW_indexen___màj_aout_2025[OW 233 - Staal - Warmgewalste rollen vanaf 12/2023],MATCH(TRUE,OW_indexen___màj_aout_2025[OW 233 - Staal - Warmgewalste rollen vanaf 12/2023]<>"",0)),'Materiaalindexen o.w.'!BD$33)=0,NA(),'Materiaalindexen o.w.'!BD33/IF('Materiaalindexen o.w.'!BD$33=0, INDEX(OW_indexen___màj_aout_2025[OW 233 - Staal - Warmgewalste rollen vanaf 12/2023],MATCH(TRUE,OW_indexen___màj_aout_2025[OW 233 - Staal - Warmgewalste rollen vanaf 12/2023]<>"",0)),'Materiaalindexen o.w.'!BD$33)),NA()) ->  | CN127: =IFERROR(IF('Materiaalindexen o.w.'!BE33/IF('Materiaalindexen o.w.'!BE$33=0,INDEX(OW_indexen___màj_aout_2025[OW 234 - Staal - Koudgewalste rollen vanaf 12/2023],MATCH(TRUE,OW_indexen___màj_aout_2025[OW 234 - Staal - Koudgewalste rollen vanaf 12/2023]<>"",0)),'Materiaalindexen o.w.'!BE$33)=0,NA(),'Materiaalindexen o.w.'!BE33/IF('Materiaalindexen o.w.'!BE$33=0, INDEX(OW_indexen___màj_aout_2025[OW 234 - Staal - Koudgewalste rollen vanaf 12/2023],MATCH(TRUE,OW_indexen___màj_aout_2025[OW 234 - Staal - Koudgewalste rollen vanaf 12/2023]<>"",0)),'Materiaalindexen o.w.'!BE$33)),NA()) ->  | CO127: =IFERROR(IF('Materiaalindexen o.w.'!BF33/IF('Materiaalindexen o.w.'!BF$33=0,INDEX(OW_indexen___màj_aout_2025[OW 235 - Staal - Verzinkt vanaf 12/2023],MATCH(TRUE,OW_indexen___màj_aout_2025[OW 235 - Staal - Verzinkt vanaf 12/2023]<>"",0)),'Materiaalindexen o.w.'!BF$33)=0,NA(),'Materiaalindexen o.w.'!BF33/IF('Materiaalindexen o.w.'!BF$33=0, INDEX(OW_indexen___màj_aout_2025[OW 235 - Staal - Verzinkt vanaf 12/2023],MATCH(TRUE,OW_indexen___màj_aout_2025[OW 235 - Staal - Verzinkt vanaf 12/2023]<>"",0)),'Materiaalindexen o.w.'!BF$33)),NA()) ->  | CP127: =IFERROR(IF('Materiaalindexen o.w.'!BG33/IF('Materiaalindexen o.w.'!BG$33=0,INDEX(OW_indexen___màj_aout_2025[OW 236 - 304 roestvrij staal - koudgewalste coils vanaf 12/2023],MATCH(TRUE,OW_indexen___màj_aout_2025[OW 236 - 304 roestvrij staal - koudgewalste coils vanaf 12/2023]<>"",0)),'Materiaalindexen o.w.'!BG$33)=0,NA(),'Materiaalindexen o.w.'!BG33/IF('Materiaalindexen o.w.'!BG$33=0, INDEX(OW_indexen___màj_aout_2025[OW 236 - 304 roestvrij staal - koudgewalste coils vanaf 12/2023],MATCH(TRUE,OW_indexen___màj_aout_2025[OW 236 - 304 roestvrij staal - koudgewalste coils vanaf 12/2023]<>"",0)),'Materiaalindexen o.w.'!BG$33)),NA()) ->  | CQ127: =IFERROR(IF('Materiaalindexen o.w.'!BH33/IF('Materiaalindexen o.w.'!BH$33=0,INDEX(OW_indexen___màj_aout_2025[OW 259 - lood - onbehandeld],MATCH(TRUE,OW_indexen___màj_aout_2025[OW 259 - lood - onbehandeld]<>"",0)),'Materiaalindexen o.w.'!BH$33)=0,NA(),'Materiaalindexen o.w.'!BH33/IF('Materiaalindexen o.w.'!BH$33=0, INDEX(OW_indexen___màj_aout_2025[OW 259 - lood - onbehandeld],MATCH(TRUE,OW_indexen___màj_aout_2025[OW 259 - lood - onbehandeld]<>"",0)),'Materiaalindexen o.w.'!BH$33)),NA()) -> 1 | CR127: =IFERROR(IF('Materiaalindexen o.w.'!BI33/IF('Materiaalindexen o.w.'!BI$33=0,INDEX(OW_indexen___màj_aout_2025[OW 260 - Elektrolytisch koper - onbehandeld zie OW 260 bis],MATCH(TRUE,OW_indexen___màj_aout_2025[OW 260 - Elektrolytisch koper - onbehandeld zie OW 260 bis]<>"",0)),'Materiaalindexen o.w.'!BI$33)=0,NA(),'Materiaalindexen o.w.'!BI33/IF('Materiaalindexen o.w.'!BI$33=0, INDEX(OW_indexen___màj_aout_2025[OW 260 - Elektrolytisch koper - onbehandeld zie OW 260 bis],MATCH(TRUE,OW_indexen___màj_aout_2025[OW 260 - Elektrolytisch koper - onbehandeld zie OW 260 bis]<>"",0)),'Materiaalindexen o.w.'!BI$33)),NA()) -> 1 | CS127: =IFERROR(IF('Materiaalindexen o.w.'!BJ33/IF('Materiaalindexen o.w.'!BJ$33=0,INDEX(OW_indexen___màj_aout_2025[OW 260 bis - koper - ruw],MATCH(TRUE,OW_indexen___màj_aout_2025[OW 260 bis - koper - ruw]<>"",0)),'Materiaalindexen o.w.'!BJ$33)=0,NA(),'Materiaalindexen o.w.'!BJ33/IF('Materiaalindexen o.w.'!BJ$33=0, INDEX(OW_indexen___màj_aout_2025[OW 260 bis - koper - ruw],MATCH(TRUE,OW_indexen___màj_aout_2025[OW 260 bis - koper - ruw]<>"",0)),'Materiaalindexen o.w.'!BJ$33)),NA()) -> 1 | CT127: =IFERROR(IF('Materiaalindexen o.w.'!BK33/IF('Materiaalindexen o.w.'!BK$33=0,INDEX(OW_indexen___màj_aout_2025[OW 261 - zink - onbehandeld zie OW 261 bis],MATCH(TRUE,OW_indexen___màj_aout_2025[OW 261 - zink - onbehandeld zie OW 261 bis]<>"",0)),'Materiaalindexen o.w.'!BK$33)=0,NA(),'Materiaalindexen o.w.'!BK33/IF('Materiaalindexen o.w.'!BK$33=0, INDEX(OW_indexen___màj_aout_2025[OW 261 - zink - onbehandeld zie OW 261 bis],MATCH(TRUE,OW_indexen___màj_aout_2025[OW 261 - zink - onbehandeld zie OW 261 bis]<>"",0)),'Materiaalindexen o.w.'!BK$33)),NA()) -> 1 | CU127: =IFERROR(IF('Materiaalindexen o.w.'!BL33/IF('Materiaalindexen o.w.'!BL$33=0,INDEX(OW_indexen___màj_aout_2025[OW 261 bis - ruw zink],MATCH(TRUE,OW_indexen___màj_aout_2025[OW 261 bis - ruw zink]<>"",0)),'Materiaalindexen o.w.'!BL$33)=0,NA(),'Materiaalindexen o.w.'!BL33/IF('Materiaalindexen o.w.'!BL$33=0, INDEX(OW_indexen___màj_aout_2025[OW 261 bis - ruw zink],MATCH(TRUE,OW_indexen___màj_aout_2025[OW 261 bis - ruw zink]<>"",0)),'Materiaalindexen o.w.'!BL$33)),NA()) -> 1 | CV127: =IFERROR(IF('Materiaalindexen o.w.'!BM33/IF('Materiaalindexen o.w.'!BM$33=0,INDEX(OW_indexen___màj_aout_2025[OW 262 - aluminium - onbehandeld zie OW 262 ter],MATCH(TRUE,OW_indexen___màj_aout_2025[OW 262 - aluminium - onbehandeld zie OW 262 ter]<>"",0)),'Materiaalindexen o.w.'!BM$33)=0,NA(),'Materiaalindexen o.w.'!BM33/IF('Materiaalindexen o.w.'!BM$33=0, INDEX(OW_indexen___màj_aout_2025[OW 262 - aluminium - onbehandeld zie OW 262 ter],MATCH(TRUE,OW_indexen___màj_aout_2025[OW 262 - aluminium - onbehandeld zie OW 262 ter]<>"",0)),'Materiaalindexen o.w.'!BM$33)),NA()) -> 1 | CW127: =IFERROR(IF('Materiaalindexen o.w.'!BN33/IF('Materiaalindexen o.w.'!BN$33=0,INDEX(OW_indexen___màj_aout_2025[OW 262 bis - aluminium - brut],MATCH(TRUE,OW_indexen___màj_aout_2025[OW 262 bis - aluminium - brut]<>"",0)),'Materiaalindexen o.w.'!BN$33)=0,NA(),'Materiaalindexen o.w.'!BN33/IF('Materiaalindexen o.w.'!BN$33=0, INDEX(OW_indexen___màj_aout_2025[OW 262 bis - aluminium - brut],MATCH(TRUE,OW_indexen___màj_aout_2025[OW 262 bis - aluminium - brut]<>"",0)),'Materiaalindexen o.w.'!BN$33)),NA()) -> 1 | CX127: =IFERROR(IF('Materiaalindexen o.w.'!BO33/IF('Materiaalindexen o.w.'!BO$33=0,INDEX(OW_indexen___màj_aout_2025[OW 262 ter - aluminiumplaten vanaf 12/2023],MATCH(TRUE,OW_indexen___màj_aout_2025[OW 262 ter - aluminiumplaten vanaf 12/2023]<>"",0)),'Materiaalindexen o.w.'!BO$33)=0,NA(),'Materiaalindexen o.w.'!BO33/IF('Materiaalindexen o.w.'!BO$33=0, INDEX(OW_indexen___màj_aout_2025[OW 262 ter - aluminiumplaten vanaf 12/2023],MATCH(TRUE,OW_indexen___màj_aout_2025[OW 262 ter - aluminiumplaten vanaf 12/2023]<>"",0)),'Materiaalindexen o.w.'!BO$33)),NA()) ->  | CY127: =IFERROR(IF('Materiaalindexen o.w.'!BP33/IF('Materiaalindexen o.w.'!BP$33=0,INDEX(OW_indexen___màj_aout_2025[OW 263 - ruw nikkel],MATCH(TRUE,OW_indexen___màj_aout_2025[OW 263 - ruw nikkel]<>"",0)),'Materiaalindexen o.w.'!BP$33)=0,NA(),'Materiaalindexen o.w.'!BP33/IF('Materiaalindexen o.w.'!BP$33=0, INDEX(OW_indexen___màj_aout_2025[OW 263 - ruw nikkel],MATCH(TRUE,OW_indexen___màj_aout_2025[OW 263 - ruw nikkel]<>"",0)),'Materiaalindexen o.w.'!BP$33)),NA()) -> 1 | CZ127: =IFERROR(IF('Materiaalindexen o.w.'!BQ33/IF('Materiaalindexen o.w.'!BQ$33=0,INDEX(OW_indexen___màj_aout_2025[OW 339 - Gezaagd inlands naaldhout - epicea inlands - 2½ x 7],MATCH(TRUE,OW_indexen___màj_aout_2025[OW 339 - Gezaagd inlands naaldhout - epicea inlands - 2½ x 7]<>"",0)),'Materiaalindexen o.w.'!BQ$33)=0,NA(),'Materiaalindexen o.w.'!BQ33/IF('Materiaalindexen o.w.'!BQ$33=0, INDEX(OW_indexen___màj_aout_2025[OW 339 - Gezaagd inlands naaldhout - epicea inlands - 2½ x 7],MATCH(TRUE,OW_indexen___màj_aout_2025[OW 339 - Gezaagd inlands naaldhout - epicea inlands - 2½ x 7]<>"",0)),'Materiaalindexen o.w.'!BQ$33)),NA()) -> 1 | DA127: =IFERROR(IF('Materiaalindexen o.w.'!BR33/IF('Materiaalindexen o.w.'!BR$33=0,INDEX(OW_indexen___màj_aout_2025[OW 340 - Gezaagd inlands naaldhout - epicea inlands - 4/4 x 4],MATCH(TRUE,OW_indexen___màj_aout_2025[OW 340 - Gezaagd inlands naaldhout - epicea inlands - 4/4 x 4]<>"",0)),'Materiaalindexen o.w.'!BR$33)=0,NA(),'Materiaalindexen o.w.'!BR33/IF('Materiaalindexen o.w.'!BR$33=0, INDEX(OW_indexen___màj_aout_2025[OW 340 - Gezaagd inlands naaldhout - epicea inlands - 4/4 x 4],MATCH(TRUE,OW_indexen___màj_aout_2025[OW 340 - Gezaagd inlands naaldhout - epicea inlands - 4/4 x 4]<>"",0)),'Materiaalindexen o.w.'!BR$33)),NA()) -> 1 | DB127: =IFERROR(IF('Materiaalindexen o.w.'!BS33/IF('Materiaalindexen o.w.'!BS$33=0,INDEX(OW_indexen___màj_aout_2025[OW 341 - Gezaagd naaldhout Noorse grenen - noorse berd - 2½ x 7],MATCH(TRUE,OW_indexen___màj_aout_2025[OW 341 - Gezaagd naaldhout Noorse grenen - noorse berd - 2½ x 7]<>"",0)),'Materiaalindexen o.w.'!BS$33)=0,NA(),'Materiaalindexen o.w.'!BS33/IF('Materiaalindexen o.w.'!BS$33=0, INDEX(OW_indexen___màj_aout_2025[OW 341 - Gezaagd naaldhout Noorse grenen - noorse berd - 2½ x 7],MATCH(TRUE,OW_indexen___màj_aout_2025[OW 341 - Gezaagd naaldhout Noorse grenen - noorse berd - 2½ x 7]<>"",0)),'Materiaalindexen o.w.'!BS$33)),NA()) -> 1 | DC127: =IFERROR(IF('Materiaalindexen o.w.'!BT33/IF('Materiaalindexen o.w.'!BT$33=0,INDEX(OW_indexen___màj_aout_2025[OW 342 - Gezaagd naaldhout Noorse grenen - noorse berd - 4/4 x 4],MATCH(TRUE,OW_indexen___màj_aout_2025[OW 342 - Gezaagd naaldhout Noorse grenen - noorse berd - 4/4 x 4]<>"",0)),'Materiaalindexen o.w.'!BT$33)=0,NA(),'Materiaalindexen o.w.'!BT33/IF('Materiaalindexen o.w.'!BT$33=0, INDEX(OW_indexen___màj_aout_2025[OW 342 - Gezaagd naaldhout Noorse grenen - noorse berd - 4/4 x 4],MATCH(TRUE,OW_indexen___màj_aout_2025[OW 342 - Gezaagd naaldhout Noorse grenen - noorse berd - 4/4 x 4]<>"",0)),'Materiaalindexen o.w.'!BT$33)),NA()) -> 1 | DD127: =IFERROR(IF('Materiaalindexen o.w.'!BU33/IF('Materiaalindexen o.w.'!BU$33=0,INDEX(OW_indexen___màj_aout_2025[OW 442 - geperforeerde bouwblokken - L : 290 / b : 140 /h : 90],MATCH(TRUE,OW_indexen___màj_aout_2025[OW 442 - geperforeerde bouwblokken - L : 290 / b : 140 /h : 90]<>"",0)),'Materiaalindexen o.w.'!BU$33)=0,NA(),'Materiaalindexen o.w.'!BU33/IF('Materiaalindexen o.w.'!BU$33=0, INDEX(OW_indexen___màj_aout_2025[OW 442 - geperforeerde bouwblokken - L : 290 / b : 140 /h : 90],MATCH(TRUE,OW_indexen___màj_aout_2025[OW 442 - geperforeerde bouwblokken - L : 290 / b : 140 /h : 90]<>"",0)),'Materiaalindexen o.w.'!BU$33)),NA()) -> 1 | DE127: =IFERROR(IF('Materiaalindexen o.w.'!BV33/IF('Materiaalindexen o.w.'!BV$33=0,INDEX(OW_indexen___màj_aout_2025[OW 443 - geperforeerde bouwblokken - L : 290 / b : 140 / h : 140],MATCH(TRUE,OW_indexen___màj_aout_2025[OW 443 - geperforeerde bouwblokken - L : 290 / b : 140 / h : 140]<>"",0)),'Materiaalindexen o.w.'!BV$33)=0,NA(),'Materiaalindexen o.w.'!BV33/IF('Materiaalindexen o.w.'!BV$33=0, INDEX(OW_indexen___màj_aout_2025[OW 443 - geperforeerde bouwblokken - L : 290 / b : 140 / h : 140],MATCH(TRUE,OW_indexen___màj_aout_2025[OW 443 - geperforeerde bouwblokken - L : 290 / b : 140 / h : 140]<>"",0)),'Materiaalindexen o.w.'!BV$33)),NA()) -> 1 | DF127: =IFERROR(IF('Materiaalindexen o.w.'!BW33/IF('Materiaalindexen o.w.'!BW$33=0,INDEX(OW_indexen___màj_aout_2025[OW 445 - bakstenen - West-Vl. + Doornik - L : 190 / b : 09 / h : 65],MATCH(TRUE,OW_indexen___màj_aout_2025[OW 445 - bakstenen - West-Vl. + Doornik - L : 190 / b : 09 / h : 65]<>"",0)),'Materiaalindexen o.w.'!BW$33)=0,NA(),'Materiaalindexen o.w.'!BW33/IF('Materiaalindexen o.w.'!BW$33=0, INDEX(OW_indexen___màj_aout_2025[OW 445 - bakstenen - West-Vl. + Doornik - L : 190 / b : 09 / h : 65],MATCH(TRUE,OW_indexen___màj_aout_2025[OW 445 - bakstenen - West-Vl. + Doornik - L : 190 / b : 09 / h : 65]<>"",0)),'Materiaalindexen o.w.'!BW$33)),NA()) -> 1 | DG127: =IFERROR(IF('Materiaalindexen o.w.'!BX33/IF('Materiaalindexen o.w.'!BX$33=0,INDEX(OW_indexen___màj_aout_2025[OW 448 - bakstenen - gevelstenen : L : 190 / b : 90 / h : 50],MATCH(TRUE,OW_indexen___màj_aout_2025[OW 448 - bakstenen - gevelstenen : L : 190 / b : 90 / h : 50]<>"",0)),'Materiaalindexen o.w.'!BX$33)=0,NA(),'Materiaalindexen o.w.'!BX33/IF('Materiaalindexen o.w.'!BX$33=0, INDEX(OW_indexen___màj_aout_2025[OW 448 - bakstenen - gevelstenen : L : 190 / b : 90 / h : 50],MATCH(TRUE,OW_indexen___màj_aout_2025[OW 448 - bakstenen - gevelstenen : L : 190 / b : 90 / h : 50]<>"",0)),'Materiaalindexen o.w.'!BX$33)),NA()) -> 1 | DH127: =IFERROR(IF('Materiaalindexen o.w.'!BY33/IF('Materiaalindexen o.w.'!BY$33=0,INDEX(OW_indexen___màj_aout_2025[OW 462 - cement - klasse 32,5],MATCH(TRUE,OW_indexen___màj_aout_2025[OW 462 - cement - klasse 32,5]<>"",0)),'Materiaalindexen o.w.'!BY$33)=0,NA(),'Materiaalindexen o.w.'!BY33/IF('Materiaalindexen o.w.'!BY$33=0, INDEX(OW_indexen___màj_aout_2025[OW 462 - cement - klasse 32,5],MATCH(TRUE,OW_indexen___màj_aout_2025[OW 462 - cement - klasse 32,5]<>"",0)),'Materiaalindexen o.w.'!BY$33)),NA()) -> 1 | DI127: =IFERROR(IF('Materiaalindexen o.w.'!BZ33/IF('Materiaalindexen o.w.'!BZ$33=0,INDEX(OW_indexen___màj_aout_2025[OW 464 - cement - klasse 42,5],MATCH(TRUE,OW_indexen___màj_aout_2025[OW 464 - cement - klasse 42,5]<>"",0)),'Materiaalindexen o.w.'!BZ$33)=0,NA(),'Materiaalindexen o.w.'!BZ33/IF('Materiaalindexen o.w.'!BZ$33=0, INDEX(OW_indexen___màj_aout_2025[OW 464 - cement - klasse 42,5],MATCH(TRUE,OW_indexen___màj_aout_2025[OW 464 - cement - klasse 42,5]<>"",0)),'Materiaalindexen o.w.'!BZ$33)),NA()) -> 1 | DJ127: =IFERROR(IF('Materiaalindexen o.w.'!CA33/IF('Materiaalindexen o.w.'!CA$33=0,INDEX(OW_indexen___màj_aout_2025[OW 466 - cement - klasse 52,5],MATCH(TRUE,OW_indexen___màj_aout_2025[OW 466 - cement - klasse 52,5]<>"",0)),'Materiaalindexen o.w.'!CA$33)=0,NA(),'Materiaalindexen o.w.'!CA33/IF('Materiaalindexen o.w.'!CA$33=0, INDEX(OW_indexen___màj_aout_2025[OW 466 - cement - klasse 52,5],MATCH(TRUE,OW_indexen___màj_aout_2025[OW 466 - cement - klasse 52,5]<>"",0)),'Materiaalindexen o.w.'!CA$33)),NA()) -> 1 | DK127: =IFERROR(IF('Materiaalindexen o.w.'!CB33/IF('Materiaalindexen o.w.'!CB$33=0,INDEX(OW_indexen___màj_aout_2025[OW 467 - cement - zakken],MATCH(TRUE,OW_indexen___màj_aout_2025[OW 467 - cement - zakken]<>"",0)),'Materiaalindexen o.w.'!CB$33)=0,NA(),'Materiaalindexen o.w.'!CB33/IF('Materiaalindexen o.w.'!CB$33=0, INDEX(OW_indexen___màj_aout_2025[OW 467 - cement - zakken],MATCH(TRUE,OW_indexen___màj_aout_2025[OW 467 - cement - zakken]<>"",0)),'Materiaalindexen o.w.'!CB$33)),NA()) -> 1 | DL127: =IFERROR(IF('Materiaalindexen o.w.'!CC33/IF('Materiaalindexen o.w.'!CC$33=0,INDEX(OW_indexen___màj_aout_2025[OW 470 - betonproducten voor het wegennetwerk - betonnen tegels - 30/30/6 cm],MATCH(TRUE,OW_indexen___màj_aout_2025[OW 470 - betonproducten voor het wegennetwerk - betonnen tegels - 30/30/6 cm]<>"",0)),'Materiaalindexen o.w.'!CC$33)=0,NA(),'Materiaalindexen o.w.'!CC33/IF('Materiaalindexen o.w.'!CC$33=0, INDEX(OW_indexen___màj_aout_2025[OW 470 - betonproducten voor het wegennetwerk - betonnen tegels - 30/30/6 cm],MATCH(TRUE,OW_indexen___màj_aout_2025[OW 470 - betonproducten voor het wegennetwerk - betonnen tegels - 30/30/6 cm]<>"",0)),'Materiaalindexen o.w.'!CC$33)),NA()) -> 1 | DM127: =IFERROR(IF('Materiaalindexen o.w.'!CD33/IF('Materiaalindexen o.w.'!CD$33=0,INDEX(OW_indexen___màj_aout_2025[OW 475 - betonproducten voor het wegennetwerk - betonnen straatstenen - 22/11/10 cm],MATCH(TRUE,OW_indexen___màj_aout_2025[OW 475 - betonproducten voor het wegennetwerk - betonnen straatstenen - 22/11/10 cm]<>"",0)),'Materiaalindexen o.w.'!CD$33)=0,NA(),'Materiaalindexen o.w.'!CD33/IF('Materiaalindexen o.w.'!CD$33=0, INDEX(OW_indexen___màj_aout_2025[OW 475 - betonproducten voor het wegennetwerk - betonnen straatstenen - 22/11/10 cm],MATCH(TRUE,OW_indexen___màj_aout_2025[OW 475 - betonproducten voor het wegennetwerk - betonnen straatstenen - 22/11/10 cm]<>"",0)),'Materiaalindexen o.w.'!CD$33)),NA()) -> 1 | DN127: =IFERROR(IF('Materiaalindexen o.w.'!CE33/IF('Materiaalindexen o.w.'!CE$33=0,INDEX(OW_indexen___màj_aout_2025[OW 476 - betonproducten voor de bouwsector - holle betonblokken - klasse p - 0,8 39/19/19],MATCH(TRUE,OW_indexen___màj_aout_2025[OW 476 - betonproducten voor de bouwsector - holle betonblokken - klasse p - 0,8 39/19/19]<>"",0)),'Materiaalindexen o.w.'!CE$33)=0,NA(),'Materiaalindexen o.w.'!CE33/IF('Materiaalindexen o.w.'!CE$33=0, INDEX(OW_indexen___màj_aout_2025[OW 476 - betonproducten voor de bouwsector - holle betonblokken - klasse p - 0,8 39/19/19],MATCH(TRUE,OW_indexen___màj_aout_2025[OW 476 - betonproducten voor de bouwsector - holle betonblokken - klasse p - 0,8 39/19/19]<>"",0)),'Materiaalindexen o.w.'!CE$33)),NA()) -> 1 | DO127: =IFERROR(IF('Materiaalindexen o.w.'!CF33/IF('Materiaalindexen o.w.'!CF$33=0,INDEX(OW_indexen___màj_aout_2025[OW 477 - betonproducten voor de bouwsector - volle betonblokken - klasse p 2,2 - 39/19/19],MATCH(TRUE,OW_indexen___màj_aout_2025[OW 477 - betonproducten voor de bouwsector - volle betonblokken - klasse p 2,2 - 39/19/19]<>"",0)),'Materiaalindexen o.w.'!CF$33)=0,NA(),'Materiaalindexen o.w.'!CF33/IF('Materiaalindexen o.w.'!CF$33=0, INDEX(OW_indexen___màj_aout_2025[OW 477 - betonproducten voor de bouwsector - volle betonblokken - klasse p 2,2 - 39/19/19],MATCH(TRUE,OW_indexen___màj_aout_2025[OW 477 - betonproducten voor de bouwsector - volle betonblokken - klasse p 2,2 - 39/19/19]<>"",0)),'Materiaalindexen o.w.'!CF$33)),NA()) -> 1 | DP127: =IFERROR(IF('Materiaalindexen o.w.'!CG33/IF('Materiaalindexen o.w.'!CG$33=0,INDEX(OW_indexen___màj_aout_2025[OW 480 - betonproducten voor het wegennetwerk - boordstenen - 21-411 - type 1A],MATCH(TRUE,OW_indexen___màj_aout_2025[OW 480 - betonproducten voor het wegennetwerk - boordstenen - 21-411 - type 1A]<>"",0)),'Materiaalindexen o.w.'!CG$33)=0,NA(),'Materiaalindexen o.w.'!CG33/IF('Materiaalindexen o.w.'!CG$33=0, INDEX(OW_indexen___màj_aout_2025[OW 480 - betonproducten voor het wegennetwerk - boordstenen - 21-411 - type 1A],MATCH(TRUE,OW_indexen___màj_aout_2025[OW 480 - betonproducten voor het wegennetwerk - boordstenen - 21-411 - type 1A]<>"",0)),'Materiaalindexen o.w.'!CG$33)),NA()) -> 1 | DQ127: =IFERROR(IF('Materiaalindexen o.w.'!CH33/IF('Materiaalindexen o.w.'!CH$33=0,INDEX(OW_indexen___màj_aout_2025[OW 486 - betonproducten voor het wegennetwerk - buizen ongewapend - L : 2,5 m - diam. 80cm],MATCH(TRUE,OW_indexen___màj_aout_2025[OW 486 - betonproducten voor het wegennetwerk - buizen ongewapend - L : 2,5 m - diam. 80cm]<>"",0)),'Materiaalindexen o.w.'!CH$33)=0,NA(),'Materiaalindexen o.w.'!CH33/IF('Materiaalindexen o.w.'!CH$33=0, INDEX(OW_indexen___màj_aout_2025[OW 486 - betonproducten voor het wegennetwerk - buizen ongewapend - L : 2,5 m - diam. 80cm],MATCH(TRUE,OW_indexen___màj_aout_2025[OW 486 - betonproducten voor het wegennetwerk - buizen ongewapend - L : 2,5 m - diam. 80cm]<>"",0)),'Materiaalindexen o.w.'!CH$33)),NA()) -> 1 | DR127: =IFERROR(IF('Materiaalindexen o.w.'!CI33/IF('Materiaalindexen o.w.'!CI$33=0,INDEX(OW_indexen___màj_aout_2025[OW 486² - betonproducten voor het wegennetwerk - buizen ongewapend - L : 2 m - diam. 80cm],MATCH(TRUE,OW_indexen___màj_aout_2025[OW 486² - betonproducten voor het wegennetwerk - buizen ongewapend - L : 2 m - diam. 80cm]<>"",0)),'Materiaalindexen o.w.'!CI$33)=0,NA(),'Materiaalindexen o.w.'!CI33/IF('Materiaalindexen o.w.'!CI$33=0, INDEX(OW_indexen___màj_aout_2025[OW 486² - betonproducten voor het wegennetwerk - buizen ongewapend - L : 2 m - diam. 80cm],MATCH(TRUE,OW_indexen___màj_aout_2025[OW 486² - betonproducten voor het wegennetwerk - buizen ongewapend - L : 2 m - diam. 80cm]<>"",0)),'Materiaalindexen o.w.'!CI$33)),NA()) -> 1 | DS127: =IFERROR(IF('Materiaalindexen o.w.'!CJ33/IF('Materiaalindexen o.w.'!CJ$33=0,INDEX(OW_indexen___màj_aout_2025[OW 549 - Diesel B7 aan de pomp - 10 ppm],MATCH(TRUE,OW_indexen___màj_aout_2025[OW 549 - Diesel B7 aan de pomp - 10 ppm]<>"",0)),'Materiaalindexen o.w.'!CJ$33)=0,NA(),'Materiaalindexen o.w.'!CJ33/IF('Materiaalindexen o.w.'!CJ$33=0, INDEX(OW_indexen___màj_aout_2025[OW 549 - Diesel B7 aan de pomp - 10 ppm],MATCH(TRUE,OW_indexen___màj_aout_2025[OW 549 - Diesel B7 aan de pomp - 10 ppm]<>"",0)),'Materiaalindexen o.w.'!CJ$33)),NA()) -> 1 | DT127: =IFERROR(IF('Materiaalindexen o.w.'!CK33/IF('Materiaalindexen o.w.'!CK$33=0,INDEX(OW_indexen___màj_aout_2025[OW 549² - Diesel B7 aan de pomp - 50 ppm],MATCH(TRUE,OW_indexen___màj_aout_2025[OW 549² - Diesel B7 aan de pomp - 50 ppm]<>"",0)),'Materiaalindexen o.w.'!CK$33)=0,NA(),'Materiaalindexen o.w.'!CK33/IF('Materiaalindexen o.w.'!CK$33=0, INDEX(OW_indexen___màj_aout_2025[OW 549² - Diesel B7 aan de pomp - 50 ppm],MATCH(TRUE,OW_indexen___màj_aout_2025[OW 549² - Diesel B7 aan de pomp - 50 ppm]<>"",0)),'Materiaalindexen o.w.'!CK$33)),NA()) -> 1 | DU127: =IFERROR(IF('Materiaalindexen o.w.'!CL33/IF('Materiaalindexen o.w.'!CL$33=0,INDEX(OW_indexen___màj_aout_2025[OW 549³ - Diesel B7 aan de pomp - -],MATCH(TRUE,OW_indexen___màj_aout_2025[OW 549³ - Diesel B7 aan de pomp - -]<>"",0)),'Materiaalindexen o.w.'!CL$33)=0,NA(),'Materiaalindexen o.w.'!CL33/IF('Materiaalindexen o.w.'!CL$33=0, INDEX(OW_indexen___màj_aout_2025[OW 549³ - Diesel B7 aan de pomp - -],MATCH(TRUE,OW_indexen___màj_aout_2025[OW 549³ - Diesel B7 aan de pomp - -]<>"",0)),'Materiaalindexen o.w.'!CL$33)),NA()) -> 1 | DV127: =IFERROR(IF('Materiaalindexen o.w.'!CM33/IF('Materiaalindexen o.w.'!CM$33=0,INDEX(OW_indexen___màj_aout_2025[OW 550 - Gasolie verwarming - 1000 ppm],MATCH(TRUE,OW_indexen___màj_aout_2025[OW 550 - Gasolie verwarming - 1000 ppm]<>"",0)),'Materiaalindexen o.w.'!CM$33)=0,NA(),'Materiaalindexen o.w.'!CM33/IF('Materiaalindexen o.w.'!CM$33=0, INDEX(OW_indexen___màj_aout_2025[OW 550 - Gasolie verwarming - 1000 ppm],MATCH(TRUE,OW_indexen___màj_aout_2025[OW 550 - Gasolie verwarming - 1000 ppm]<>"",0)),'Materiaalindexen o.w.'!CM$33)),NA()) -> 1 | DW127: =IFERROR(IF('Materiaalindexen o.w.'!CN33/IF('Materiaalindexen o.w.'!CN$33=0,INDEX(OW_indexen___màj_aout_2025[OW 550² - Gasolie verwarming - 2000 ppm],MATCH(TRUE,OW_indexen___màj_aout_2025[OW 550² - Gasolie verwarming - 2000 ppm]<>"",0)),'Materiaalindexen o.w.'!CN$33)=0,NA(),'Materiaalindexen o.w.'!CN33/IF('Materiaalindexen o.w.'!CN$33=0, INDEX(OW_indexen___màj_aout_2025[OW 550² - Gasolie verwarming - 2000 ppm],MATCH(TRUE,OW_indexen___màj_aout_2025[OW 550² - Gasolie verwarming - 2000 ppm]<>"",0)),'Materiaalindexen o.w.'!CN$33)),NA()) -> 1 | DX127: =IFERROR(IF('Materiaalindexen o.w.'!CO33/IF('Materiaalindexen o.w.'!CO$33=0,INDEX(OW_indexen___màj_aout_2025[OW 551 - Eurosuper 95 aan de pomp - 10 ppm],MATCH(TRUE,OW_indexen___màj_aout_2025[OW 551 - Eurosuper 95 aan de pomp - 10 ppm]<>"",0)),'Materiaalindexen o.w.'!CO$33)=0,NA(),'Materiaalindexen o.w.'!CO33/IF('Materiaalindexen o.w.'!CO$33=0, INDEX(OW_indexen___màj_aout_2025[OW 551 - Eurosuper 95 aan de pomp - 10 ppm],MATCH(TRUE,OW_indexen___màj_aout_2025[OW 551 - Eurosuper 95 aan de pomp - 10 ppm]<>"",0)),'Materiaalindexen o.w.'!CO$33)),NA()) -> 1 | DY127: =IFERROR(IF('Materiaalindexen o.w.'!CP33/IF('Materiaalindexen o.w.'!CP$33=0,INDEX(OW_indexen___màj_aout_2025[OW 551² - Eurosuper 95 aan de pomp - 50 ppm],MATCH(TRUE,OW_indexen___màj_aout_2025[OW 551² - Eurosuper 95 aan de pomp - 50 ppm]<>"",0)),'Materiaalindexen o.w.'!CP$33)=0,NA(),'Materiaalindexen o.w.'!CP33/IF('Materiaalindexen o.w.'!CP$33=0, INDEX(OW_indexen___màj_aout_2025[OW 551² - Eurosuper 95 aan de pomp - 50 ppm],MATCH(TRUE,OW_indexen___màj_aout_2025[OW 551² - Eurosuper 95 aan de pomp - 50 ppm]<>"",0)),'Materiaalindexen o.w.'!CP$33)),NA()) -> 1 | DZ127: =IFERROR(IF('Materiaalindexen o.w.'!CQ33/IF('Materiaalindexen o.w.'!CQ$33=0,INDEX(OW_indexen___màj_aout_2025[OW 551³ - Eurosuper 95 aan de pomp - -],MATCH(TRUE,OW_indexen___màj_aout_2025[OW 551³ - Eurosuper 95 aan de pomp - -]<>"",0)),'Materiaalindexen o.w.'!CQ$33)=0,NA(),'Materiaalindexen o.w.'!CQ33/IF('Materiaalindexen o.w.'!CQ$33=0, INDEX(OW_indexen___màj_aout_2025[OW 551³ - Eurosuper 95 aan de pomp - -],MATCH(TRUE,OW_indexen___màj_aout_2025[OW 551³ - Eurosuper 95 aan de pomp - -]<>"",0)),'Materiaalindexen o.w.'!CQ$33)),NA()) -> 1 | EA127: =IFERROR(IF('Materiaalindexen o.w.'!CR33/IF('Materiaalindexen o.w.'!CR$33=0,INDEX(OW_indexen___màj_aout_2025[OW 552 - LPG - -],MATCH(TRUE,OW_indexen___màj_aout_2025[OW 552 - LPG - -]<>"",0)),'Materiaalindexen o.w.'!CR$33)=0,NA(),'Materiaalindexen o.w.'!CR33/IF('Materiaalindexen o.w.'!CR$33=0, INDEX(OW_indexen___màj_aout_2025[OW 552 - LPG - -],MATCH(TRUE,OW_indexen___màj_aout_2025[OW 552 - LPG - -]<>"",0)),'Materiaalindexen o.w.'!CR$33)),NA()) -> 1 | EB127: =IFERROR(IF('Materiaalindexen o.w.'!CS33/IF('Materiaalindexen o.w.'!CS$33=0,INDEX(OW_indexen___màj_aout_2025[OW 563 - Oliebitumen - vaten],MATCH(TRUE,OW_indexen___màj_aout_2025[OW 563 - Oliebitumen - vaten]<>"",0)),'Materiaalindexen o.w.'!CS$33)=0,NA(),'Materiaalindexen o.w.'!CS33/IF('Materiaalindexen o.w.'!CS$33=0, INDEX(OW_indexen___màj_aout_2025[OW 563 - Oliebitumen - vaten],MATCH(TRUE,OW_indexen___màj_aout_2025[OW 563 - Oliebitumen - vaten]<>"",0)),'Materiaalindexen o.w.'!CS$33)),NA()) -> 1 | EC127: =IFERROR(IF('Materiaalindexen o.w.'!CT33/IF('Materiaalindexen o.w.'!CT$33=0,INDEX(OW_indexen___màj_aout_2025[OW 564 - Oliebitumen - valk],MATCH(TRUE,OW_indexen___màj_aout_2025[OW 564 - Oliebitumen - valk]<>"",0)),'Materiaalindexen o.w.'!CT$33)=0,NA(),'Materiaalindexen o.w.'!CT33/IF('Materiaalindexen o.w.'!CT$33=0, INDEX(OW_indexen___màj_aout_2025[OW 564 - Oliebitumen - valk],MATCH(TRUE,OW_indexen___màj_aout_2025[OW 564 - Oliebitumen - valk]<>"",0)),'Materiaalindexen o.w.'!CT$33)),NA()) -> 1 | ED127: =IFERROR(IF('Materiaalindexen o.w.'!CU33/IF('Materiaalindexen o.w.'!CU$33=0,INDEX(OW_indexen___màj_aout_2025[OW 671 - polyester (UP) - vloeibaar Stop 01/2024],MATCH(TRUE,OW_indexen___màj_aout_2025[OW 671 - polyester (UP) - vloeibaar Stop 01/2024]<>"",0)),'Materiaalindexen o.w.'!CU$33)=0,NA(),'Materiaalindexen o.w.'!CU33/IF('Materiaalindexen o.w.'!CU$33=0, INDEX(OW_indexen___màj_aout_2025[OW 671 - polyester (UP) - vloeibaar Stop 01/2024],MATCH(TRUE,OW_indexen___màj_aout_2025[OW 671 - polyester (UP) - vloeibaar Stop 01/2024]<>"",0)),'Materiaalindexen o.w.'!CU$33)),NA()) -> 1 | EE127: =IFERROR(IF('Materiaalindexen o.w.'!CV33/IF('Materiaalindexen o.w.'!CV$33=0,INDEX(OW_indexen___màj_aout_2025[OW 672 - PVC - Polyvinylchloride zie OW 680],MATCH(TRUE,OW_indexen___màj_aout_2025[OW 672 - PVC - Polyvinylchloride zie OW 680]<>"",0)),'Materiaalindexen o.w.'!CV$33)=0,NA(),'Materiaalindexen o.w.'!CV33/IF('Materiaalindexen o.w.'!CV$33=0, INDEX(OW_indexen___màj_aout_2025[OW 672 - PVC - Polyvinylchloride zie OW 680],MATCH(TRUE,OW_indexen___màj_aout_2025[OW 672 - PVC - Polyvinylchloride zie OW 680]<>"",0)),'Materiaalindexen o.w.'!CV$33)),NA()) -> 1 | EF127: =IFERROR(IF('Materiaalindexen o.w.'!CW33/IF('Materiaalindexen o.w.'!CW$33=0,INDEX(OW_indexen___màj_aout_2025[OW 673 - polyethyleen lage dichtheid - PE/LD - lage dichtheid zie OW 681],MATCH(TRUE,OW_indexen___màj_aout_2025[OW 673 - polyethyleen lage dichtheid - PE/LD - lage dichtheid zie OW 681]<>"",0)),'Materiaalindexen o.w.'!CW$33)=0,NA(),'Materiaalindexen o.w.'!CW33/IF('Materiaalindexen o.w.'!CW$33=0, INDEX(OW_indexen___màj_aout_2025[OW 673 - polyethyleen lage dichtheid - PE/LD - lage dichtheid zie OW 681],MATCH(TRUE,OW_indexen___màj_aout_2025[OW 673 - polyethyleen lage dichtheid - PE/LD - lage dichtheid zie OW 681]<>"",0)),'Materiaalindexen o.w.'!CW$33)),NA()) -> 1 | EG127: =IFERROR(IF('Materiaalindexen o.w.'!CX33/IF('Materiaalindexen o.w.'!CX$33=0,INDEX(OW_indexen___màj_aout_2025[OW 674 - polyethyleen hoge dichtheid - PE/HD - hoge dichtheid zie OW 683],MATCH(TRUE,OW_indexen___màj_aout_2025[OW 674 - polyethyleen hoge dichtheid - PE/HD - hoge dichtheid zie OW 683]<>"",0)),'Materiaalindexen o.w.'!CX$33)=0,NA(),'Materiaalindexen o.w.'!CX33/IF('Materiaalindexen o.w.'!CX$33=0, INDEX(OW_indexen___màj_aout_2025[OW 674 - polyethyleen hoge dichtheid - PE/HD - hoge dichtheid zie OW 683],MATCH(TRUE,OW_indexen___màj_aout_2025[OW 674 - polyethyleen hoge dichtheid - PE/HD - hoge dichtheid zie OW 683]<>"",0)),'Materiaalindexen o.w.'!CX$33)),NA()) -> 1 | EH127: =IFERROR(IF('Materiaalindexen o.w.'!CY33/IF('Materiaalindexen o.w.'!CY$33=0,INDEX(OW_indexen___màj_aout_2025[OW 675 - buizen in polyethyleen - PE/HD - hoge dichtheid zie OW 683],MATCH(TRUE,OW_indexen___màj_aout_2025[OW 675 - buizen in polyethyleen - PE/HD - hoge dichtheid zie OW 683]<>"",0)),'Materiaalindexen o.w.'!CY$33)=0,NA(),'Materiaalindexen o.w.'!CY33/IF('Materiaalindexen o.w.'!CY$33=0, INDEX(OW_indexen___màj_aout_2025[OW 675 - buizen in polyethyleen - PE/HD - hoge dichtheid zie OW 683],MATCH(TRUE,OW_indexen___màj_aout_2025[OW 675 - buizen in polyethyleen - PE/HD - hoge dichtheid zie OW 683]<>"",0)),'Materiaalindexen o.w.'!CY$33)),NA()) -> 1 | EI127: =IFERROR(IF('Materiaalindexen o.w.'!CZ33/IF('Materiaalindexen o.w.'!CZ$33=0,INDEX(OW_indexen___màj_aout_2025[OW 680 - PVC - buizen vanaf 12/2023],MATCH(TRUE,OW_indexen___màj_aout_2025[OW 680 - PVC - buizen vanaf 12/2023]<>"",0)),'Materiaalindexen o.w.'!CZ$33)=0,NA(),'Materiaalindexen o.w.'!CZ33/IF('Materiaalindexen o.w.'!CZ$33=0, INDEX(OW_indexen___màj_aout_2025[OW 680 - PVC - buizen vanaf 12/2023],MATCH(TRUE,OW_indexen___màj_aout_2025[OW 680 - PVC - buizen vanaf 12/2023]<>"",0)),'Materiaalindexen o.w.'!CZ$33)),NA()) ->  | EJ127: =IFERROR(IF('Materiaalindexen o.w.'!DA33/IF('Materiaalindexen o.w.'!DA$33=0,INDEX(OW_indexen___màj_aout_2025[OW 681 - PELD - film vanaf 12/2023],MATCH(TRUE,OW_indexen___màj_aout_2025[OW 681 - PELD - film vanaf 12/2023]<>"",0)),'Materiaalindexen o.w.'!DA$33)=0,NA(),'Materiaalindexen o.w.'!DA33/IF('Materiaalindexen o.w.'!DA$33=0, INDEX(OW_indexen___màj_aout_2025[OW 681 - PELD - film vanaf 12/2023],MATCH(TRUE,OW_indexen___màj_aout_2025[OW 681 - PELD - film vanaf 12/2023]<>"",0)),'Materiaalindexen o.w.'!DA$33)),NA()) ->  | EK127: =IFERROR(IF('Materiaalindexen o.w.'!DB33/IF('Materiaalindexen o.w.'!DB$33=0,INDEX(OW_indexen___màj_aout_2025[OW 683 - PEHD - spuitgieten vanaf 12/2023],MATCH(TRUE,OW_indexen___màj_aout_2025[OW 683 - PEHD - spuitgieten vanaf 12/2023]<>"",0)),'Materiaalindexen o.w.'!DB$33)=0,NA(),'Materiaalindexen o.w.'!DB33/IF('Materiaalindexen o.w.'!DB$33=0, INDEX(OW_indexen___màj_aout_2025[OW 683 - PEHD - spuitgieten vanaf 12/2023],MATCH(TRUE,OW_indexen___màj_aout_2025[OW 683 - PEHD - spuitgieten vanaf 12/2023]<>"",0)),'Materiaalindexen o.w.'!DB$33)),NA()) ->  | EL127: =IFERROR(IF('Materiaalindexen o.w.'!DC33/IF('Materiaalindexen o.w.'!DC$33=0,INDEX(OW_indexen___màj_aout_2025[OW 684 - PP - polypropyleen (homopolymeer) vanaf 12/2023],MATCH(TRUE,OW_indexen___màj_aout_2025[OW 684 - PP - polypropyleen (homopolymeer) vanaf 12/2023]<>"",0)),'Materiaalindexen o.w.'!DC$33)=0,NA(),'Materiaalindexen o.w.'!DC33/IF('Materiaalindexen o.w.'!DC$33=0, INDEX(OW_indexen___màj_aout_2025[OW 684 - PP - polypropyleen (homopolymeer) vanaf 12/2023],MATCH(TRUE,OW_indexen___màj_aout_2025[OW 684 - PP - polypropyleen (homopolymeer) vanaf 12/2023]<>"",0)),'Materiaalindexen o.w.'!DC$33)),NA()) ->  | EM127: =IFERROR(IF('Grymafer indexen'!D32/IF('Grymafer indexen'!D$32=0,INDEX(Grymafer_maand[RSR - beton staven],MATCH(TRUE,Grymafer_maand[RSR - beton staven]<>"",0)),'Grymafer indexen'!D$32)=0,NA(),'Grymafer indexen'!D32/IF('Grymafer indexen'!D$32=0, INDEX(Grymafer_maand[RSR - beton staven],MATCH(TRUE,Grymafer_maand[RSR - beton staven]<>"",0)),'Grymafer indexen'!D$32)),NA()) -> 1 | EN127: =IFERROR(IF('Grymafer indexen'!E32/IF('Grymafer indexen'!E$32=0,INDEX(Grymafer_maand[FKC - Koudgewalste draad],MATCH(TRUE,Grymafer_maand[FKC - Koudgewalste draad]<>"",0)),'Grymafer indexen'!E$32)=0,NA(),'Grymafer indexen'!E32/IF('Grymafer indexen'!E$32=0, INDEX(Grymafer_maand[FKC - Koudgewalste draad],MATCH(TRUE,Grymafer_maand[FKC - Koudgewalste draad]<>"",0)),'Grymafer indexen'!E$32)),NA()) -> 1 | EO127: =IFERROR(IF('Grymafer indexen'!F32/IF('Grymafer indexen'!F$32=0,INDEX(Grymafer_maand[CWH - Warmgewalste draad],MATCH(TRUE,Grymafer_maand[CWH - Warmgewalste draad]<>"",0)),'Grymafer indexen'!F$32)=0,NA(),'Grymafer indexen'!F32/IF('Grymafer indexen'!F$32=0, INDEX(Grymafer_maand[CWH - Warmgewalste draad],MATCH(TRUE,Grymafer_maand[CWH - Warmgewalste draad]<>"",0)),'Grymafer indexen'!F$32)),NA()) -> 1 | EP127: =IFERROR(IF('Grymafer indexen'!G32/IF('Grymafer indexen'!G$32=0,INDEX(Grymafer_maand[TNM - Netten],MATCH(TRUE,Grymafer_maand[TNM - Netten]<>"",0)),'Grymafer indexen'!G$32)=0,NA(),'Grymafer indexen'!G32/IF('Grymafer indexen'!G$32=0, INDEX(Grymafer_maand[TNM - Netten],MATCH(TRUE,Grymafer_maand[TNM - Netten]<>"",0)),'Grymafer indexen'!G$32)),NA()) -> 1 | EQ127: =IFERROR(IF('Materiaalindexen o.w.'!DG33/IF('Materiaalindexen o.w.'!DG$33=0,INDEX(Statbel_indexen___màj_aout_2025[Elektriciteit],MATCH(TRUE,Statbel_indexen___màj_aout_2025[Elektriciteit]<>"",0)),'Materiaalindexen o.w.'!DG$33)=0,NA(),'Materiaalindexen o.w.'!DG33/IF('Materiaalindexen o.w.'!DG$33=0, INDEX(Statbel_indexen___màj_aout_2025[Elektriciteit],MATCH(TRUE,Statbel_indexen___màj_aout_2025[Elektriciteit]<>"",0)),'Materiaalindexen o.w.'!DG$33)),NA()) -> 1 | ER127: =IFERROR(IF('Materiaalindexen o.w.'!DH33/IF('Materiaalindexen o.w.'!DH$33=0,INDEX(Statbel_indexen___màj_aout_2025[Aardgas],MATCH(TRUE,Statbel_indexen___màj_aout_2025[Aardgas]<>"",0)),'Materiaalindexen o.w.'!DH$33)=0,NA(),'Materiaalindexen o.w.'!DH33/IF('Materiaalindexen o.w.'!DH$33=0, INDEX(Statbel_indexen___màj_aout_2025[Aardgas],MATCH(TRUE,Statbel_indexen___màj_aout_2025[Aardgas]<>"",0)),'Materiaalindexen o.w.'!DH$33)),NA()) -> 1 | ES127: =IFERROR(IF('Materiaalindexen o.w.'!DI33/IF('Materiaalindexen o.w.'!DI$33=0,INDEX(Statbel_indexen___màj_aout_2025[Water],MATCH(TRUE,Statbel_indexen___màj_aout_2025[Water]<>"",0)),'Materiaalindexen o.w.'!DI$33)=0,NA(),'Materiaalindexen o.w.'!DI33/IF('Materiaalindexen o.w.'!DI$33=0, INDEX(Statbel_indexen___màj_aout_2025[Water],MATCH(TRUE,Statbel_indexen___màj_aout_2025[Water]<>"",0)),'Materiaalindexen o.w.'!DI$33)),NA()) -> 1 | ET127: =IFERROR(IF('Materiaalindexen o.w.'!DJ33/IF('Materiaalindexen o.w.'!DJ$33=0,INDEX(Statbel_indexen___màj_aout_2025[Consumptie Prijs Index Statbel],MATCH(TRUE,Statbel_indexen___màj_aout_2025[Consumptie Prijs Index Statbel]<>"",0)),'Materiaalindexen o.w.'!DJ$33)=0,NA(),'Materiaalindexen o.w.'!DJ33/IF('Materiaalindexen o.w.'!DJ$33=0, INDEX(Statbel_indexen___màj_aout_2025[Consumptie Prijs Index Statbel],MATCH(TRUE,Statbel_indexen___màj_aout_2025[Consumptie Prijs Index Statbel]<>"",0)),'Materiaalindexen o.w.'!DJ$33)),NA()) -> 1 | EU127: =IFERROR(IF('Materiaalindexen o.w.'!DK33/IF('Materiaalindexen o.w.'!DK$33=0,INDEX(Statbel_indexen___màj_aout_2025[Inflatie Index Statbel],MATCH(TRUE,Statbel_indexen___màj_aout_2025[Inflatie Index Statbel]<>"",0)),'Materiaalindexen o.w.'!DK$33)=0,NA(),'Materiaalindexen o.w.'!DK33/IF('Materiaalindexen o.w.'!DK$33=0, INDEX(Statbel_indexen___màj_aout_2025[Inflatie Index Statbel],MATCH(TRUE,Statbel_indexen___màj_aout_2025[Inflatie Index Statbel]<>"",0)),'Materiaalindexen o.w.'!DK$33)),NA()) -> 1 | EV127: =IFERROR(IF('Materiaalindexen o.w.'!DL33/IF('Materiaalindexen o.w.'!DL$33=0,INDEX(Statbel_indexen___màj_aout_2025[Gezondheids Index Statbel],MATCH(TRUE,Statbel_indexen___màj_aout_2025[Gezondheids Index Statbel]<>"",0)),'Materiaalindexen o.w.'!DL$33)=0,NA(),'Materiaalindexen o.w.'!DL33/IF('Materiaalindexen o.w.'!DL$33=0, INDEX(Statbel_indexen___màj_aout_2025[Gezondheids Index Statbel],MATCH(TRUE,Statbel_indexen___màj_aout_2025[Gezondheids Index Statbel]<>"",0)),'Materiaalindexen o.w.'!DL$33)),NA()) -> 1 | EW127: =IFERROR(IF('Materiaalindexen o.w.'!DM33/IF('Materiaalindexen o.w.'!DM$33=0,INDEX(Statbel_indexen___màj_aout_2025[Afzetprijsindex in de bouwnijverheid - Statbel],MATCH(TRUE,Statbel_indexen___màj_aout_2025[Afzetprijsindex in de bouwnijverheid - Statbel]<>"",0)),'Materiaalindexen o.w.'!DM$33)=0,NA(),'Materiaalindexen o.w.'!DM33/IF('Materiaalindexen o.w.'!DM$33=0, INDEX(Statbel_indexen___màj_aout_2025[Afzetprijsindex in de bouwnijverheid - Statbel],MATCH(TRUE,Statbel_indexen___màj_aout_2025[Afzetprijsindex in de bouwnijverheid - Statbel]<>"",0)),'Materiaalindexen o.w.'!DM$33)),NA()) -> 1 | EX127: =IFERROR(IF('Materiaalindexen o.w.'!DN33/IF('Materiaalindexen o.w.'!DN$33=0,INDEX(Statbel_indexen___màj_aout_2025[Huur index Statbel],MATCH(TRUE,Statbel_indexen___màj_aout_2025[Huur index Statbel]<>"",0)),'Materiaalindexen o.w.'!DN$33)=0,NA(),'Materiaalindexen o.w.'!DN33/IF('Materiaalindexen o.w.'!DN$33=0, INDEX(Statbel_indexen___màj_aout_2025[Huur index Statbel],MATCH(TRUE,Statbel_indexen___màj_aout_2025[Huur index Statbel]<>"",0)),'Materiaalindexen o.w.'!DN$33)),NA()) -> 1 | FA127: =B127 -> 2018-01-01 | FB127: =IFERROR(IF('Indexen goederen & diensten'!D33/'Indexen goederen & diensten'!D$33=0,NA(),'Indexen goederen & diensten'!D33/'Indexen goederen & diensten'!D$33),NA()) -> 1 | FC127: =IFERROR(IF('Indexen goederen & diensten'!E33/'Indexen goederen & diensten'!E$33=0,NA(),'Indexen goederen & diensten'!E33/'Indexen goederen & diensten'!E$33),NA()) -> 1 | FD127: =IFERROR(IF('Indexen goederen & diensten'!F33/'Indexen goederen & diensten'!F$33=0,NA(),'Indexen goederen & diensten'!F33/'Indexen goederen & diensten'!F$33),NA()) -> 1 | FE127: =IFERROR(IF('Indexen goederen & diensten'!G33/'Indexen goederen & diensten'!G$33=0,NA(),'Indexen goederen & diensten'!G33/'Indexen goederen & diensten'!G$33),NA()) -> 1 | FF127: =IFERROR(IF('Indexen goederen & diensten'!H33/'Indexen goederen & diensten'!H$33=0,NA(),'Indexen goederen & diensten'!H33/'Indexen goederen & diensten'!H$33),NA()) -> 1 | FG127: =IFERROR(IF('Indexen goederen & diensten'!I33/'Indexen goederen & diensten'!I$33=0,NA(),'Indexen goederen & diensten'!I33/'Indexen goederen & diensten'!I$33),NA()) -> 1 | FH127: =IFERROR(IF('Indexen goederen & diensten'!J33/'Indexen goederen & diensten'!J$33=0,NA(),'Indexen goederen & diensten'!J33/'Indexen goederen & diensten'!J$33),NA()) -> 1 | FI127: =IFERROR(IF('Indexen goederen & diensten'!K33/'Indexen goederen & diensten'!K$33=0,NA(),'Indexen goederen & diensten'!K33/'Indexen goederen & diensten'!K$33),NA()) -> 1 | FJ127: =IFERROR(IF('Indexen goederen & diensten'!L33/'Indexen goederen & diensten'!L$33=0,NA(),'Indexen goederen & diensten'!L33/'Indexen goederen & diensten'!L$33),NA()) -> 1 | FK127: =IFERROR(IF('Indexen goederen & diensten'!M33/'Indexen goederen & diensten'!M$33=0,NA(),'Indexen goederen & diensten'!M33/'Indexen goederen & diensten'!M$33),NA()) -> 1 | FL127: =IFERROR(IF('Indexen goederen & diensten'!N33/'Indexen goederen & diensten'!N$33=0,NA(),'Indexen goederen & diensten'!N33/'Indexen goederen & diensten'!N$33),NA()) -> 1 | FM127: =IFERROR(IF('Indexen goederen & diensten'!O33/'Indexen goederen & diensten'!O$33=0,NA(),'Indexen goederen & diensten'!O33/'Indexen goederen & diensten'!O$33),NA()) -> 1 | FN127: =IFERROR(IF('Indexen goederen & diensten'!P33/'Indexen goederen & diensten'!P$33=0,NA(),'Indexen goederen & diensten'!P33/'Indexen goederen & diensten'!P$33),NA()) -> 1 | FO127: =IFERROR(IF('Indexen goederen & diensten'!Q33/'Indexen goederen & diensten'!Q$33=0,NA(),'Indexen goederen & diensten'!Q33/'Indexen goederen & diensten'!Q$33),NA()) -> 1 | FP127: =IFERROR(IF('Indexen goederen & diensten'!R33/'Indexen goederen & diensten'!R$33=0,NA(),'Indexen goederen & diensten'!R33/'Indexen goederen & diensten'!R$33),NA()) -> 1 | FQ127: =IFERROR(IF('Indexen goederen & diensten'!S33/'Indexen goederen & diensten'!S$33=0,NA(),'Indexen goederen & diensten'!S33/'Indexen goederen & diensten'!S$33),NA()) -> 1 | FR127: =IFERROR(IF('Indexen goederen & diensten'!T33/'Indexen goederen & diensten'!T$33=0,NA(),'Indexen goederen & diensten'!T33/'Indexen goederen & diensten'!T$33),NA()) -> 1 | FS127: =IFERROR(IF('Indexen goederen & diensten'!U33/'Indexen goederen & diensten'!U$33=0,NA(),'Indexen goederen & diensten'!U33/'Indexen goederen & diensten'!U$33),NA()) -> 1 | FT127: =IFERROR(IF('Indexen goederen & diensten'!V33/'Indexen goederen & diensten'!V$33=0,NA(),'Indexen goederen & diensten'!V33/'Indexen goederen & diensten'!V$33),NA()) -> 1 | FU127: =IFERROR(IF('Indexen goederen & diensten'!W33/'Indexen goederen & diensten'!W$33=0,NA(),'Indexen goederen & diensten'!W33/'Indexen goederen & diensten'!W$33),NA()) -> 1 | FV127: =IFERROR(IF('Indexen goederen & diensten'!X33/'Indexen goederen & diensten'!X$33=0,NA(),'Indexen goederen & diensten'!X33/'Indexen goederen & diensten'!X$33),NA()) -> 1 | FW127: =IFERROR(IF('Indexen goederen & diensten'!Y33/'Indexen goederen & diensten'!Y$33=0,NA(),'Indexen goederen & diensten'!Y33/'Indexen goederen & diensten'!Y$33),NA()) -> 1 | FX127: =IFERROR(IF('Indexen goederen & diensten'!Z33/'Indexen goederen & diensten'!Z$33=0,NA(),'Indexen goederen & diensten'!Z33/'Indexen goederen & diensten'!Z$33),NA()) -> 1 | FY127: =IFERROR(IF('Indexen goederen & diensten'!AA33/'Indexen goederen & diensten'!AA$33=0,NA(),'Indexen goederen & diensten'!AA33/'Indexen goederen & diensten'!AA$33),NA()) -> 1 | FZ127: =IFERROR(IF('Indexen goederen & diensten'!AB33/'Indexen goederen & diensten'!AB$33=0,NA(),'Indexen goederen & diensten'!AB33/'Indexen goederen & diensten'!AB$33),NA()) -> 1 | GA127: =IFERROR(IF('Indexen goederen & diensten'!AC33/'Indexen goederen & diensten'!AC$33=0,NA(),'Indexen goederen & diensten'!AC33/'Indexen goederen & diensten'!AC$33),NA()) -> 1 | GB127: =IFERROR(IF('Indexen goederen & diensten'!AD33/'Indexen goederen & diensten'!AD$33=0,NA(),'Indexen goederen & diensten'!AD33/'Indexen goederen & diensten'!AD$33),NA()) -> 1 | GC127: =IFERROR(IF('Indexen goederen & diensten'!AE33/'Indexen goederen & diensten'!AE$33=0,NA(),'Indexen goederen & diensten'!AE33/'Indexen goederen & diensten'!AE$33),NA()) -> 1 | GD127: =IFERROR(IF('Indexen goederen & diensten'!AF33/'Indexen goederen & diensten'!AF$33=0,NA(),'Indexen goederen & diensten'!AF33/'Indexen goederen & diensten'!AF$33),NA()) -> 1 | GE127: =IFERROR(IF('Indexen goederen & diensten'!AG33/'Indexen goederen & diensten'!AG$33=0,NA(),'Indexen goederen & diensten'!AG33/'Indexen goederen & diensten'!AG$33),NA()) -> 1 | GF127: =IFERROR(IF('Indexen goederen & diensten'!AH33/'Indexen goederen & diensten'!AH$33=0,NA(),'Indexen goederen & diensten'!AH33/'Indexen goederen & diensten'!AH$33),NA()) -> 1 | GG127: =IFERROR(IF('Indexen goederen & diensten'!AI33/'Indexen goederen & diensten'!AI$33=0,NA(),'Indexen goederen & diensten'!AI33/'Indexen goederen & diensten'!AI$33),NA()) -> 1 | GH127: =IFERROR(IF('Indexen goederen & diensten'!AJ33/'Indexen goederen & diensten'!AJ$33=0,NA(),'Indexen goederen & diensten'!AJ33/'Indexen goederen & diensten'!AJ$33),NA()) -> 1 | GI127: =IFERROR(IF('Indexen goederen & diensten'!AK33/'Indexen goederen & diensten'!AK$33=0,NA(),'Indexen goederen & diensten'!AK33/'Indexen goederen & diensten'!AK$33),NA()) -> 1 | GJ127: =IFERROR(IF('Indexen goederen & diensten'!AL33/'Indexen goederen & diensten'!AL$33=0,NA(),'Indexen goederen & diensten'!AL33/'Indexen goederen & diensten'!AL$33),NA()) -> 1 | GK127: =IFERROR(IF('Indexen goederen & diensten'!AM33/'Indexen goederen & diensten'!AM$33=0,NA(),'Indexen goederen & diensten'!AM33/'Indexen goederen & diensten'!AM$33),NA()) -> 1 | GL127: =IFERROR(IF('Indexen goederen & diensten'!AN33/'Indexen goederen & diensten'!AN$33=0,NA(),'Indexen goederen & diensten'!AN33/'Indexen goederen & diensten'!AN$33),NA()) -> 1 | GM127: =IFERROR(IF('Indexen goederen & diensten'!AO33/'Indexen goederen & diensten'!AO$33=0,NA(),'Indexen goederen & diensten'!AO33/'Indexen goederen & diensten'!AO$33),NA()) -> 1 | GN127: =IFERROR(IF('Indexen goederen & diensten'!AP33/'Indexen goederen & diensten'!AP$33=0,NA(),'Indexen goederen & diensten'!AP33/'Indexen goederen & diensten'!AP$33),NA()) -> 1 | GO127: =IFERROR(IF('Indexen goederen & diensten'!AQ33/'Indexen goederen & diensten'!AQ$33=0,NA(),'Indexen goederen & diensten'!AQ33/'Indexen goederen & diensten'!AQ$33),NA()) -> 1 | GP127: =IFERROR(IF('Indexen goederen & diensten'!AR33/'Indexen goederen & diensten'!AR$33=0,NA(),'Indexen goederen & diensten'!AR33/'Indexen goederen & diensten'!AR$33),NA()) -> 1 | GQ127: =IFERROR(IF('Indexen goederen & diensten'!AS33/'Indexen goederen & diensten'!AS$33=0,NA(),'Indexen goederen & diensten'!AS33/'Indexen goederen & diensten'!AS$33),NA()) -> 1 | GR127: =IFERROR(IF('Indexen goederen & diensten'!AT33/'Indexen goederen & diensten'!AT$33=0,NA(),'Indexen goederen & diensten'!AT33/'Indexen goederen & diensten'!AT$33),NA()) -> 1 | GS127: =IFERROR(IF('Indexen goederen & diensten'!AU33/'Indexen goederen & diensten'!AU$33=0,NA(),'Indexen goederen & diensten'!AU33/'Indexen goederen & diensten'!AU$33),NA()) -> 1 | GT127: =IFERROR(IF('Indexen goederen & diensten'!AV33/'Indexen goederen & diensten'!AV$33=0,NA(),'Indexen goederen & diensten'!AV33/'Indexen goederen & diensten'!AV$33),NA()) -> 1 | GU127: =IFERROR(IF('Indexen goederen & diensten'!AW33/'Indexen goederen & diensten'!AW$33=0,NA(),'Indexen goederen & diensten'!AW33/'Indexen goederen & diensten'!AW$33),NA()) -> 1 | GV127: =IFERROR(IF('Indexen goederen & diensten'!AX33/'Indexen goederen & diensten'!AX$33=0,NA(),'Indexen goederen & diensten'!AX33/'Indexen goederen & diensten'!AX$33),NA()) -> 1 | GW127: =IFERROR(IF('Indexen goederen & diensten'!AY33/'Indexen goederen & diensten'!AY$33=0,NA(),'Indexen goederen & diensten'!AY33/'Indexen goederen & diensten'!AY$33),NA()) -> 1 | GX127: =IFERROR(IF('Indexen goederen & diensten'!AZ33/'Indexen goederen & diensten'!AZ$33=0,NA(),'Indexen goederen & diensten'!AZ33/'Indexen goederen & diensten'!AZ$33),NA()) -> 1 | GY127: =IFERROR(IF('Indexen goederen & diensten'!BA33/'Indexen goederen & diensten'!BA$33=0,NA(),'Indexen goederen & diensten'!BA33/'Indexen goederen & diensten'!BA$33),NA()) -> 1 | GZ127: =IFERROR(IF('Indexen goederen & diensten'!BB33/'Indexen goederen & diensten'!BB$33=0,NA(),'Indexen goederen & diensten'!BB33/'Indexen goederen & diensten'!BB$33),NA()) -> 1 | HA127: =IFERROR(IF('Indexen goederen & diensten'!BC33/'Indexen goederen & diensten'!BC$33=0,NA(),'Indexen goederen & diensten'!BC33/'Indexen goederen & diensten'!BC$33),NA()) -> 1 | HB127: =IFERROR(IF('Indexen goederen & diensten'!BD33/'Indexen goederen & diensten'!BD$33=0,NA(),'Indexen goederen & diensten'!BD33/'Indexen goederen & diensten'!BD$33),NA()) -> 1 | HC127: =IFERROR(IF('Indexen goederen & diensten'!BE33/'Indexen goederen & diensten'!BE$33=0,NA(),'Indexen goederen & diensten'!BE33/'Indexen goederen & diensten'!BE$33),NA()) -> 1 | HD127: =IFERROR(IF('Indexen goederen & diensten'!BF33/'Indexen goederen & diensten'!BF$33=0,NA(),'Indexen goederen & diensten'!BF33/'Indexen goederen & diensten'!BF$33),NA()) -> 1 | HE127: =IFERROR(IF('Indexen goederen & diensten'!BG33/'Indexen goederen & diensten'!BG$33=0,NA(),'Indexen goederen & diensten'!BG33/'Indexen goederen & diensten'!BG$33),NA()) -> 1 | HF127: =IFERROR(IF('Indexen goederen & diensten'!BH33/'Indexen goederen & diensten'!BH$33=0,NA(),'Indexen goederen & diensten'!BH33/'Indexen goederen & diensten'!BH$33),NA()) -> 1 | HG127: =IFERROR(IF('Indexen goederen & diensten'!BI33/'Indexen goederen & diensten'!BI$33=0,NA(),'Indexen goederen & diensten'!BI33/'Indexen goederen & diensten'!BI$33),NA()) -> 1 | HH127: =IFERROR(IF('Indexen goederen & diensten'!BJ33/'Indexen goederen & diensten'!BJ$33=0,NA(),'Indexen goederen & diensten'!BJ33/'Indexen goederen & diensten'!BJ$33),NA()) -> 1 | HI127: =IFERROR(IF('Indexen goederen & diensten'!BK33/'Indexen goederen & diensten'!BK$33=0,NA(),'Indexen goederen & diensten'!BK33/'Indexen goederen & diensten'!BK$33),NA()) -> 1 | HJ127: =IFERROR(IF('Indexen goederen & diensten'!BL33/'Indexen goederen & diensten'!BL$33=0,NA(),'Indexen goederen & diensten'!BL33/'Indexen goederen & diensten'!BL$33),NA()) -> 1 | HK127: =IFERROR(IF('Indexen goederen & diensten'!BM33/'Indexen goederen & diensten'!BM$33=0,NA(),'Indexen goederen & diensten'!BM33/'Indexen goederen & diensten'!BM$33),NA()) -> 1 | HL127: =IFERROR(IF('Indexen goederen & diensten'!BN33/'Indexen goederen & diensten'!BN$33=0,NA(),'Indexen goederen & diensten'!BN33/'Indexen goederen & diensten'!BN$33),NA()) -> 1 | HM127: =IFERROR(IF('Indexen goederen & diensten'!BO33/'Indexen goederen & diensten'!BO$33=0,NA(),'Indexen goederen & diensten'!BO33/'Indexen goederen & diensten'!BO$33),NA()) -> 1 | HN127: =IFERROR(IF('Indexen goederen & diensten'!BP33/'Indexen goederen & diensten'!BP$33=0,NA(),'Indexen goederen & diensten'!BP33/'Indexen goederen & diensten'!BP$33),NA()) -> 1 | HO127: =IFERROR(IF('Indexen goederen & diensten'!BQ33/'Indexen goederen & diensten'!BQ$33=0,NA(),'Indexen goederen & diensten'!BQ33/'Indexen goederen & diensten'!BQ$33),NA()) -> 1 | HP127: =IFERROR(IF('Indexen goederen & diensten'!BR33/'Indexen goederen & diensten'!BR$33=0,NA(),'Indexen goederen & diensten'!BR33/'Indexen goederen & diensten'!BR$33),NA()) -> 1 | HQ127: =IFERROR(IF('Indexen goederen & diensten'!BS33/'Indexen goederen & diensten'!BS$33=0,NA(),'Indexen goederen & diensten'!BS33/'Indexen goederen & diensten'!BS$33),NA()) -> 1 | HR127: =IFERROR(IF('Indexen goederen & diensten'!BT33/'Indexen goederen & diensten'!BT$33=0,NA(),'Indexen goederen & diensten'!BT33/'Indexen goederen & diensten'!BT$33),NA()) -> 1 | HS127: =IFERROR(IF('Indexen goederen & diensten'!BU33/'Indexen goederen & diensten'!BU$33=0,NA(),'Indexen goederen & diensten'!BU33/'Indexen goederen & diensten'!BU$33),NA()) -> 1 | HT127: =IFERROR(IF('Indexen goederen & diensten'!BV33/'Indexen goederen & diensten'!BV$33=0,NA(),'Indexen goederen & diensten'!BV33/'Indexen goederen & diensten'!BV$33),NA()) -> 1 | HU127: =IFERROR(IF('Indexen goederen & diensten'!BW33/'Indexen goederen & diensten'!BW$33=0,NA(),'Indexen goederen & diensten'!BW33/'Indexen goederen & diensten'!BW$33),NA()) -> 1 | HV127: =IFERROR(IF('Indexen goederen & diensten'!BX33/'Indexen goederen & diensten'!BX$33=0,NA(),'Indexen goederen & diensten'!BX33/'Indexen goederen & diensten'!BX$33),NA()) -> 1 | HW127: =IFERROR(IF('Indexen goederen & diensten'!BY33/'Indexen goederen & diensten'!BY$33=0,NA(),'Indexen goederen & diensten'!BY33/'Indexen goederen & diensten'!BY$33),NA()) -> 1 | HX127: =IFERROR(IF('Indexen goederen & diensten'!BZ33/'Indexen goederen & diensten'!BZ$33=0,NA(),'Indexen goederen & diensten'!BZ33/'Indexen goederen & diensten'!BZ$33),NA()) -> 1 | HY127: =IFERROR(IF('Indexen goederen & diensten'!CA33/'Indexen goederen & diensten'!CA$33=0,NA(),'Indexen goederen & diensten'!CA33/'Indexen goederen & diensten'!CA$33),NA()) -> 1 | HZ127: =IFERROR(IF('Indexen goederen & diensten'!CB33/'Indexen goederen & diensten'!CB$33=0,NA(),'Indexen goederen & diensten'!CB33/'Indexen goederen & diensten'!CB$33),NA()) -> 1 | IA127: =IFERROR(IF('Indexen goederen & diensten'!CC33/'Indexen goederen & diensten'!CC$33=0,NA(),'Indexen goederen & diensten'!CC33/'Indexen goederen & diensten'!CC$33),NA()) -> 1 | IB127: =IFERROR(IF('Indexen goederen & diensten'!CD33/'Indexen goederen & diensten'!CD$33=0,NA(),'Indexen goederen & diensten'!CD33/'Indexen goederen & diensten'!CD$33),NA()) -> 1 | IC127: =IFERROR(IF('Indexen goederen & diensten'!CE33/'Indexen goederen & diensten'!CE$33=0,NA(),'Indexen goederen & diensten'!CE33/'Indexen goederen & diensten'!CE$33),NA()) -> 1 | ID127: =IFERROR(IF('Indexen goederen & diensten'!CF33/'Indexen goederen & diensten'!CF$33=0,NA(),'Indexen goederen & diensten'!CF33/'Indexen goederen & diensten'!CF$33),NA()) -> 1 | IE127: =IFERROR(IF('Indexen goederen & diensten'!CG33/'Indexen goederen & diensten'!CG$33=0,NA(),'Indexen goederen & diensten'!CG33/'Indexen goederen & diensten'!CG$33),NA()) -> 1 | IF127: =IFERROR(IF('Indexen goederen & diensten'!CH33/'Indexen goederen & diensten'!CH$33=0,NA(),'Indexen goederen & diensten'!CH33/'Indexen goederen & diensten'!CH$33),NA()) -> 1 | IG127: =IFERROR(IF('Indexen goederen & diensten'!CI33/'Indexen goederen & diensten'!CI$33=0,NA(),'Indexen goederen & diensten'!CI33/'Indexen goederen & diensten'!CI$33),NA()) -> 1 | IH127: =IFERROR(IF('Indexen goederen & diensten'!CJ33/'Indexen goederen & diensten'!CJ$33=0,NA(),'Indexen goederen & diensten'!CJ33/'Indexen goederen & diensten'!CJ$33),NA()) -> 1 | II127: =IFERROR(IF('Indexen goederen & diensten'!CK33/'Indexen goederen & diensten'!CK$33=0,NA(),'Indexen goederen & diensten'!CK33/'Indexen goederen & diensten'!CK$33),NA()) -> 1 | IJ127: =IFERROR(IF('Indexen goederen & diensten'!CL33/'Indexen goederen & diensten'!CL$33=0,NA(),'Indexen goederen & diensten'!CL33/'Indexen goederen & diensten'!CL$33),NA()) -> 1 | IK127: =IFERROR(IF('Indexen goederen & diensten'!CM33/'Indexen goederen & diensten'!CM$33=0,NA(),'Indexen goederen & diensten'!CM33/'Indexen goederen & diensten'!CM$33),NA()) -> 1 | IL127: =IFERROR(IF('Indexen goederen & diensten'!CN33/'Indexen goederen & diensten'!CN$33=0,NA(),'Indexen goederen & diensten'!CN33/'Indexen goederen & diensten'!CN$33),NA()) -> 1 | IN127: =B127 -> 2018-01-01 | IO127: =IFERROR(IF(Standaardindexen!J28/Standaardindexen!J$28=0,NA(),Standaardindexen!J28/Standaardindexen!J$28),NA()) -> 1 | IP127: =IFERROR(IF(Standaardindexen!K28/Standaardindexen!K$28=0,NA(),Standaardindexen!K28/Standaardindexen!K$28),NA()) -> 1 | IQ127: =IFERROR(IF(Standaardindexen!L28/Standaardindexen!L$28=0,NA(),Standaardindexen!L28/Standaardindexen!L$28),NA()) -> 1 | IR127: =IFERROR(IF(Standaardindexen!M28/Standaardindexen!M$28=0,NA(),Standaardindexen!M28/Standaardindexen!M$28),NA()) -> 1 | IS127: =IFERROR(IF(Standaardindexen!N28/Standaardindexen!N$28=0,NA(),Standaardindexen!N28/Standaardindexen!N$28),NA()) -> 1 | IT127: =IFERROR(IF(Standaardindexen!O28/Standaardindexen!O$28=0,NA(),Standaardindexen!O28/Standaardindexen!O$28),NA()) -> 1 | IU127: =IFERROR(IF(Standaardindexen!P28/Standaardindexen!P$28=0,NA(),Standaardindexen!P28/Standaardindexen!P$28),NA()) -> 1 | IV127: =IFERROR(IF(Standaardindexen!Q28/Standaardindexen!Q$28=0,NA(),Standaardindexen!Q28/Standaardindexen!Q$28),NA()) -> 1 | IW127: =IFERROR(IF(Standaardindexen!R28/Standaardindexen!R$28=0,NA(),Standaardindexen!R28/Standaardindexen!R$28),NA()) -> 1 | IX127: =IFERROR(IF(Standaardindexen!S28/Standaardindexen!S$28=0,NA(),Standaardindexen!S28/Standaardindexen!S$28),NA()) -> 1 | IY127: =IFERROR(IF(Standaardindexen!T28/Standaardindexen!T$28=0,NA(),Standaardindexen!T28/Standaardindexen!T$28),NA()) -> 1 | IZ127: =IFERROR(IF(Standaardindexen!U28/Standaardindexen!U$28=0,NA(),Standaardindexen!U28/Standaardindexen!U$28),NA()) -> 1 | JA127: =IFERROR(IF(Standaardindexen!V28/Standaardindexen!V$28=0,NA(),Standaardindexen!V28/Standaardindexen!V$28),NA()) -> 1 | JB127: =IFERROR(IF(Standaardindexen!W28/Standaardindexen!W$28=0,NA(),Standaardindexen!W28/Standaardindexen!W$28),NA()) -> 1 | JC127: =IFERROR(IF(Standaardindexen!X28/Standaardindexen!X$28=0,NA(),Standaardindexen!X28/Standaardindexen!X$28),NA()) -> 1 | JD127: =IFERROR(IF(Standaardindexen!Y28/Standaardindexen!Y$28=0,NA(),Standaardindexen!Y28/Standaardindexen!Y$28),NA()) -> 1 | JE127: =IFERROR(IF(Standaardindexen!Z28/Standaardindexen!Z$28=0,NA(),Standaardindexen!Z28/Standaardindexen!Z$28),NA()) -> 1 | JF127: =IFERROR(IF(Standaardindexen!AA28/Standaardindexen!AA$28=0,NA(),Standaardindexen!AA28/Standaardindexen!AA$28),NA()) -> 1 | JG127: =IFERROR(IF(Standaardindexen!AB28/Standaardindexen!AB$28=0,NA(),Standaardindexen!AB28/Standaardindexen!AB$28),NA()) -> 1 | JH127: =IFERROR(IF(Standaardindexen!AC28/Standaardindexen!AC$28=0,NA(),Standaardindexen!AC28/Standaardindexen!AC$28),NA()) -> 1 | JI127: =IFERROR(IF('Indexeringen Lonen per PC'!BZ32/'Indexeringen Lonen per PC'!BZ$32=0,NA(),'Indexeringen Lonen per PC'!BZ32/'Indexeringen Lonen per PC'!BZ$32),NA()) -> 1 | JJ127: =IFERROR(IF('Indexeringen Lonen per PC'!CA32/'Indexeringen Lonen per PC'!CA$32=0,NA(),'Indexeringen Lonen per PC'!CA32/'Indexeringen Lonen per PC'!CA$32),NA()) -> 1 | JK127: =IFERROR(IF('Indexeringen Lonen per PC'!CB32/'Indexeringen Lonen per PC'!CB$32=0,NA(),'Indexeringen Lonen per PC'!CB32/'Indexeringen Lonen per PC'!CB$32),NA()) -> 1 | JL127: =IFERROR(IF('Indexeringen Lonen per PC'!CC32/'Indexeringen Lonen per PC'!CC$32=0,NA(),'Indexeringen Lonen per PC'!CC32/'Indexeringen Lonen per PC'!CC$32),NA()) -> 1 | JM127: =IFERROR(IF('Indexeringen Lonen per PC'!CD32/'Indexeringen Lonen per PC'!CD$32=0,NA(),'Indexeringen Lonen per PC'!CD32/'Indexeringen Lonen per PC'!CD$32),NA()) -> 1 | JN127: =IFERROR(IF('Indexeringen Lonen per PC'!CE32/'Indexeringen Lonen per PC'!CE$32=0,NA(),'Indexeringen Lonen per PC'!CE32/'Indexeringen Lonen per PC'!CE$32),NA()) -> 1 | JO127: =IFERROR(IF('Indexeringen Lonen per PC'!CF32/'Indexeringen Lonen per PC'!CF$32=0,NA(),'Indexeringen Lonen per PC'!CF32/'Indexeringen Lonen per PC'!CF$32),NA()) -> 1 | JP127: =IFERROR(IF('Indexeringen Lonen per PC'!CG32/'Indexeringen Lonen per PC'!CG$32=0,NA(),'Indexeringen Lonen per PC'!CG32/'Indexeringen Lonen per PC'!CG$32),NA()) -> 1 | JQ127: =IFERROR(IF('Indexeringen Lonen per PC'!CH32/'Indexeringen Lonen per PC'!CH$32=0,NA(),'Indexeringen Lonen per PC'!CH32/'Indexeringen Lonen per PC'!CH$32),NA()) -> 1 | JR127: =IFERROR(IF('Indexeringen Lonen per PC'!CI32/'Indexeringen Lonen per PC'!CI$32=0,NA(),'Indexeringen Lonen per PC'!CI32/'Indexeringen Lonen per PC'!CI$32),NA()) -> 1
B128: =Standaardindexen!C29 -> 2018-02-01 | C128: =IFERROR(IF(Standaardindexen!D29/IF(Standaardindexen!D$28=0,INDEX(Standard_indexen___màj_aout_2025[index "i"],MATCH(TRUE,Standard_indexen___màj_aout_2025[index "i"]<>"",0)),Standaardindexen!D$28)=0,NA(),Standaardindexen!D29/IF(Standaardindexen!D$28=0, INDEX(Standard_indexen___màj_aout_2025[index "i"],MATCH(TRUE,Standard_indexen___màj_aout_2025[index "i"]<>"",0)),Standaardindexen!D$28)),NA()) -> 1.001776875 | D128: =IFERROR(IF(Standaardindexen!E29/IF(Standaardindexen!E$28=0,INDEX(Standard_indexen___màj_aout_2025[index "i2021"],MATCH(TRUE,Standard_indexen___màj_aout_2025[index "i2021"]<>"",0)),Standaardindexen!E$28)=0,NA(),Standaardindexen!E29/IF(Standaardindexen!E$28=0, INDEX(Standard_indexen___màj_aout_2025[index "i2021"],MATCH(TRUE,Standard_indexen___màj_aout_2025[index "i2021"]<>"",0)),Standaardindexen!E$28)),NA()) -> 1.009613397 | E128: =IFERROR(IF(Standaardindexen!F29/IF(Standaardindexen!F$28=0,INDEX(Standard_indexen___màj_aout_2025[index "K1"],MATCH(TRUE,Standard_indexen___màj_aout_2025[index "K1"]<>"",0)),Standaardindexen!F$28)=0,NA(),Standaardindexen!F29/IF(Standaardindexen!F$28=0, INDEX(Standard_indexen___màj_aout_2025[index "K1"],MATCH(TRUE,Standard_indexen___màj_aout_2025[index "K1"]<>"",0)),Standaardindexen!F$28)),NA()) -> 0.9962311558 | F128: =IFERROR(IF(Standaardindexen!G29/IF(Standaardindexen!G$28=0,INDEX(Standard_indexen___màj_aout_2025[index "K2"],MATCH(TRUE,Standard_indexen___màj_aout_2025[index "K2"]<>"",0)),Standaardindexen!G$28)=0,NA(),Standaardindexen!G29/IF(Standaardindexen!G$28=0, INDEX(Standard_indexen___màj_aout_2025[index "K2"],MATCH(TRUE,Standard_indexen___màj_aout_2025[index "K2"]<>"",0)),Standaardindexen!G$28)),NA()) -> 1 | G128: =IFERROR(IF(Standaardindexen!H29/IF(Standaardindexen!H$28=0,INDEX(Standard_indexen___màj_aout_2025[index "M"],MATCH(TRUE,Standard_indexen___màj_aout_2025[index "M"]<>"",0)),Standaardindexen!H$28)=0,NA(),Standaardindexen!H29/IF(Standaardindexen!H$28=0, INDEX(Standard_indexen___màj_aout_2025[index "M"],MATCH(TRUE,Standard_indexen___màj_aout_2025[index "M"]<>"",0)),Standaardindexen!H$28)),NA()) -> 0.9940675767 | H128: =IFERROR(IF(Standaardindexen!I29/IF(Standaardindexen!I$28=0,INDEX(Standard_indexen___màj_aout_2025[index "MM"],MATCH(TRUE,Standard_indexen___màj_aout_2025[index "MM"]<>"",0)),Standaardindexen!I$28)=0,NA(),Standaardindexen!I29/IF(Standaardindexen!I$28=0, INDEX(Standard_indexen___màj_aout_2025[index "MM"],MATCH(TRUE,Standard_indexen___màj_aout_2025[index "MM"]<>"",0)),Standaardindexen!I$28)),NA()) -> 1.006684661 | I128: =IFERROR(IF(Standaardindexen!AE29/IF(Standaardindexen!AE$28=0,INDEX(Standard_indexen___màj_aout_2025[PPI 23 - Vervaardiging van andere niet-metaalhoudende minerale producten],MATCH(TRUE,Standard_indexen___màj_aout_2025[PPI 23 - Vervaardiging van andere niet-metaalhoudende minerale producten]<>"",0)),Standaardindexen!AE$28)=0,NA(),Standaardindexen!AE29/IF(Standaardindexen!AE$28=0, INDEX(Standard_indexen___màj_aout_2025[PPI 23 - Vervaardiging van andere niet-metaalhoudende minerale producten],MATCH(TRUE,Standard_indexen___màj_aout_2025[PPI 23 - Vervaardiging van andere niet-metaalhoudende minerale producten]<>"",0)),Standaardindexen!AE$28)),NA()) ->  | J128: =IFERROR(IF(Standaardindexen!AF29/IF(Standaardindexen!AF$28=0,INDEX(Standard_indexen___màj_aout_2025[PPI 24 - Vervaardiging van metalen in primaire vorm],MATCH(TRUE,Standard_indexen___màj_aout_2025[PPI 24 - Vervaardiging van metalen in primaire vorm]<>"",0)),Standaardindexen!AF$28)=0,NA(),Standaardindexen!AF29/IF(Standaardindexen!AF$28=0, INDEX(Standard_indexen___màj_aout_2025[PPI 24 - Vervaardiging van metalen in primaire vorm],MATCH(TRUE,Standard_indexen___màj_aout_2025[PPI 24 - Vervaardiging van metalen in primaire vorm]<>"",0)),Standaardindexen!AF$28)),NA()) ->  | K128: =IFERROR(IF(Standaardindexen!AG29/IF(Standaardindexen!AG$28=0,INDEX(Standard_indexen___màj_aout_2025[PPI 161 - Zagen en schaven van hout],MATCH(TRUE,Standard_indexen___màj_aout_2025[PPI 161 - Zagen en schaven van hout]<>"",0)),Standaardindexen!AG$28)=0,NA(),Standaardindexen!AG29/IF(Standaardindexen!AG$28=0, INDEX(Standard_indexen___màj_aout_2025[PPI 161 - Zagen en schaven van hout],MATCH(TRUE,Standard_indexen___màj_aout_2025[PPI 161 - Zagen en schaven van hout]<>"",0)),Standaardindexen!AG$28)),NA()) ->  | L128: =IFERROR(IF(Standaardindexen!AH29/IF(Standaardindexen!AH$28=0,INDEX(Standard_indexen___màj_aout_2025[PPI 162 - Vervaardiging van artikelen van hout, kurk, riet of vlechtwerk],MATCH(TRUE,Standard_indexen___màj_aout_2025[PPI 162 - Vervaardiging van artikelen van hout, kurk, riet of vlechtwerk]<>"",0)),Standaardindexen!AH$28)=0,NA(),Standaardindexen!AH29/IF(Standaardindexen!AH$28=0, INDEX(Standard_indexen___màj_aout_2025[PPI 162 - Vervaardiging van artikelen van hout, kurk, riet of vlechtwerk],MATCH(TRUE,Standard_indexen___màj_aout_2025[PPI 162 - Vervaardiging van artikelen van hout, kurk, riet of vlechtwerk]<>"",0)),Standaardindexen!AH$28)),NA()) ->  | M128: =IFERROR(IF(Standaardindexen!AI29/IF(Standaardindexen!AI$28=0,INDEX(Standard_indexen___màj_aout_2025[PPI 203 - Vervaardiging van verf, vernis e.d., drukinkt en mastiek],MATCH(TRUE,Standard_indexen___màj_aout_2025[PPI 203 - Vervaardiging van verf, vernis e.d., drukinkt en mastiek]<>"",0)),Standaardindexen!AI$28)=0,NA(),Standaardindexen!AI29/IF(Standaardindexen!AI$28=0, INDEX(Standard_indexen___màj_aout_2025[PPI 203 - Vervaardiging van verf, vernis e.d., drukinkt en mastiek],MATCH(TRUE,Standard_indexen___màj_aout_2025[PPI 203 - Vervaardiging van verf, vernis e.d., drukinkt en mastiek]<>"",0)),Standaardindexen!AI$28)),NA()) ->  | N128: =IFERROR(IF(Standaardindexen!AJ29/IF(Standaardindexen!AJ$28=0,INDEX(Standard_indexen___màj_aout_2025[PPI 205 - Vervaardiging van andere chemische producten],MATCH(TRUE,Standard_indexen___màj_aout_2025[PPI 205 - Vervaardiging van andere chemische producten]<>"",0)),Standaardindexen!AJ$28)=0,NA(),Standaardindexen!AJ29/IF(Standaardindexen!AJ$28=0, INDEX(Standard_indexen___màj_aout_2025[PPI 205 - Vervaardiging van andere chemische producten],MATCH(TRUE,Standard_indexen___màj_aout_2025[PPI 205 - Vervaardiging van andere chemische producten]<>"",0)),Standaardindexen!AJ$28)),NA()) ->  | O128: =IFERROR(IF(Standaardindexen!AK29/IF(Standaardindexen!AK$28=0,INDEX(Standard_indexen___màj_aout_2025[PPI 222 - Vervaardiging van producten van kunststof],MATCH(TRUE,Standard_indexen___màj_aout_2025[PPI 222 - Vervaardiging van producten van kunststof]<>"",0)),Standaardindexen!AK$28)=0,NA(),Standaardindexen!AK29/IF(Standaardindexen!AK$28=0, INDEX(Standard_indexen___màj_aout_2025[PPI 222 - Vervaardiging van producten van kunststof],MATCH(TRUE,Standard_indexen___màj_aout_2025[PPI 222 - Vervaardiging van producten van kunststof]<>"",0)),Standaardindexen!AK$28)),NA()) ->  | P128: =IFERROR(IF(Standaardindexen!AL29/IF(Standaardindexen!AL$28=0,INDEX(Standard_indexen___màj_aout_2025[PPI 231 - Vervaardiging van glas en glaswerk],MATCH(TRUE,Standard_indexen___màj_aout_2025[PPI 231 - Vervaardiging van glas en glaswerk]<>"",0)),Standaardindexen!AL$28)=0,NA(),Standaardindexen!AL29/IF(Standaardindexen!AL$28=0, INDEX(Standard_indexen___màj_aout_2025[PPI 231 - Vervaardiging van glas en glaswerk],MATCH(TRUE,Standard_indexen___màj_aout_2025[PPI 231 - Vervaardiging van glas en glaswerk]<>"",0)),Standaardindexen!AL$28)),NA()) ->  | Q128: =IFERROR(IF(Standaardindexen!AM29/IF(Standaardindexen!AM$28=0,INDEX(Standard_indexen___màj_aout_2025[PPI 233 - Vervaardiging van producten voor de bouw, van klei],MATCH(TRUE,Standard_indexen___màj_aout_2025[PPI 233 - Vervaardiging van producten voor de bouw, van klei]<>"",0)),Standaardindexen!AM$28)=0,NA(),Standaardindexen!AM29/IF(Standaardindexen!AM$28=0, INDEX(Standard_indexen___màj_aout_2025[PPI 233 - Vervaardiging van producten voor de bouw, van klei],MATCH(TRUE,Standard_indexen___màj_aout_2025[PPI 233 - Vervaardiging van producten voor de bouw, van klei]<>"",0)),Standaardindexen!AM$28)),NA()) ->  | R128: =IFERROR(IF(Standaardindexen!AN29/IF(Standaardindexen!AN$28=0,INDEX(Standard_indexen___màj_aout_2025[PPI 235 - Vervaardiging van cement, kalk en gips],MATCH(TRUE,Standard_indexen___màj_aout_2025[PPI 235 - Vervaardiging van cement, kalk en gips]<>"",0)),Standaardindexen!AN$28)=0,NA(),Standaardindexen!AN29/IF(Standaardindexen!AN$28=0, INDEX(Standard_indexen___màj_aout_2025[PPI 235 - Vervaardiging van cement, kalk en gips],MATCH(TRUE,Standard_indexen___màj_aout_2025[PPI 235 - Vervaardiging van cement, kalk en gips]<>"",0)),Standaardindexen!AN$28)),NA()) ->  | S128: =IFERROR(IF(Standaardindexen!AO29/IF(Standaardindexen!AO$28=0,INDEX(Standard_indexen___màj_aout_2025[PPI 236 - Vervaardiging van artikelen van beton, cement en gips],MATCH(TRUE,Standard_indexen___màj_aout_2025[PPI 236 - Vervaardiging van artikelen van beton, cement en gips]<>"",0)),Standaardindexen!AO$28)=0,NA(),Standaardindexen!AO29/IF(Standaardindexen!AO$28=0, INDEX(Standard_indexen___màj_aout_2025[PPI 236 - Vervaardiging van artikelen van beton, cement en gips],MATCH(TRUE,Standard_indexen___màj_aout_2025[PPI 236 - Vervaardiging van artikelen van beton, cement en gips]<>"",0)),Standaardindexen!AO$28)),NA()) ->  | T128: =IFERROR(IF(Standaardindexen!AP29/IF(Standaardindexen!AP$28=0,INDEX(Standard_indexen___màj_aout_2025[PPI 237 - Houwen, bewerken en afwerken van natuursteen],MATCH(TRUE,Standard_indexen___màj_aout_2025[PPI 237 - Houwen, bewerken en afwerken van natuursteen]<>"",0)),Standaardindexen!AP$28)=0,NA(),Standaardindexen!AP29/IF(Standaardindexen!AP$28=0, INDEX(Standard_indexen___màj_aout_2025[PPI 237 - Houwen, bewerken en afwerken van natuursteen],MATCH(TRUE,Standard_indexen___màj_aout_2025[PPI 237 - Houwen, bewerken en afwerken van natuursteen]<>"",0)),Standaardindexen!AP$28)),NA()) ->  | U128: =IFERROR(IF(Standaardindexen!AQ29/IF(Standaardindexen!AQ$28=0,INDEX(Standard_indexen___màj_aout_2025[PPI 239 - Vervaardiging van andere schuurmiddelen en niet-metaalhoudende minerale producten n.e.g.],MATCH(TRUE,Standard_indexen___màj_aout_2025[PPI 239 - Vervaardiging van andere schuurmiddelen en niet-metaalhoudende minerale producten n.e.g.]<>"",0)),Standaardindexen!AQ$28)=0,NA(),Standaardindexen!AQ29/IF(Standaardindexen!AQ$28=0, INDEX(Standard_indexen___màj_aout_2025[PPI 239 - Vervaardiging van andere schuurmiddelen en niet-metaalhoudende minerale producten n.e.g.],MATCH(TRUE,Standard_indexen___màj_aout_2025[PPI 239 - Vervaardiging van andere schuurmiddelen en niet-metaalhoudende minerale producten n.e.g.]<>"",0)),Standaardindexen!AQ$28)),NA()) ->  | V128: =IFERROR(IF(Standaardindexen!AR29/IF(Standaardindexen!AR$28=0,INDEX(Standard_indexen___màj_aout_2025[PPI 241 - Vervaardiging van ijzer en staal en van ferrolegeringen],MATCH(TRUE,Standard_indexen___màj_aout_2025[PPI 241 - Vervaardiging van ijzer en staal en van ferrolegeringen]<>"",0)),Standaardindexen!AR$28)=0,NA(),Standaardindexen!AR29/IF(Standaardindexen!AR$28=0, INDEX(Standard_indexen___màj_aout_2025[PPI 241 - Vervaardiging van ijzer en staal en van ferrolegeringen],MATCH(TRUE,Standard_indexen___màj_aout_2025[PPI 241 - Vervaardiging van ijzer en staal en van ferrolegeringen]<>"",0)),Standaardindexen!AR$28)),NA()) ->  | W128: =IFERROR(IF(Standaardindexen!AS29/IF(Standaardindexen!AS$28=0,INDEX(Standard_indexen___màj_aout_2025[PPI 243 - Vervaardiging van andere producten van de eerste verwerking van staal],MATCH(TRUE,Standard_indexen___màj_aout_2025[PPI 243 - Vervaardiging van andere producten van de eerste verwerking van staal]<>"",0)),Standaardindexen!AS$28)=0,NA(),Standaardindexen!AS29/IF(Standaardindexen!AS$28=0, INDEX(Standard_indexen___màj_aout_2025[PPI 243 - Vervaardiging van andere producten van de eerste verwerking van staal],MATCH(TRUE,Standard_indexen___màj_aout_2025[PPI 243 - Vervaardiging van andere producten van de eerste verwerking van staal]<>"",0)),Standaardindexen!AS$28)),NA()) ->  | X128: =IFERROR(IF(Standaardindexen!AT29/IF(Standaardindexen!AT$28=0,INDEX(Standard_indexen___màj_aout_2025[PPI 244 - Productie van edele metalen en van andere non-ferrometalen],MATCH(TRUE,Standard_indexen___màj_aout_2025[PPI 244 - Productie van edele metalen en van andere non-ferrometalen]<>"",0)),Standaardindexen!AT$28)=0,NA(),Standaardindexen!AT29/IF(Standaardindexen!AT$28=0, INDEX(Standard_indexen___màj_aout_2025[PPI 244 - Productie van edele metalen en van andere non-ferrometalen],MATCH(TRUE,Standard_indexen___màj_aout_2025[PPI 244 - Productie van edele metalen en van andere non-ferrometalen]<>"",0)),Standaardindexen!AT$28)),NA()) ->  | Y128: =IFERROR(IF(Standaardindexen!AU29/IF(Standaardindexen!AU$28=0,INDEX(Standard_indexen___màj_aout_2025[PPI 251 - Vervaardiging van metalen constructiewerken],MATCH(TRUE,Standard_indexen___màj_aout_2025[PPI 251 - Vervaardiging van metalen constructiewerken]<>"",0)),Standaardindexen!AU$28)=0,NA(),Standaardindexen!AU29/IF(Standaardindexen!AU$28=0, INDEX(Standard_indexen___màj_aout_2025[PPI 251 - Vervaardiging van metalen constructiewerken],MATCH(TRUE,Standard_indexen___màj_aout_2025[PPI 251 - Vervaardiging van metalen constructiewerken]<>"",0)),Standaardindexen!AU$28)),NA()) ->  | Z128: =IFERROR(IF(Standaardindexen!AV29/IF(Standaardindexen!AV$28=0,INDEX(Standard_indexen___màj_aout_2025[PPI 252 - Vervaardiging van tanks, reservoirs en bergingsmiddelen, van metaal],MATCH(TRUE,Standard_indexen___màj_aout_2025[PPI 252 - Vervaardiging van tanks, reservoirs en bergingsmiddelen, van metaal]<>"",0)),Standaardindexen!AV$28)=0,NA(),Standaardindexen!AV29/IF(Standaardindexen!AV$28=0, INDEX(Standard_indexen___màj_aout_2025[PPI 252 - Vervaardiging van tanks, reservoirs en bergingsmiddelen, van metaal],MATCH(TRUE,Standard_indexen___màj_aout_2025[PPI 252 - Vervaardiging van tanks, reservoirs en bergingsmiddelen, van metaal]<>"",0)),Standaardindexen!AV$28)),NA()) ->  | AA128: =IFERROR(IF(Standaardindexen!AW29/IF(Standaardindexen!AW$28=0,INDEX(Standard_indexen___màj_aout_2025[PPI 257 - Vervaardiging van scharen, messen, bestekken, gereedschap en ijzerwaren],MATCH(TRUE,Standard_indexen___màj_aout_2025[PPI 257 - Vervaardiging van scharen, messen, bestekken, gereedschap en ijzerwaren]<>"",0)),Standaardindexen!AW$28)=0,NA(),Standaardindexen!AW29/IF(Standaardindexen!AW$28=0, INDEX(Standard_indexen___màj_aout_2025[PPI 257 - Vervaardiging van scharen, messen, bestekken, gereedschap en ijzerwaren],MATCH(TRUE,Standard_indexen___màj_aout_2025[PPI 257 - Vervaardiging van scharen, messen, bestekken, gereedschap en ijzerwaren]<>"",0)),Standaardindexen!AW$28)),NA()) ->  | AB128: =IFERROR(IF(Standaardindexen!AX29/IF(Standaardindexen!AX$28=0,INDEX(Standard_indexen___màj_aout_2025[PPI 259 - Vervaardiging van andere producten van metaal],MATCH(TRUE,Standard_indexen___màj_aout_2025[PPI 259 - Vervaardiging van andere producten van metaal]<>"",0)),Standaardindexen!AX$28)=0,NA(),Standaardindexen!AX29/IF(Standaardindexen!AX$28=0, INDEX(Standard_indexen___màj_aout_2025[PPI 259 - Vervaardiging van andere producten van metaal],MATCH(TRUE,Standard_indexen___màj_aout_2025[PPI 259 - Vervaardiging van andere producten van metaal]<>"",0)),Standaardindexen!AX$28)),NA()) ->  | AC128: =IFERROR(IF(Standaardindexen!AY29/IF(Standaardindexen!AY$28=0,INDEX(Standard_indexen___màj_aout_2025[PPI 263 - Vervaardiging van communicatieapparatuur],MATCH(TRUE,Standard_indexen___màj_aout_2025[PPI 263 - Vervaardiging van communicatieapparatuur]<>"",0)),Standaardindexen!AY$28)=0,NA(),Standaardindexen!AY29/IF(Standaardindexen!AY$28=0, INDEX(Standard_indexen___màj_aout_2025[PPI 263 - Vervaardiging van communicatieapparatuur],MATCH(TRUE,Standard_indexen___màj_aout_2025[PPI 263 - Vervaardiging van communicatieapparatuur]<>"",0)),Standaardindexen!AY$28)),NA()) ->  | AD128: =IFERROR(IF(Standaardindexen!AZ29/IF(Standaardindexen!AZ$28=0,INDEX(Standard_indexen___màj_aout_2025[PPI 271 - Vervaardiging van elektromotoren, van elektrische generatoren en transformatoren en van schakel- en verdeelinrichtingen],MATCH(TRUE,Standard_indexen___màj_aout_2025[PPI 271 - Vervaardiging van elektromotoren, van elektrische generatoren en transformatoren en van schakel- en verdeelinrichtingen]<>"",0)),Standaardindexen!AZ$28)=0,NA(),Standaardindexen!AZ29/IF(Standaardindexen!AZ$28=0, INDEX(Standard_indexen___màj_aout_2025[PPI 271 - Vervaardiging van elektromotoren, van elektrische generatoren en transformatoren en van schakel- en verdeelinrichtingen],MATCH(TRUE,Standard_indexen___màj_aout_2025[PPI 271 - Vervaardiging van elektromotoren, van elektrische generatoren en transformatoren en van schakel- en verdeelinrichtingen]<>"",0)),Standaardindexen!AZ$28)),NA()) ->  | AE128: =IFERROR(IF(Standaardindexen!BA29/IF(Standaardindexen!BA$28=0,INDEX(Standard_indexen___màj_aout_2025[PPI 273 - Vervaardiging van kabels en van schakelaars, stekkers, stopcontacten e. d.],MATCH(TRUE,Standard_indexen___màj_aout_2025[PPI 273 - Vervaardiging van kabels en van schakelaars, stekkers, stopcontacten e. d.]<>"",0)),Standaardindexen!BA$28)=0,NA(),Standaardindexen!BA29/IF(Standaardindexen!BA$28=0, INDEX(Standard_indexen___màj_aout_2025[PPI 273 - Vervaardiging van kabels en van schakelaars, stekkers, stopcontacten e. d.],MATCH(TRUE,Standard_indexen___màj_aout_2025[PPI 273 - Vervaardiging van kabels en van schakelaars, stekkers, stopcontacten e. d.]<>"",0)),Standaardindexen!BA$28)),NA()) ->  | AF128: =IFERROR(IF(Standaardindexen!BB29/IF(Standaardindexen!BB$28=0,INDEX(Standard_indexen___màj_aout_2025[PPI 274 - Vervaardiging van lampen en verlichtingsapparaten],MATCH(TRUE,Standard_indexen___màj_aout_2025[PPI 274 - Vervaardiging van lampen en verlichtingsapparaten]<>"",0)),Standaardindexen!BB$28)=0,NA(),Standaardindexen!BB29/IF(Standaardindexen!BB$28=0, INDEX(Standard_indexen___màj_aout_2025[PPI 274 - Vervaardiging van lampen en verlichtingsapparaten],MATCH(TRUE,Standard_indexen___màj_aout_2025[PPI 274 - Vervaardiging van lampen en verlichtingsapparaten]<>"",0)),Standaardindexen!BB$28)),NA()) ->  | AG128: =IFERROR(IF(Standaardindexen!BC29/IF(Standaardindexen!BC$28=0,INDEX(Standard_indexen___màj_aout_2025[PPI 282 - Vervaardiging van andere machines en apparaten voor algemeen gebruik],MATCH(TRUE,Standard_indexen___màj_aout_2025[PPI 282 - Vervaardiging van andere machines en apparaten voor algemeen gebruik]<>"",0)),Standaardindexen!BC$28)=0,NA(),Standaardindexen!BC29/IF(Standaardindexen!BC$28=0, INDEX(Standard_indexen___màj_aout_2025[PPI 282 - Vervaardiging van andere machines en apparaten voor algemeen gebruik],MATCH(TRUE,Standard_indexen___màj_aout_2025[PPI 282 - Vervaardiging van andere machines en apparaten voor algemeen gebruik]<>"",0)),Standaardindexen!BC$28)),NA()) ->  | AH128: =IFERROR(IF(Standaardindexen!BD29/IF(Standaardindexen!BD$28=0,INDEX(Standard_indexen___màj_aout_2025[PPI 310 - Vervaardiging van meubelen],MATCH(TRUE,Standard_indexen___màj_aout_2025[PPI 310 - Vervaardiging van meubelen]<>"",0)),Standaardindexen!BD$28)=0,NA(),Standaardindexen!BD29/IF(Standaardindexen!BD$28=0, INDEX(Standard_indexen___màj_aout_2025[PPI 310 - Vervaardiging van meubelen],MATCH(TRUE,Standard_indexen___màj_aout_2025[PPI 310 - Vervaardiging van meubelen]<>"",0)),Standaardindexen!BD$28)),NA()) ->  | AI128: =IFERROR(IF(Standaardindexen!BE29/IF(Standaardindexen!BE$28=0,INDEX(Standard_indexen___màj_aout_2025[PPI 081 - Winning van steen, zand en klei],MATCH(TRUE,Standard_indexen___màj_aout_2025[PPI 081 - Winning van steen, zand en klei]<>"",0)),Standaardindexen!BE$28)=0,NA(),Standaardindexen!BE29/IF(Standaardindexen!BE$28=0, INDEX(Standard_indexen___màj_aout_2025[PPI 081 - Winning van steen, zand en klei],MATCH(TRUE,Standard_indexen___màj_aout_2025[PPI 081 - Winning van steen, zand en klei]<>"",0)),Standaardindexen!BE$28)),NA()) ->  | AJ128: =IFERROR(IF(Standaardindexen!BF29/IF(Standaardindexen!BF$28=0,INDEX(Standard_indexen___màj_aout_2025[CEMENT (specifieke serie - Onderzoek)],MATCH(TRUE,Standard_indexen___màj_aout_2025[CEMENT (specifieke serie - Onderzoek)]<>"",0)),Standaardindexen!BF$28)=0,NA(),Standaardindexen!BF29/IF(Standaardindexen!BF$28=0, INDEX(Standard_indexen___màj_aout_2025[CEMENT (specifieke serie - Onderzoek)],MATCH(TRUE,Standard_indexen___màj_aout_2025[CEMENT (specifieke serie - Onderzoek)]<>"",0)),Standaardindexen!BF$28)),NA()) ->  | AK128: ='Achteraf en prognoses'!R58 ->  | AL128: ='Achteraf en prognoses'!O58 ->  | AM128: =IFERROR(IF('Materiaalindexen o.w.'!D34/IF('Materiaalindexen o.w.'!D$33=0,INDEX(OW_indexen___màj_aout_2025[OW 101 - Porfierslag - 40/56],MATCH(TRUE,OW_indexen___màj_aout_2025[OW 101 - Porfierslag - 40/56]<>"",0)),'Materiaalindexen o.w.'!D$33)=0,NA(),'Materiaalindexen o.w.'!D34/IF('Materiaalindexen o.w.'!D$33=0, INDEX(OW_indexen___màj_aout_2025[OW 101 - Porfierslag - 40/56],MATCH(TRUE,OW_indexen___màj_aout_2025[OW 101 - Porfierslag - 40/56]<>"",0)),'Materiaalindexen o.w.'!D$33)),NA()) -> 1 | AN128: =IFERROR(IF('Materiaalindexen o.w.'!E34/IF('Materiaalindexen o.w.'!E$33=0,INDEX(OW_indexen___màj_aout_2025[OW 102 - Porfierslag - 20/32],MATCH(TRUE,OW_indexen___màj_aout_2025[OW 102 - Porfierslag - 20/32]<>"",0)),'Materiaalindexen o.w.'!E$33)=0,NA(),'Materiaalindexen o.w.'!E34/IF('Materiaalindexen o.w.'!E$33=0, INDEX(OW_indexen___màj_aout_2025[OW 102 - Porfierslag - 20/32],MATCH(TRUE,OW_indexen___màj_aout_2025[OW 102 - Porfierslag - 20/32]<>"",0)),'Materiaalindexen o.w.'!E$33)),NA()) -> 1 | AO128: =IFERROR(IF('Materiaalindexen o.w.'!F34/IF('Materiaalindexen o.w.'!F$33=0,INDEX(OW_indexen___màj_aout_2025[OW 103 - Porfierslag - 6/20],MATCH(TRUE,OW_indexen___màj_aout_2025[OW 103 - Porfierslag - 6/20]<>"",0)),'Materiaalindexen o.w.'!F$33)=0,NA(),'Materiaalindexen o.w.'!F34/IF('Materiaalindexen o.w.'!F$33=0, INDEX(OW_indexen___màj_aout_2025[OW 103 - Porfierslag - 6/20],MATCH(TRUE,OW_indexen___màj_aout_2025[OW 103 - Porfierslag - 6/20]<>"",0)),'Materiaalindexen o.w.'!F$33)),NA()) -> 1 | AP128: =IFERROR(IF('Materiaalindexen o.w.'!G34/IF('Materiaalindexen o.w.'!G$33=0,INDEX(OW_indexen___màj_aout_2025[OW 104 - Porfierslag - 2/6],MATCH(TRUE,OW_indexen___màj_aout_2025[OW 104 - Porfierslag - 2/6]<>"",0)),'Materiaalindexen o.w.'!G$33)=0,NA(),'Materiaalindexen o.w.'!G34/IF('Materiaalindexen o.w.'!G$33=0, INDEX(OW_indexen___màj_aout_2025[OW 104 - Porfierslag - 2/6],MATCH(TRUE,OW_indexen___màj_aout_2025[OW 104 - Porfierslag - 2/6]<>"",0)),'Materiaalindexen o.w.'!G$33)),NA()) -> 1 | AQ128: =IFERROR(IF('Materiaalindexen o.w.'!H34/IF('Materiaalindexen o.w.'!H$33=0,INDEX(OW_indexen___màj_aout_2025[OW 105 - Porfierslag - alle kalibers vanaf 12/2023],MATCH(TRUE,OW_indexen___màj_aout_2025[OW 105 - Porfierslag - alle kalibers vanaf 12/2023]<>"",0)),'Materiaalindexen o.w.'!H$33)=0,NA(),'Materiaalindexen o.w.'!H34/IF('Materiaalindexen o.w.'!H$33=0, INDEX(OW_indexen___màj_aout_2025[OW 105 - Porfierslag - alle kalibers vanaf 12/2023],MATCH(TRUE,OW_indexen___màj_aout_2025[OW 105 - Porfierslag - alle kalibers vanaf 12/2023]<>"",0)),'Materiaalindexen o.w.'!H$33)),NA()) ->  | AR128: =IFERROR(IF('Materiaalindexen o.w.'!I34/IF('Materiaalindexen o.w.'!I$33=0,INDEX(OW_indexen___màj_aout_2025[OW 109 - Zandsteenslag - 32/56],MATCH(TRUE,OW_indexen___màj_aout_2025[OW 109 - Zandsteenslag - 32/56]<>"",0)),'Materiaalindexen o.w.'!I$33)=0,NA(),'Materiaalindexen o.w.'!I34/IF('Materiaalindexen o.w.'!I$33=0, INDEX(OW_indexen___màj_aout_2025[OW 109 - Zandsteenslag - 32/56],MATCH(TRUE,OW_indexen___màj_aout_2025[OW 109 - Zandsteenslag - 32/56]<>"",0)),'Materiaalindexen o.w.'!I$33)),NA()) -> 1 | AS128: =IFERROR(IF('Materiaalindexen o.w.'!J34/IF('Materiaalindexen o.w.'!J$33=0,INDEX(OW_indexen___màj_aout_2025[OW 110 - Zandsteenslag - 20/32],MATCH(TRUE,OW_indexen___màj_aout_2025[OW 110 - Zandsteenslag - 20/32]<>"",0)),'Materiaalindexen o.w.'!J$33)=0,NA(),'Materiaalindexen o.w.'!J34/IF('Materiaalindexen o.w.'!J$33=0, INDEX(OW_indexen___màj_aout_2025[OW 110 - Zandsteenslag - 20/32],MATCH(TRUE,OW_indexen___màj_aout_2025[OW 110 - Zandsteenslag - 20/32]<>"",0)),'Materiaalindexen o.w.'!J$33)),NA()) -> 1 | AT128: =IFERROR(IF('Materiaalindexen o.w.'!K34/IF('Materiaalindexen o.w.'!K$33=0,INDEX(OW_indexen___màj_aout_2025[OW 111 - Zandsteenslag - 6/20],MATCH(TRUE,OW_indexen___màj_aout_2025[OW 111 - Zandsteenslag - 6/20]<>"",0)),'Materiaalindexen o.w.'!K$33)=0,NA(),'Materiaalindexen o.w.'!K34/IF('Materiaalindexen o.w.'!K$33=0, INDEX(OW_indexen___màj_aout_2025[OW 111 - Zandsteenslag - 6/20],MATCH(TRUE,OW_indexen___màj_aout_2025[OW 111 - Zandsteenslag - 6/20]<>"",0)),'Materiaalindexen o.w.'!K$33)),NA()) -> 1 | AU128: =IFERROR(IF('Materiaalindexen o.w.'!L34/IF('Materiaalindexen o.w.'!L$33=0,INDEX(OW_indexen___màj_aout_2025[OW 112 - Zandsteenslag - 2/6],MATCH(TRUE,OW_indexen___màj_aout_2025[OW 112 - Zandsteenslag - 2/6]<>"",0)),'Materiaalindexen o.w.'!L$33)=0,NA(),'Materiaalindexen o.w.'!L34/IF('Materiaalindexen o.w.'!L$33=0, INDEX(OW_indexen___màj_aout_2025[OW 112 - Zandsteenslag - 2/6],MATCH(TRUE,OW_indexen___màj_aout_2025[OW 112 - Zandsteenslag - 2/6]<>"",0)),'Materiaalindexen o.w.'!L$33)),NA()) -> 1 | AV128: =IFERROR(IF('Materiaalindexen o.w.'!M34/IF('Materiaalindexen o.w.'!M$33=0,INDEX(OW_indexen___màj_aout_2025[OW 115 - Zandsteenslag - alle kalibers vanaf 12/2023],MATCH(TRUE,OW_indexen___màj_aout_2025[OW 115 - Zandsteenslag - alle kalibers vanaf 12/2023]<>"",0)),'Materiaalindexen o.w.'!M$33)=0,NA(),'Materiaalindexen o.w.'!M34/IF('Materiaalindexen o.w.'!M$33=0, INDEX(OW_indexen___màj_aout_2025[OW 115 - Zandsteenslag - alle kalibers vanaf 12/2023],MATCH(TRUE,OW_indexen___màj_aout_2025[OW 115 - Zandsteenslag - alle kalibers vanaf 12/2023]<>"",0)),'Materiaalindexen o.w.'!M$33)),NA()) ->  | AW128: =IFERROR(IF('Materiaalindexen o.w.'!N34/IF('Materiaalindexen o.w.'!N$33=0,INDEX(OW_indexen___màj_aout_2025[OW 117 - Kalksteen - 20/32],MATCH(TRUE,OW_indexen___màj_aout_2025[OW 117 - Kalksteen - 20/32]<>"",0)),'Materiaalindexen o.w.'!N$33)=0,NA(),'Materiaalindexen o.w.'!N34/IF('Materiaalindexen o.w.'!N$33=0, INDEX(OW_indexen___màj_aout_2025[OW 117 - Kalksteen - 20/32],MATCH(TRUE,OW_indexen___màj_aout_2025[OW 117 - Kalksteen - 20/32]<>"",0)),'Materiaalindexen o.w.'!N$33)),NA()) -> 1 | AX128: =IFERROR(IF('Materiaalindexen o.w.'!O34/IF('Materiaalindexen o.w.'!O$33=0,INDEX(OW_indexen___màj_aout_2025[OW 118 - Kalksteen - 14/20],MATCH(TRUE,OW_indexen___màj_aout_2025[OW 118 - Kalksteen - 14/20]<>"",0)),'Materiaalindexen o.w.'!O$33)=0,NA(),'Materiaalindexen o.w.'!O34/IF('Materiaalindexen o.w.'!O$33=0, INDEX(OW_indexen___màj_aout_2025[OW 118 - Kalksteen - 14/20],MATCH(TRUE,OW_indexen___màj_aout_2025[OW 118 - Kalksteen - 14/20]<>"",0)),'Materiaalindexen o.w.'!O$33)),NA()) -> 1 | AY128: =IFERROR(IF('Materiaalindexen o.w.'!P34/IF('Materiaalindexen o.w.'!P$33=0,INDEX(OW_indexen___màj_aout_2025[OW 119 - Kalksteen - 6/14],MATCH(TRUE,OW_indexen___màj_aout_2025[OW 119 - Kalksteen - 6/14]<>"",0)),'Materiaalindexen o.w.'!P$33)=0,NA(),'Materiaalindexen o.w.'!P34/IF('Materiaalindexen o.w.'!P$33=0, INDEX(OW_indexen___màj_aout_2025[OW 119 - Kalksteen - 6/14],MATCH(TRUE,OW_indexen___màj_aout_2025[OW 119 - Kalksteen - 6/14]<>"",0)),'Materiaalindexen o.w.'!P$33)),NA()) -> 1 | AZ128: =IFERROR(IF('Materiaalindexen o.w.'!Q34/IF('Materiaalindexen o.w.'!Q$33=0,INDEX(OW_indexen___màj_aout_2025[OW 120 - Kalksteen - 2/6],MATCH(TRUE,OW_indexen___màj_aout_2025[OW 120 - Kalksteen - 2/6]<>"",0)),'Materiaalindexen o.w.'!Q$33)=0,NA(),'Materiaalindexen o.w.'!Q34/IF('Materiaalindexen o.w.'!Q$33=0, INDEX(OW_indexen___màj_aout_2025[OW 120 - Kalksteen - 2/6],MATCH(TRUE,OW_indexen___màj_aout_2025[OW 120 - Kalksteen - 2/6]<>"",0)),'Materiaalindexen o.w.'!Q$33)),NA()) -> 1 | BA128: =IFERROR(IF('Materiaalindexen o.w.'!R34/IF('Materiaalindexen o.w.'!R$33=0,INDEX(OW_indexen___màj_aout_2025[OW 121 - Kalksteen - 0/2 - 0/4],MATCH(TRUE,OW_indexen___màj_aout_2025[OW 121 - Kalksteen - 0/2 - 0/4]<>"",0)),'Materiaalindexen o.w.'!R$33)=0,NA(),'Materiaalindexen o.w.'!R34/IF('Materiaalindexen o.w.'!R$33=0, INDEX(OW_indexen___màj_aout_2025[OW 121 - Kalksteen - 0/2 - 0/4],MATCH(TRUE,OW_indexen___màj_aout_2025[OW 121 - Kalksteen - 0/2 - 0/4]<>"",0)),'Materiaalindexen o.w.'!R$33)),NA()) -> 1 | BB128: =IFERROR(IF('Materiaalindexen o.w.'!S34/IF('Materiaalindexen o.w.'!S$33=0,INDEX(OW_indexen___màj_aout_2025[OW 125 - Kalksteen - alle kalibers vanaf 12/2023],MATCH(TRUE,OW_indexen___màj_aout_2025[OW 125 - Kalksteen - alle kalibers vanaf 12/2023]<>"",0)),'Materiaalindexen o.w.'!S$33)=0,NA(),'Materiaalindexen o.w.'!S34/IF('Materiaalindexen o.w.'!S$33=0, INDEX(OW_indexen___màj_aout_2025[OW 125 - Kalksteen - alle kalibers vanaf 12/2023],MATCH(TRUE,OW_indexen___màj_aout_2025[OW 125 - Kalksteen - alle kalibers vanaf 12/2023]<>"",0)),'Materiaalindexen o.w.'!S$33)),NA()) ->  | BC128: =IFERROR(IF('Materiaalindexen o.w.'!T34/IF('Materiaalindexen o.w.'!T$33=0,INDEX(OW_indexen___màj_aout_2025[OW 130 - Binnenlands zand - voor gestabiliseerd zand],MATCH(TRUE,OW_indexen___màj_aout_2025[OW 130 - Binnenlands zand - voor gestabiliseerd zand]<>"",0)),'Materiaalindexen o.w.'!T$33)=0,NA(),'Materiaalindexen o.w.'!T34/IF('Materiaalindexen o.w.'!T$33=0, INDEX(OW_indexen___màj_aout_2025[OW 130 - Binnenlands zand - voor gestabiliseerd zand],MATCH(TRUE,OW_indexen___màj_aout_2025[OW 130 - Binnenlands zand - voor gestabiliseerd zand]<>"",0)),'Materiaalindexen o.w.'!T$33)),NA()) -> 1 | BD128: =IFERROR(IF('Materiaalindexen o.w.'!U34/IF('Materiaalindexen o.w.'!U$33=0,INDEX(OW_indexen___màj_aout_2025[OW 131 - Binnenlands zand - voor beton],MATCH(TRUE,OW_indexen___màj_aout_2025[OW 131 - Binnenlands zand - voor beton]<>"",0)),'Materiaalindexen o.w.'!U$33)=0,NA(),'Materiaalindexen o.w.'!U34/IF('Materiaalindexen o.w.'!U$33=0, INDEX(OW_indexen___màj_aout_2025[OW 131 - Binnenlands zand - voor beton],MATCH(TRUE,OW_indexen___màj_aout_2025[OW 131 - Binnenlands zand - voor beton]<>"",0)),'Materiaalindexen o.w.'!U$33)),NA()) -> 1 | BE128: =IFERROR(IF('Materiaalindexen o.w.'!V34/IF('Materiaalindexen o.w.'!V$33=0,INDEX(OW_indexen___màj_aout_2025[OW 132 - Binnenlands grind - grind 4/28],MATCH(TRUE,OW_indexen___màj_aout_2025[OW 132 - Binnenlands grind - grind 4/28]<>"",0)),'Materiaalindexen o.w.'!V$33)=0,NA(),'Materiaalindexen o.w.'!V34/IF('Materiaalindexen o.w.'!V$33=0, INDEX(OW_indexen___màj_aout_2025[OW 132 - Binnenlands grind - grind 4/28],MATCH(TRUE,OW_indexen___màj_aout_2025[OW 132 - Binnenlands grind - grind 4/28]<>"",0)),'Materiaalindexen o.w.'!V$33)),NA()) -> 1 | BF128: =IFERROR(IF('Materiaalindexen o.w.'!W34/IF('Materiaalindexen o.w.'!W$33=0,INDEX(OW_indexen___màj_aout_2025[OW 133 - Binnenlands grind - zand van de Maas],MATCH(TRUE,OW_indexen___màj_aout_2025[OW 133 - Binnenlands grind - zand van de Maas]<>"",0)),'Materiaalindexen o.w.'!W$33)=0,NA(),'Materiaalindexen o.w.'!W34/IF('Materiaalindexen o.w.'!W$33=0, INDEX(OW_indexen___màj_aout_2025[OW 133 - Binnenlands grind - zand van de Maas],MATCH(TRUE,OW_indexen___màj_aout_2025[OW 133 - Binnenlands grind - zand van de Maas]<>"",0)),'Materiaalindexen o.w.'!W$33)),NA()) -> 1 | BG128: =IFERROR(IF('Materiaalindexen o.w.'!X34/IF('Materiaalindexen o.w.'!X$33=0,INDEX(OW_indexen___màj_aout_2025[OW 134 - Binnenlands grind - gebroken 2/6],MATCH(TRUE,OW_indexen___màj_aout_2025[OW 134 - Binnenlands grind - gebroken 2/6]<>"",0)),'Materiaalindexen o.w.'!X$33)=0,NA(),'Materiaalindexen o.w.'!X34/IF('Materiaalindexen o.w.'!X$33=0, INDEX(OW_indexen___màj_aout_2025[OW 134 - Binnenlands grind - gebroken 2/6],MATCH(TRUE,OW_indexen___màj_aout_2025[OW 134 - Binnenlands grind - gebroken 2/6]<>"",0)),'Materiaalindexen o.w.'!X$33)),NA()) -> 1 | BH128: =IFERROR(IF('Materiaalindexen o.w.'!Y34/IF('Materiaalindexen o.w.'!Y$33=0,INDEX(OW_indexen___màj_aout_2025[OW 135 - Binnenlands grind - gebroken 6/20],MATCH(TRUE,OW_indexen___màj_aout_2025[OW 135 - Binnenlands grind - gebroken 6/20]<>"",0)),'Materiaalindexen o.w.'!Y$33)=0,NA(),'Materiaalindexen o.w.'!Y34/IF('Materiaalindexen o.w.'!Y$33=0, INDEX(OW_indexen___màj_aout_2025[OW 135 - Binnenlands grind - gebroken 6/20],MATCH(TRUE,OW_indexen___màj_aout_2025[OW 135 - Binnenlands grind - gebroken 6/20]<>"",0)),'Materiaalindexen o.w.'!Y$33)),NA()) -> 1 | BI128: =IFERROR(IF('Materiaalindexen o.w.'!Z34/IF('Materiaalindexen o.w.'!Z$33=0,INDEX(OW_indexen___màj_aout_2025[OW 136 - Binnenlands grind - gebroken 2/32],MATCH(TRUE,OW_indexen___màj_aout_2025[OW 136 - Binnenlands grind - gebroken 2/32]<>"",0)),'Materiaalindexen o.w.'!Z$33)=0,NA(),'Materiaalindexen o.w.'!Z34/IF('Materiaalindexen o.w.'!Z$33=0, INDEX(OW_indexen___màj_aout_2025[OW 136 - Binnenlands grind - gebroken 2/32],MATCH(TRUE,OW_indexen___màj_aout_2025[OW 136 - Binnenlands grind - gebroken 2/32]<>"",0)),'Materiaalindexen o.w.'!Z$33)),NA()) -> 1 | BJ128: =IFERROR(IF('Materiaalindexen o.w.'!AA34/IF('Materiaalindexen o.w.'!AA$33=0,INDEX(OW_indexen___màj_aout_2025[OW 137 - Grind Rijnland - kaai Brussel],MATCH(TRUE,OW_indexen___màj_aout_2025[OW 137 - Grind Rijnland - kaai Brussel]<>"",0)),'Materiaalindexen o.w.'!AA$33)=0,NA(),'Materiaalindexen o.w.'!AA34/IF('Materiaalindexen o.w.'!AA$33=0, INDEX(OW_indexen___màj_aout_2025[OW 137 - Grind Rijnland - kaai Brussel],MATCH(TRUE,OW_indexen___màj_aout_2025[OW 137 - Grind Rijnland - kaai Brussel]<>"",0)),'Materiaalindexen o.w.'!AA$33)),NA()) -> 1 | BK128: =IFERROR(IF('Materiaalindexen o.w.'!AB34/IF('Materiaalindexen o.w.'!AB$33=0,INDEX(OW_indexen___màj_aout_2025[OW 137² - Grind Rijnland - kaai Antwerpen],MATCH(TRUE,OW_indexen___màj_aout_2025[OW 137² - Grind Rijnland - kaai Antwerpen]<>"",0)),'Materiaalindexen o.w.'!AB$33)=0,NA(),'Materiaalindexen o.w.'!AB34/IF('Materiaalindexen o.w.'!AB$33=0, INDEX(OW_indexen___màj_aout_2025[OW 137² - Grind Rijnland - kaai Antwerpen],MATCH(TRUE,OW_indexen___màj_aout_2025[OW 137² - Grind Rijnland - kaai Antwerpen]<>"",0)),'Materiaalindexen o.w.'!AB$33)),NA()) -> 1 | BL128: =IFERROR(IF('Materiaalindexen o.w.'!AC34/IF('Materiaalindexen o.w.'!AC$33=0,INDEX(OW_indexen___màj_aout_2025[OW 138 - Rivierzand Waal - kaai Brussel],MATCH(TRUE,OW_indexen___màj_aout_2025[OW 138 - Rivierzand Waal - kaai Brussel]<>"",0)),'Materiaalindexen o.w.'!AC$33)=0,NA(),'Materiaalindexen o.w.'!AC34/IF('Materiaalindexen o.w.'!AC$33=0, INDEX(OW_indexen___màj_aout_2025[OW 138 - Rivierzand Waal - kaai Brussel],MATCH(TRUE,OW_indexen___màj_aout_2025[OW 138 - Rivierzand Waal - kaai Brussel]<>"",0)),'Materiaalindexen o.w.'!AC$33)),NA()) -> 1 | BM128: =IFERROR(IF('Materiaalindexen o.w.'!AD34/IF('Materiaalindexen o.w.'!AD$33=0,INDEX(OW_indexen___màj_aout_2025[OW 138² - Rivierzand Waal - kaai Antwerpen],MATCH(TRUE,OW_indexen___màj_aout_2025[OW 138² - Rivierzand Waal - kaai Antwerpen]<>"",0)),'Materiaalindexen o.w.'!AD$33)=0,NA(),'Materiaalindexen o.w.'!AD34/IF('Materiaalindexen o.w.'!AD$33=0, INDEX(OW_indexen___màj_aout_2025[OW 138² - Rivierzand Waal - kaai Antwerpen],MATCH(TRUE,OW_indexen___màj_aout_2025[OW 138² - Rivierzand Waal - kaai Antwerpen]<>"",0)),'Materiaalindexen o.w.'!AD$33)),NA()) -> 1 | BN128: =IFERROR(IF('Materiaalindexen o.w.'!AE34/IF('Materiaalindexen o.w.'!AE$33=0,INDEX(OW_indexen___màj_aout_2025[OW 140 - Fijn zeezand BCP-NCP],MATCH(TRUE,OW_indexen___màj_aout_2025[OW 140 - Fijn zeezand BCP-NCP]<>"",0)),'Materiaalindexen o.w.'!AE$33)=0,NA(),'Materiaalindexen o.w.'!AE34/IF('Materiaalindexen o.w.'!AE$33=0, INDEX(OW_indexen___màj_aout_2025[OW 140 - Fijn zeezand BCP-NCP],MATCH(TRUE,OW_indexen___màj_aout_2025[OW 140 - Fijn zeezand BCP-NCP]<>"",0)),'Materiaalindexen o.w.'!AE$33)),NA()) ->  | BO128: =IFERROR(IF('Materiaalindexen o.w.'!AF34/IF('Materiaalindexen o.w.'!AF$33=0,INDEX(OW_indexen___màj_aout_2025[OW 141 - Grof zeezand ECP],MATCH(TRUE,OW_indexen___màj_aout_2025[OW 141 - Grof zeezand ECP]<>"",0)),'Materiaalindexen o.w.'!AF$33)=0,NA(),'Materiaalindexen o.w.'!AF34/IF('Materiaalindexen o.w.'!AF$33=0, INDEX(OW_indexen___màj_aout_2025[OW 141 - Grof zeezand ECP],MATCH(TRUE,OW_indexen___màj_aout_2025[OW 141 - Grof zeezand ECP]<>"",0)),'Materiaalindexen o.w.'!AF$33)),NA()) ->  | BP128: =IFERROR(IF('Materiaalindexen o.w.'!AG34/IF('Materiaalindexen o.w.'!AG$33=0,INDEX(OW_indexen___màj_aout_2025[OW 142 - Zeegrind ECP],MATCH(TRUE,OW_indexen___màj_aout_2025[OW 142 - Zeegrind ECP]<>"",0)),'Materiaalindexen o.w.'!AG$33)=0,NA(),'Materiaalindexen o.w.'!AG34/IF('Materiaalindexen o.w.'!AG$33=0, INDEX(OW_indexen___màj_aout_2025[OW 142 - Zeegrind ECP],MATCH(TRUE,OW_indexen___màj_aout_2025[OW 142 - Zeegrind ECP]<>"",0)),'Materiaalindexen o.w.'!AG$33)),NA()) ->  | BQ128: =IFERROR(IF('Materiaalindexen o.w.'!AH34/IF('Materiaalindexen o.w.'!AH$33=0,INDEX(OW_indexen___màj_aout_2025[OW 143 - Belgisch en ingevoerd rivierzand],MATCH(TRUE,OW_indexen___màj_aout_2025[OW 143 - Belgisch en ingevoerd rivierzand]<>"",0)),'Materiaalindexen o.w.'!AH$33)=0,NA(),'Materiaalindexen o.w.'!AH34/IF('Materiaalindexen o.w.'!AH$33=0, INDEX(OW_indexen___màj_aout_2025[OW 143 - Belgisch en ingevoerd rivierzand],MATCH(TRUE,OW_indexen___màj_aout_2025[OW 143 - Belgisch en ingevoerd rivierzand]<>"",0)),'Materiaalindexen o.w.'!AH$33)),NA()) ->  | BR128: =IFERROR(IF('Materiaalindexen o.w.'!AI34/IF('Materiaalindexen o.w.'!AI$33=0,INDEX(OW_indexen___màj_aout_2025[OW 144 - Belgisch en ingevoerd riviergrind],MATCH(TRUE,OW_indexen___màj_aout_2025[OW 144 - Belgisch en ingevoerd riviergrind]<>"",0)),'Materiaalindexen o.w.'!AI$33)=0,NA(),'Materiaalindexen o.w.'!AI34/IF('Materiaalindexen o.w.'!AI$33=0, INDEX(OW_indexen___màj_aout_2025[OW 144 - Belgisch en ingevoerd riviergrind],MATCH(TRUE,OW_indexen___màj_aout_2025[OW 144 - Belgisch en ingevoerd riviergrind]<>"",0)),'Materiaalindexen o.w.'!AI$33)),NA()) ->  | BS128: =IFERROR(IF('Materiaalindexen o.w.'!AJ34/IF('Materiaalindexen o.w.'!AJ$33=0,INDEX(OW_indexen___màj_aout_2025[OW 205 - Koudgewalste dunne platen - 1mm zie OW 234],MATCH(TRUE,OW_indexen___màj_aout_2025[OW 205 - Koudgewalste dunne platen - 1mm zie OW 234]<>"",0)),'Materiaalindexen o.w.'!AJ$33)=0,NA(),'Materiaalindexen o.w.'!AJ34/IF('Materiaalindexen o.w.'!AJ$33=0, INDEX(OW_indexen___màj_aout_2025[OW 205 - Koudgewalste dunne platen - 1mm zie OW 234],MATCH(TRUE,OW_indexen___màj_aout_2025[OW 205 - Koudgewalste dunne platen - 1mm zie OW 234]<>"",0)),'Materiaalindexen o.w.'!AJ$33)),NA()) -> 1 | BT128: =IFERROR(IF('Materiaalindexen o.w.'!AK34/IF('Materiaalindexen o.w.'!AK$33=0,INDEX(OW_indexen___màj_aout_2025[OW 210 - Profielstaal, kwaliteitsstaal - staal AE 355 D zie OW 231],MATCH(TRUE,OW_indexen___màj_aout_2025[OW 210 - Profielstaal, kwaliteitsstaal - staal AE 355 D zie OW 231]<>"",0)),'Materiaalindexen o.w.'!AK$33)=0,NA(),'Materiaalindexen o.w.'!AK34/IF('Materiaalindexen o.w.'!AK$33=0, INDEX(OW_indexen___màj_aout_2025[OW 210 - Profielstaal, kwaliteitsstaal - staal AE 355 D zie OW 231],MATCH(TRUE,OW_indexen___màj_aout_2025[OW 210 - Profielstaal, kwaliteitsstaal - staal AE 355 D zie OW 231]<>"",0)),'Materiaalindexen o.w.'!AK$33)),NA()) -> 1.004971377 | BU128: =IFERROR(IF('Materiaalindexen o.w.'!AL34/IF('Materiaalindexen o.w.'!AL$33=0,INDEX(OW_indexen___màj_aout_2025[OW 211 - Staafstaal, andere kwaliteiten - courant staal AE 235 A zie OW 230],MATCH(TRUE,OW_indexen___màj_aout_2025[OW 211 - Staafstaal, andere kwaliteiten - courant staal AE 235 A zie OW 230]<>"",0)),'Materiaalindexen o.w.'!AL$33)=0,NA(),'Materiaalindexen o.w.'!AL34/IF('Materiaalindexen o.w.'!AL$33=0, INDEX(OW_indexen___màj_aout_2025[OW 211 - Staafstaal, andere kwaliteiten - courant staal AE 235 A zie OW 230],MATCH(TRUE,OW_indexen___màj_aout_2025[OW 211 - Staafstaal, andere kwaliteiten - courant staal AE 235 A zie OW 230]<>"",0)),'Materiaalindexen o.w.'!AL$33)),NA()) -> 1.007749582 | BV128: =IFERROR(IF('Materiaalindexen o.w.'!AM34/IF('Materiaalindexen o.w.'!AM$33=0,INDEX(OW_indexen___màj_aout_2025[OW 212 - Dikke platen, kwaliteitsstaal - staal AE 355 D zie OW 232],MATCH(TRUE,OW_indexen___màj_aout_2025[OW 212 - Dikke platen, kwaliteitsstaal - staal AE 355 D zie OW 232]<>"",0)),'Materiaalindexen o.w.'!AM$33)=0,NA(),'Materiaalindexen o.w.'!AM34/IF('Materiaalindexen o.w.'!AM$33=0, INDEX(OW_indexen___màj_aout_2025[OW 212 - Dikke platen, kwaliteitsstaal - staal AE 355 D zie OW 232],MATCH(TRUE,OW_indexen___màj_aout_2025[OW 212 - Dikke platen, kwaliteitsstaal - staal AE 355 D zie OW 232]<>"",0)),'Materiaalindexen o.w.'!AM$33)),NA()) -> 1.002040816 | BW128: =IFERROR(IF('Materiaalindexen o.w.'!AN34/IF('Materiaalindexen o.w.'!AN$33=0,INDEX(OW_indexen___màj_aout_2025[OW 213 - Profielstaal, kwaliteitsstaal - staal AE 235 C zie OW 231],MATCH(TRUE,OW_indexen___màj_aout_2025[OW 213 - Profielstaal, kwaliteitsstaal - staal AE 235 C zie OW 231]<>"",0)),'Materiaalindexen o.w.'!AN$33)=0,NA(),'Materiaalindexen o.w.'!AN34/IF('Materiaalindexen o.w.'!AN$33=0, INDEX(OW_indexen___màj_aout_2025[OW 213 - Profielstaal, kwaliteitsstaal - staal AE 235 C zie OW 231],MATCH(TRUE,OW_indexen___màj_aout_2025[OW 213 - Profielstaal, kwaliteitsstaal - staal AE 235 C zie OW 231]<>"",0)),'Materiaalindexen o.w.'!AN$33)),NA()) -> 1.004828002 | BX128: =IFERROR(IF('Materiaalindexen o.w.'!AO34/IF('Materiaalindexen o.w.'!AO$33=0,INDEX(OW_indexen___màj_aout_2025[OW 215 - Dikke platen, kwaliteitsstaal - staal AE 235 A zie OW 232],MATCH(TRUE,OW_indexen___màj_aout_2025[OW 215 - Dikke platen, kwaliteitsstaal - staal AE 235 A zie OW 232]<>"",0)),'Materiaalindexen o.w.'!AO$33)=0,NA(),'Materiaalindexen o.w.'!AO34/IF('Materiaalindexen o.w.'!AO$33=0, INDEX(OW_indexen___màj_aout_2025[OW 215 - Dikke platen, kwaliteitsstaal - staal AE 235 A zie OW 232],MATCH(TRUE,OW_indexen___màj_aout_2025[OW 215 - Dikke platen, kwaliteitsstaal - staal AE 235 A zie OW 232]<>"",0)),'Materiaalindexen o.w.'!AO$33)),NA()) -> 1.002040469 | BY128: =IFERROR(IF('Materiaalindexen o.w.'!AP34/IF('Materiaalindexen o.w.'!AP$33=0,INDEX(OW_indexen___màj_aout_2025[OW 216 - platen gemiddeldes - courant staal A320 zie OW 232],MATCH(TRUE,OW_indexen___màj_aout_2025[OW 216 - platen gemiddeldes - courant staal A320 zie OW 232]<>"",0)),'Materiaalindexen o.w.'!AP$33)=0,NA(),'Materiaalindexen o.w.'!AP34/IF('Materiaalindexen o.w.'!AP$33=0, INDEX(OW_indexen___màj_aout_2025[OW 216 - platen gemiddeldes - courant staal A320 zie OW 232],MATCH(TRUE,OW_indexen___màj_aout_2025[OW 216 - platen gemiddeldes - courant staal A320 zie OW 232]<>"",0)),'Materiaalindexen o.w.'!AP$33)),NA()) -> 1 | BZ128: =IFERROR(IF('Materiaalindexen o.w.'!AQ34/IF('Materiaalindexen o.w.'!AQ$33=0,INDEX(OW_indexen___màj_aout_2025[OW 217 - Profielstaal, kwaliteitsstaal - courant staal AE 235 A zie OW 231],MATCH(TRUE,OW_indexen___màj_aout_2025[OW 217 - Profielstaal, kwaliteitsstaal - courant staal AE 235 A zie OW 231]<>"",0)),'Materiaalindexen o.w.'!AQ$33)=0,NA(),'Materiaalindexen o.w.'!AQ34/IF('Materiaalindexen o.w.'!AQ$33=0, INDEX(OW_indexen___màj_aout_2025[OW 217 - Profielstaal, kwaliteitsstaal - courant staal AE 235 A zie OW 231],MATCH(TRUE,OW_indexen___màj_aout_2025[OW 217 - Profielstaal, kwaliteitsstaal - courant staal AE 235 A zie OW 231]<>"",0)),'Materiaalindexen o.w.'!AQ$33)),NA()) -> 1.004828002 | CA128: =IFERROR(IF('Materiaalindexen o.w.'!AR34/IF('Materiaalindexen o.w.'!AR$33=0,INDEX(OW_indexen___màj_aout_2025[OW 218 - betonijzer - BE 500 grof],MATCH(TRUE,OW_indexen___màj_aout_2025[OW 218 - betonijzer - BE 500 grof]<>"",0)),'Materiaalindexen o.w.'!AR$33)=0,NA(),'Materiaalindexen o.w.'!AR34/IF('Materiaalindexen o.w.'!AR$33=0, INDEX(OW_indexen___màj_aout_2025[OW 218 - betonijzer - BE 500 grof],MATCH(TRUE,OW_indexen___màj_aout_2025[OW 218 - betonijzer - BE 500 grof]<>"",0)),'Materiaalindexen o.w.'!AR$33)),NA()) -> 0.9957585644 | CB128: =IFERROR(IF('Materiaalindexen o.w.'!AS34/IF('Materiaalindexen o.w.'!AS$33=0,INDEX(OW_indexen___màj_aout_2025[OW 219 - Staafstaal, andere kwaliteiten - staal AE 355 C zie OW 230],MATCH(TRUE,OW_indexen___màj_aout_2025[OW 219 - Staafstaal, andere kwaliteiten - staal AE 355 C zie OW 230]<>"",0)),'Materiaalindexen o.w.'!AS$33)=0,NA(),'Materiaalindexen o.w.'!AS34/IF('Materiaalindexen o.w.'!AS$33=0, INDEX(OW_indexen___màj_aout_2025[OW 219 - Staafstaal, andere kwaliteiten - staal AE 355 C zie OW 230],MATCH(TRUE,OW_indexen___màj_aout_2025[OW 219 - Staafstaal, andere kwaliteiten - staal AE 355 C zie OW 230]<>"",0)),'Materiaalindexen o.w.'!AS$33)),NA()) -> 1.007907543 | CC128: =IFERROR(IF('Materiaalindexen o.w.'!AT34/IF('Materiaalindexen o.w.'!AT$33=0,INDEX(OW_indexen___màj_aout_2025[OW 220 - Dikke platen, kwaliteitsstaal - courant staal A 320 zie OW 232],MATCH(TRUE,OW_indexen___màj_aout_2025[OW 220 - Dikke platen, kwaliteitsstaal - courant staal A 320 zie OW 232]<>"",0)),'Materiaalindexen o.w.'!AT$33)=0,NA(),'Materiaalindexen o.w.'!AT34/IF('Materiaalindexen o.w.'!AT$33=0, INDEX(OW_indexen___màj_aout_2025[OW 220 - Dikke platen, kwaliteitsstaal - courant staal A 320 zie OW 232],MATCH(TRUE,OW_indexen___màj_aout_2025[OW 220 - Dikke platen, kwaliteitsstaal - courant staal A 320 zie OW 232]<>"",0)),'Materiaalindexen o.w.'!AT$33)),NA()) -> 1.002210508 | CD128: =IFERROR(IF('Materiaalindexen o.w.'!AU34/IF('Materiaalindexen o.w.'!AU$33=0,INDEX(OW_indexen___màj_aout_2025[OW 221 - Warmgewalste dunne platen - courant staal A 320 - 1,5 mm zie OW 233],MATCH(TRUE,OW_indexen___màj_aout_2025[OW 221 - Warmgewalste dunne platen - courant staal A 320 - 1,5 mm zie OW 233]<>"",0)),'Materiaalindexen o.w.'!AU$33)=0,NA(),'Materiaalindexen o.w.'!AU34/IF('Materiaalindexen o.w.'!AU$33=0, INDEX(OW_indexen___màj_aout_2025[OW 221 - Warmgewalste dunne platen - courant staal A 320 - 1,5 mm zie OW 233],MATCH(TRUE,OW_indexen___màj_aout_2025[OW 221 - Warmgewalste dunne platen - courant staal A 320 - 1,5 mm zie OW 233]<>"",0)),'Materiaalindexen o.w.'!AU$33)),NA()) -> 1.018975625 | CE128: =IFERROR(IF('Materiaalindexen o.w.'!AV34/IF('Materiaalindexen o.w.'!AV$33=0,INDEX(OW_indexen___màj_aout_2025[OW 222 - Warmgewalste dunne platen - courant staal A 320 - 2 mm zie OW 233],MATCH(TRUE,OW_indexen___màj_aout_2025[OW 222 - Warmgewalste dunne platen - courant staal A 320 - 2 mm zie OW 233]<>"",0)),'Materiaalindexen o.w.'!AV$33)=0,NA(),'Materiaalindexen o.w.'!AV34/IF('Materiaalindexen o.w.'!AV$33=0, INDEX(OW_indexen___màj_aout_2025[OW 222 - Warmgewalste dunne platen - courant staal A 320 - 2 mm zie OW 233],MATCH(TRUE,OW_indexen___màj_aout_2025[OW 222 - Warmgewalste dunne platen - courant staal A 320 - 2 mm zie OW 233]<>"",0)),'Materiaalindexen o.w.'!AV$33)),NA()) -> 1.019227811 | CF128: =IFERROR(IF('Materiaalindexen o.w.'!AW34/IF('Materiaalindexen o.w.'!AW$33=0,INDEX(OW_indexen___màj_aout_2025[OW 223 - Warmgewalste dunne platen - courant staal A 320 - 2,75 mm zie OW 233],MATCH(TRUE,OW_indexen___màj_aout_2025[OW 223 - Warmgewalste dunne platen - courant staal A 320 - 2,75 mm zie OW 233]<>"",0)),'Materiaalindexen o.w.'!AW$33)=0,NA(),'Materiaalindexen o.w.'!AW34/IF('Materiaalindexen o.w.'!AW$33=0, INDEX(OW_indexen___màj_aout_2025[OW 223 - Warmgewalste dunne platen - courant staal A 320 - 2,75 mm zie OW 233],MATCH(TRUE,OW_indexen___màj_aout_2025[OW 223 - Warmgewalste dunne platen - courant staal A 320 - 2,75 mm zie OW 233]<>"",0)),'Materiaalindexen o.w.'!AW$33)),NA()) -> 1.019248537 | CG128: =IFERROR(IF('Materiaalindexen o.w.'!AX34/IF('Materiaalindexen o.w.'!AX$33=0,INDEX(OW_indexen___màj_aout_2025[OW 224 - betonijzer - diam. 10 tot 40 mm],MATCH(TRUE,OW_indexen___màj_aout_2025[OW 224 - betonijzer - diam. 10 tot 40 mm]<>"",0)),'Materiaalindexen o.w.'!AX$33)=0,NA(),'Materiaalindexen o.w.'!AX34/IF('Materiaalindexen o.w.'!AX$33=0, INDEX(OW_indexen___màj_aout_2025[OW 224 - betonijzer - diam. 10 tot 40 mm],MATCH(TRUE,OW_indexen___màj_aout_2025[OW 224 - betonijzer - diam. 10 tot 40 mm]<>"",0)),'Materiaalindexen o.w.'!AX$33)),NA()) -> 0.996911937 | CH128: =IFERROR(IF('Materiaalindexen o.w.'!AY34/IF('Materiaalindexen o.w.'!AY$33=0,INDEX(OW_indexen___màj_aout_2025[OW 226 - Damplanken - profielen AZ 18 - PAE 320],MATCH(TRUE,OW_indexen___màj_aout_2025[OW 226 - Damplanken - profielen AZ 18 - PAE 320]<>"",0)),'Materiaalindexen o.w.'!AY$33)=0,NA(),'Materiaalindexen o.w.'!AY34/IF('Materiaalindexen o.w.'!AY$33=0, INDEX(OW_indexen___màj_aout_2025[OW 226 - Damplanken - profielen AZ 18 - PAE 320],MATCH(TRUE,OW_indexen___màj_aout_2025[OW 226 - Damplanken - profielen AZ 18 - PAE 320]<>"",0)),'Materiaalindexen o.w.'!AY$33)),NA()) -> 1.014732143 | CI128: =IFERROR(IF('Materiaalindexen o.w.'!AZ34/IF('Materiaalindexen o.w.'!AZ$33=0,INDEX(OW_indexen___màj_aout_2025[OW 227 - vormgietijzer -],MATCH(TRUE,OW_indexen___màj_aout_2025[OW 227 - vormgietijzer -]<>"",0)),'Materiaalindexen o.w.'!AZ$33)=0,NA(),'Materiaalindexen o.w.'!AZ34/IF('Materiaalindexen o.w.'!AZ$33=0, INDEX(OW_indexen___màj_aout_2025[OW 227 - vormgietijzer -],MATCH(TRUE,OW_indexen___màj_aout_2025[OW 227 - vormgietijzer -]<>"",0)),'Materiaalindexen o.w.'!AZ$33)),NA()) -> 0.9730109643 | CJ128: =IFERROR(IF('Materiaalindexen o.w.'!BA34/IF('Materiaalindexen o.w.'!BA$33=0,INDEX(OW_indexen___màj_aout_2025[OW 230 - Staal - Handelsstaal vanaf 12/2023],MATCH(TRUE,OW_indexen___màj_aout_2025[OW 230 - Staal - Handelsstaal vanaf 12/2023]<>"",0)),'Materiaalindexen o.w.'!BA$33)=0,NA(),'Materiaalindexen o.w.'!BA34/IF('Materiaalindexen o.w.'!BA$33=0, INDEX(OW_indexen___màj_aout_2025[OW 230 - Staal - Handelsstaal vanaf 12/2023],MATCH(TRUE,OW_indexen___màj_aout_2025[OW 230 - Staal - Handelsstaal vanaf 12/2023]<>"",0)),'Materiaalindexen o.w.'!BA$33)),NA()) ->  | CK128: =IFERROR(IF('Materiaalindexen o.w.'!BB34/IF('Materiaalindexen o.w.'!BB$33=0,INDEX(OW_indexen___màj_aout_2025[OW 231 - Staal - H-balken vanaf 12/2023],MATCH(TRUE,OW_indexen___màj_aout_2025[OW 231 - Staal - H-balken vanaf 12/2023]<>"",0)),'Materiaalindexen o.w.'!BB$33)=0,NA(),'Materiaalindexen o.w.'!BB34/IF('Materiaalindexen o.w.'!BB$33=0, INDEX(OW_indexen___màj_aout_2025[OW 231 - Staal - H-balken vanaf 12/2023],MATCH(TRUE,OW_indexen___màj_aout_2025[OW 231 - Staal - H-balken vanaf 12/2023]<>"",0)),'Materiaalindexen o.w.'!BB$33)),NA()) ->  | CL128: =IFERROR(IF('Materiaalindexen o.w.'!BC34/IF('Materiaalindexen o.w.'!BC$33=0,INDEX(OW_indexen___màj_aout_2025[OW 232 - Staal - Plaatstaal vanaf 12/2023],MATCH(TRUE,OW_indexen___màj_aout_2025[OW 232 - Staal - Plaatstaal vanaf 12/2023]<>"",0)),'Materiaalindexen o.w.'!BC$33)=0,NA(),'Materiaalindexen o.w.'!BC34/IF('Materiaalindexen o.w.'!BC$33=0, INDEX(OW_indexen___màj_aout_2025[OW 232 - Staal - Plaatstaal vanaf 12/2023],MATCH(TRUE,OW_indexen___màj_aout_2025[OW 232 - Staal - Plaatstaal vanaf 12/2023]<>"",0)),'Materiaalindexen o.w.'!BC$33)),NA()) ->  | CM128: =IFERROR(IF('Materiaalindexen o.w.'!BD34/IF('Materiaalindexen o.w.'!BD$33=0,INDEX(OW_indexen___màj_aout_2025[OW 233 - Staal - Warmgewalste rollen vanaf 12/2023],MATCH(TRUE,OW_indexen___màj_aout_2025[OW 233 - Staal - Warmgewalste rollen vanaf 12/2023]<>"",0)),'Materiaalindexen o.w.'!BD$33)=0,NA(),'Materiaalindexen o.w.'!BD34/IF('Materiaalindexen o.w.'!BD$33=0, INDEX(OW_indexen___màj_aout_2025[OW 233 - Staal - Warmgewalste rollen vanaf 12/2023],MATCH(TRUE,OW_indexen___màj_aout_2025[OW 233 - Staal - Warmgewalste rollen vanaf 12/2023]<>"",0)),'Materiaalindexen o.w.'!BD$33)),NA()) ->  | CN128: =IFERROR(IF('Materiaalindexen o.w.'!BE34/IF('Materiaalindexen o.w.'!BE$33=0,INDEX(OW_indexen___màj_aout_2025[OW 234 - Staal - Koudgewalste rollen vanaf 12/2023],MATCH(TRUE,OW_indexen___màj_aout_2025[OW 234 - Staal - Koudgewalste rollen vanaf 12/2023]<>"",0)),'Materiaalindexen o.w.'!BE$33)=0,NA(),'Materiaalindexen o.w.'!BE34/IF('Materiaalindexen o.w.'!BE$33=0, INDEX(OW_indexen___màj_aout_2025[OW 234 - Staal - Koudgewalste rollen vanaf 12/2023],MATCH(TRUE,OW_indexen___màj_aout_2025[OW 234 - Staal - Koudgewalste rollen vanaf 12/2023]<>"",0)),'Materiaalindexen o.w.'!BE$33)),NA()) ->  | CO128: =IFERROR(IF('Materiaalindexen o.w.'!BF34/IF('Materiaalindexen o.w.'!BF$33=0,INDEX(OW_indexen___màj_aout_2025[OW 235 - Staal - Verzinkt vanaf 12/2023],MATCH(TRUE,OW_indexen___màj_aout_2025[OW 235 - Staal - Verzinkt vanaf 12/2023]<>"",0)),'Materiaalindexen o.w.'!BF$33)=0,NA(),'Materiaalindexen o.w.'!BF34/IF('Materiaalindexen o.w.'!BF$33=0, INDEX(OW_indexen___màj_aout_2025[OW 235 - Staal - Verzinkt vanaf 12/2023],MATCH(TRUE,OW_indexen___màj_aout_2025[OW 235 - Staal - Verzinkt vanaf 12/2023]<>"",0)),'Materiaalindexen o.w.'!BF$33)),NA()) ->  | CP128: =IFERROR(IF('Materiaalindexen o.w.'!BG34/IF('Materiaalindexen o.w.'!BG$33=0,INDEX(OW_indexen___màj_aout_2025[OW 236 - 304 roestvrij staal - koudgewalste coils vanaf 12/2023],MATCH(TRUE,OW_indexen___màj_aout_2025[OW 236 - 304 roestvrij staal - koudgewalste coils vanaf 12/2023]<>"",0)),'Materiaalindexen o.w.'!BG$33)=0,NA(),'Materiaalindexen o.w.'!BG34/IF('Materiaalindexen o.w.'!BG$33=0, INDEX(OW_indexen___màj_aout_2025[OW 236 - 304 roestvrij staal - koudgewalste coils vanaf 12/2023],MATCH(TRUE,OW_indexen___màj_aout_2025[OW 236 - 304 roestvrij staal - koudgewalste coils vanaf 12/2023]<>"",0)),'Materiaalindexen o.w.'!BG$33)),NA()) ->  | CQ128: =IFERROR(IF('Materiaalindexen o.w.'!BH34/IF('Materiaalindexen o.w.'!BH$33=0,INDEX(OW_indexen___màj_aout_2025[OW 259 - lood - onbehandeld],MATCH(TRUE,OW_indexen___màj_aout_2025[OW 259 - lood - onbehandeld]<>"",0)),'Materiaalindexen o.w.'!BH$33)=0,NA(),'Materiaalindexen o.w.'!BH34/IF('Materiaalindexen o.w.'!BH$33=0, INDEX(OW_indexen___màj_aout_2025[OW 259 - lood - onbehandeld],MATCH(TRUE,OW_indexen___màj_aout_2025[OW 259 - lood - onbehandeld]<>"",0)),'Materiaalindexen o.w.'!BH$33)),NA()) -> 0.9843406352 | CR128: =IFERROR(IF('Materiaalindexen o.w.'!BI34/IF('Materiaalindexen o.w.'!BI$33=0,INDEX(OW_indexen___màj_aout_2025[OW 260 - Elektrolytisch koper - onbehandeld zie OW 260 bis],MATCH(TRUE,OW_indexen___màj_aout_2025[OW 260 - Elektrolytisch koper - onbehandeld zie OW 260 bis]<>"",0)),'Materiaalindexen o.w.'!BI$33)=0,NA(),'Materiaalindexen o.w.'!BI34/IF('Materiaalindexen o.w.'!BI$33=0, INDEX(OW_indexen___màj_aout_2025[OW 260 - Elektrolytisch koper - onbehandeld zie OW 260 bis],MATCH(TRUE,OW_indexen___màj_aout_2025[OW 260 - Elektrolytisch koper - onbehandeld zie OW 260 bis]<>"",0)),'Materiaalindexen o.w.'!BI$33)),NA()) -> 0.9767904509 | CS128: =IFERROR(IF('Materiaalindexen o.w.'!BJ34/IF('Materiaalindexen o.w.'!BJ$33=0,INDEX(OW_indexen___màj_aout_2025[OW 260 bis - koper - ruw],MATCH(TRUE,OW_indexen___màj_aout_2025[OW 260 bis - koper - ruw]<>"",0)),'Materiaalindexen o.w.'!BJ$33)=0,NA(),'Materiaalindexen o.w.'!BJ34/IF('Materiaalindexen o.w.'!BJ$33=0, INDEX(OW_indexen___màj_aout_2025[OW 260 bis - koper - ruw],MATCH(TRUE,OW_indexen___màj_aout_2025[OW 260 bis - koper - ruw]<>"",0)),'Materiaalindexen o.w.'!BJ$33)),NA()) -> 0.9767904509 | CT128: =IFERROR(IF('Materiaalindexen o.w.'!BK34/IF('Materiaalindexen o.w.'!BK$33=0,INDEX(OW_indexen___màj_aout_2025[OW 261 - zink - onbehandeld zie OW 261 bis],MATCH(TRUE,OW_indexen___màj_aout_2025[OW 261 - zink - onbehandeld zie OW 261 bis]<>"",0)),'Materiaalindexen o.w.'!BK$33)=0,NA(),'Materiaalindexen o.w.'!BK34/IF('Materiaalindexen o.w.'!BK$33=0, INDEX(OW_indexen___màj_aout_2025[OW 261 - zink - onbehandeld zie OW 261 bis],MATCH(TRUE,OW_indexen___màj_aout_2025[OW 261 - zink - onbehandeld zie OW 261 bis]<>"",0)),'Materiaalindexen o.w.'!BK$33)),NA()) -> 1.016480379 | CU128: =IFERROR(IF('Materiaalindexen o.w.'!BL34/IF('Materiaalindexen o.w.'!BL$33=0,INDEX(OW_indexen___màj_aout_2025[OW 261 bis - ruw zink],MATCH(TRUE,OW_indexen___màj_aout_2025[OW 261 bis - ruw zink]<>"",0)),'Materiaalindexen o.w.'!BL$33)=0,NA(),'Materiaalindexen o.w.'!BL34/IF('Materiaalindexen o.w.'!BL$33=0, INDEX(OW_indexen___màj_aout_2025[OW 261 bis - ruw zink],MATCH(TRUE,OW_indexen___màj_aout_2025[OW 261 bis - ruw zink]<>"",0)),'Materiaalindexen o.w.'!BL$33)),NA()) -> 1.015994154 | CV128: =IFERROR(IF('Materiaalindexen o.w.'!BM34/IF('Materiaalindexen o.w.'!BM$33=0,INDEX(OW_indexen___màj_aout_2025[OW 262 - aluminium - onbehandeld zie OW 262 ter],MATCH(TRUE,OW_indexen___màj_aout_2025[OW 262 - aluminium - onbehandeld zie OW 262 ter]<>"",0)),'Materiaalindexen o.w.'!BM$33)=0,NA(),'Materiaalindexen o.w.'!BM34/IF('Materiaalindexen o.w.'!BM$33=0, INDEX(OW_indexen___màj_aout_2025[OW 262 - aluminium - onbehandeld zie OW 262 ter],MATCH(TRUE,OW_indexen___màj_aout_2025[OW 262 - aluminium - onbehandeld zie OW 262 ter]<>"",0)),'Materiaalindexen o.w.'!BM$33)),NA()) -> 1 | CW128: =IFERROR(IF('Materiaalindexen o.w.'!BN34/IF('Materiaalindexen o.w.'!BN$33=0,INDEX(OW_indexen___màj_aout_2025[OW 262 bis - aluminium - brut],MATCH(TRUE,OW_indexen___màj_aout_2025[OW 262 bis - aluminium - brut]<>"",0)),'Materiaalindexen o.w.'!BN$33)=0,NA(),'Materiaalindexen o.w.'!BN34/IF('Materiaalindexen o.w.'!BN$33=0, INDEX(OW_indexen___màj_aout_2025[OW 262 bis - aluminium - brut],MATCH(TRUE,OW_indexen___màj_aout_2025[OW 262 bis - aluminium - brut]<>"",0)),'Materiaalindexen o.w.'!BN$33)),NA()) -> 0.9747391543 | CX128: =IFERROR(IF('Materiaalindexen o.w.'!BO34/IF('Materiaalindexen o.w.'!BO$33=0,INDEX(OW_indexen___màj_aout_2025[OW 262 ter - aluminiumplaten vanaf 12/2023],MATCH(TRUE,OW_indexen___màj_aout_2025[OW 262 ter - aluminiumplaten vanaf 12/2023]<>"",0)),'Materiaalindexen o.w.'!BO$33)=0,NA(),'Materiaalindexen o.w.'!BO34/IF('Materiaalindexen o.w.'!BO$33=0, INDEX(OW_indexen___màj_aout_2025[OW 262 ter - aluminiumplaten vanaf 12/2023],MATCH(TRUE,OW_indexen___màj_aout_2025[OW 262 ter - aluminiumplaten vanaf 12/2023]<>"",0)),'Materiaalindexen o.w.'!BO$33)),NA()) ->  | CY128: =IFERROR(IF('Materiaalindexen o.w.'!BP34/IF('Materiaalindexen o.w.'!BP$33=0,INDEX(OW_indexen___màj_aout_2025[OW 263 - ruw nikkel],MATCH(TRUE,OW_indexen___màj_aout_2025[OW 263 - ruw nikkel]<>"",0)),'Materiaalindexen o.w.'!BP$33)=0,NA(),'Materiaalindexen o.w.'!BP34/IF('Materiaalindexen o.w.'!BP$33=0, INDEX(OW_indexen___màj_aout_2025[OW 263 - ruw nikkel],MATCH(TRUE,OW_indexen___màj_aout_2025[OW 263 - ruw nikkel]<>"",0)),'Materiaalindexen o.w.'!BP$33)),NA()) -> 1.041583594 | CZ128: =IFERROR(IF('Materiaalindexen o.w.'!BQ34/IF('Materiaalindexen o.w.'!BQ$33=0,INDEX(OW_indexen___màj_aout_2025[OW 339 - Gezaagd inlands naaldhout - epicea inlands - 2½ x 7],MATCH(TRUE,OW_indexen___màj_aout_2025[OW 339 - Gezaagd inlands naaldhout - epicea inlands - 2½ x 7]<>"",0)),'Materiaalindexen o.w.'!BQ$33)=0,NA(),'Materiaalindexen o.w.'!BQ34/IF('Materiaalindexen o.w.'!BQ$33=0, INDEX(OW_indexen___màj_aout_2025[OW 339 - Gezaagd inlands naaldhout - epicea inlands - 2½ x 7],MATCH(TRUE,OW_indexen___màj_aout_2025[OW 339 - Gezaagd inlands naaldhout - epicea inlands - 2½ x 7]<>"",0)),'Materiaalindexen o.w.'!BQ$33)),NA()) -> 0.975638549 | DA128: =IFERROR(IF('Materiaalindexen o.w.'!BR34/IF('Materiaalindexen o.w.'!BR$33=0,INDEX(OW_indexen___màj_aout_2025[OW 340 - Gezaagd inlands naaldhout - epicea inlands - 4/4 x 4],MATCH(TRUE,OW_indexen___màj_aout_2025[OW 340 - Gezaagd inlands naaldhout - epicea inlands - 4/4 x 4]<>"",0)),'Materiaalindexen o.w.'!BR$33)=0,NA(),'Materiaalindexen o.w.'!BR34/IF('Materiaalindexen o.w.'!BR$33=0, INDEX(OW_indexen___màj_aout_2025[OW 340 - Gezaagd inlands naaldhout - epicea inlands - 4/4 x 4],MATCH(TRUE,OW_indexen___màj_aout_2025[OW 340 - Gezaagd inlands naaldhout - epicea inlands - 4/4 x 4]<>"",0)),'Materiaalindexen o.w.'!BR$33)),NA()) -> 1.016707053 | DB128: =IFERROR(IF('Materiaalindexen o.w.'!BS34/IF('Materiaalindexen o.w.'!BS$33=0,INDEX(OW_indexen___màj_aout_2025[OW 341 - Gezaagd naaldhout Noorse grenen - noorse berd - 2½ x 7],MATCH(TRUE,OW_indexen___màj_aout_2025[OW 341 - Gezaagd naaldhout Noorse grenen - noorse berd - 2½ x 7]<>"",0)),'Materiaalindexen o.w.'!BS$33)=0,NA(),'Materiaalindexen o.w.'!BS34/IF('Materiaalindexen o.w.'!BS$33=0, INDEX(OW_indexen___màj_aout_2025[OW 341 - Gezaagd naaldhout Noorse grenen - noorse berd - 2½ x 7],MATCH(TRUE,OW_indexen___màj_aout_2025[OW 341 - Gezaagd naaldhout Noorse grenen - noorse berd - 2½ x 7]<>"",0)),'Materiaalindexen o.w.'!BS$33)),NA()) -> 1.00453841 | DC128: =IFERROR(IF('Materiaalindexen o.w.'!BT34/IF('Materiaalindexen o.w.'!BT$33=0,INDEX(OW_indexen___màj_aout_2025[OW 342 - Gezaagd naaldhout Noorse grenen - noorse berd - 4/4 x 4],MATCH(TRUE,OW_indexen___màj_aout_2025[OW 342 - Gezaagd naaldhout Noorse grenen - noorse berd - 4/4 x 4]<>"",0)),'Materiaalindexen o.w.'!BT$33)=0,NA(),'Materiaalindexen o.w.'!BT34/IF('Materiaalindexen o.w.'!BT$33=0, INDEX(OW_indexen___màj_aout_2025[OW 342 - Gezaagd naaldhout Noorse grenen - noorse berd - 4/4 x 4],MATCH(TRUE,OW_indexen___màj_aout_2025[OW 342 - Gezaagd naaldhout Noorse grenen - noorse berd - 4/4 x 4]<>"",0)),'Materiaalindexen o.w.'!BT$33)),NA()) -> 1.013582966 | DD128: =IFERROR(IF('Materiaalindexen o.w.'!BU34/IF('Materiaalindexen o.w.'!BU$33=0,INDEX(OW_indexen___màj_aout_2025[OW 442 - geperforeerde bouwblokken - L : 290 / b : 140 /h : 90],MATCH(TRUE,OW_indexen___màj_aout_2025[OW 442 - geperforeerde bouwblokken - L : 290 / b : 140 /h : 90]<>"",0)),'Materiaalindexen o.w.'!BU$33)=0,NA(),'Materiaalindexen o.w.'!BU34/IF('Materiaalindexen o.w.'!BU$33=0, INDEX(OW_indexen___màj_aout_2025[OW 442 - geperforeerde bouwblokken - L : 290 / b : 140 /h : 90],MATCH(TRUE,OW_indexen___màj_aout_2025[OW 442 - geperforeerde bouwblokken - L : 290 / b : 140 /h : 90]<>"",0)),'Materiaalindexen o.w.'!BU$33)),NA()) -> 1 | DE128: =IFERROR(IF('Materiaalindexen o.w.'!BV34/IF('Materiaalindexen o.w.'!BV$33=0,INDEX(OW_indexen___màj_aout_2025[OW 443 - geperforeerde bouwblokken - L : 290 / b : 140 / h : 140],MATCH(TRUE,OW_indexen___màj_aout_2025[OW 443 - geperforeerde bouwblokken - L : 290 / b : 140 / h : 140]<>"",0)),'Materiaalindexen o.w.'!BV$33)=0,NA(),'Materiaalindexen o.w.'!BV34/IF('Materiaalindexen o.w.'!BV$33=0, INDEX(OW_indexen___màj_aout_2025[OW 443 - geperforeerde bouwblokken - L : 290 / b : 140 / h : 140],MATCH(TRUE,OW_indexen___màj_aout_2025[OW 443 - geperforeerde bouwblokken - L : 290 / b : 140 / h : 140]<>"",0)),'Materiaalindexen o.w.'!BV$33)),NA()) -> 1 | DF128: =IFERROR(IF('Materiaalindexen o.w.'!BW34/IF('Materiaalindexen o.w.'!BW$33=0,INDEX(OW_indexen___màj_aout_2025[OW 445 - bakstenen - West-Vl. + Doornik - L : 190 / b : 09 / h : 65],MATCH(TRUE,OW_indexen___màj_aout_2025[OW 445 - bakstenen - West-Vl. + Doornik - L : 190 / b : 09 / h : 65]<>"",0)),'Materiaalindexen o.w.'!BW$33)=0,NA(),'Materiaalindexen o.w.'!BW34/IF('Materiaalindexen o.w.'!BW$33=0, INDEX(OW_indexen___màj_aout_2025[OW 445 - bakstenen - West-Vl. + Doornik - L : 190 / b : 09 / h : 65],MATCH(TRUE,OW_indexen___màj_aout_2025[OW 445 - bakstenen - West-Vl. + Doornik - L : 190 / b : 09 / h : 65]<>"",0)),'Materiaalindexen o.w.'!BW$33)),NA()) -> 1 | DG128: =IFERROR(IF('Materiaalindexen o.w.'!BX34/IF('Materiaalindexen o.w.'!BX$33=0,INDEX(OW_indexen___màj_aout_2025[OW 448 - bakstenen - gevelstenen : L : 190 / b : 90 / h : 50],MATCH(TRUE,OW_indexen___màj_aout_2025[OW 448 - bakstenen - gevelstenen : L : 190 / b : 90 / h : 50]<>"",0)),'Materiaalindexen o.w.'!BX$33)=0,NA(),'Materiaalindexen o.w.'!BX34/IF('Materiaalindexen o.w.'!BX$33=0, INDEX(OW_indexen___màj_aout_2025[OW 448 - bakstenen - gevelstenen : L : 190 / b : 90 / h : 50],MATCH(TRUE,OW_indexen___màj_aout_2025[OW 448 - bakstenen - gevelstenen : L : 190 / b : 90 / h : 50]<>"",0)),'Materiaalindexen o.w.'!BX$33)),NA()) -> 1 | DH128: =IFERROR(IF('Materiaalindexen o.w.'!BY34/IF('Materiaalindexen o.w.'!BY$33=0,INDEX(OW_indexen___màj_aout_2025[OW 462 - cement - klasse 32,5],MATCH(TRUE,OW_indexen___màj_aout_2025[OW 462 - cement - klasse 32,5]<>"",0)),'Materiaalindexen o.w.'!BY$33)=0,NA(),'Materiaalindexen o.w.'!BY34/IF('Materiaalindexen o.w.'!BY$33=0, INDEX(OW_indexen___màj_aout_2025[OW 462 - cement - klasse 32,5],MATCH(TRUE,OW_indexen___màj_aout_2025[OW 462 - cement - klasse 32,5]<>"",0)),'Materiaalindexen o.w.'!BY$33)),NA()) -> 1.007306677 | DI128: =IFERROR(IF('Materiaalindexen o.w.'!BZ34/IF('Materiaalindexen o.w.'!BZ$33=0,INDEX(OW_indexen___màj_aout_2025[OW 464 - cement - klasse 42,5],MATCH(TRUE,OW_indexen___màj_aout_2025[OW 464 - cement - klasse 42,5]<>"",0)),'Materiaalindexen o.w.'!BZ$33)=0,NA(),'Materiaalindexen o.w.'!BZ34/IF('Materiaalindexen o.w.'!BZ$33=0, INDEX(OW_indexen___màj_aout_2025[OW 464 - cement - klasse 42,5],MATCH(TRUE,OW_indexen___màj_aout_2025[OW 464 - cement - klasse 42,5]<>"",0)),'Materiaalindexen o.w.'!BZ$33)),NA()) -> 1.007323027 | DJ128: =IFERROR(IF('Materiaalindexen o.w.'!CA34/IF('Materiaalindexen o.w.'!CA$33=0,INDEX(OW_indexen___màj_aout_2025[OW 466 - cement - klasse 52,5],MATCH(TRUE,OW_indexen___màj_aout_2025[OW 466 - cement - klasse 52,5]<>"",0)),'Materiaalindexen o.w.'!CA$33)=0,NA(),'Materiaalindexen o.w.'!CA34/IF('Materiaalindexen o.w.'!CA$33=0, INDEX(OW_indexen___màj_aout_2025[OW 466 - cement - klasse 52,5],MATCH(TRUE,OW_indexen___màj_aout_2025[OW 466 - cement - klasse 52,5]<>"",0)),'Materiaalindexen o.w.'!CA$33)),NA()) -> 1.007131214 | DK128: =IFERROR(IF('Materiaalindexen o.w.'!CB34/IF('Materiaalindexen o.w.'!CB$33=0,INDEX(OW_indexen___màj_aout_2025[OW 467 - cement - zakken],MATCH(TRUE,OW_indexen___màj_aout_2025[OW 467 - cement - zakken]<>"",0)),'Materiaalindexen o.w.'!CB$33)=0,NA(),'Materiaalindexen o.w.'!CB34/IF('Materiaalindexen o.w.'!CB$33=0, INDEX(OW_indexen___màj_aout_2025[OW 467 - cement - zakken],MATCH(TRUE,OW_indexen___màj_aout_2025[OW 467 - cement - zakken]<>"",0)),'Materiaalindexen o.w.'!CB$33)),NA()) -> 1.007122507 | DL128: =IFERROR(IF('Materiaalindexen o.w.'!CC34/IF('Materiaalindexen o.w.'!CC$33=0,INDEX(OW_indexen___màj_aout_2025[OW 470 - betonproducten voor het wegennetwerk - betonnen tegels - 30/30/6 cm],MATCH(TRUE,OW_indexen___màj_aout_2025[OW 470 - betonproducten voor het wegennetwerk - betonnen tegels - 30/30/6 cm]<>"",0)),'Materiaalindexen o.w.'!CC$33)=0,NA(),'Materiaalindexen o.w.'!CC34/IF('Materiaalindexen o.w.'!CC$33=0, INDEX(OW_indexen___màj_aout_2025[OW 470 - betonproducten voor het wegennetwerk - betonnen tegels - 30/30/6 cm],MATCH(TRUE,OW_indexen___màj_aout_2025[OW 470 - betonproducten voor het wegennetwerk - betonnen tegels - 30/30/6 cm]<>"",0)),'Materiaalindexen o.w.'!CC$33)),NA()) -> 1 | DM128: =IFERROR(IF('Materiaalindexen o.w.'!CD34/IF('Materiaalindexen o.w.'!CD$33=0,INDEX(OW_indexen___màj_aout_2025[OW 475 - betonproducten voor het wegennetwerk - betonnen straatstenen - 22/11/10 cm],MATCH(TRUE,OW_indexen___màj_aout_2025[OW 475 - betonproducten voor het wegennetwerk - betonnen straatstenen - 22/11/10 cm]<>"",0)),'Materiaalindexen o.w.'!CD$33)=0,NA(),'Materiaalindexen o.w.'!CD34/IF('Materiaalindexen o.w.'!CD$33=0, INDEX(OW_indexen___màj_aout_2025[OW 475 - betonproducten voor het wegennetwerk - betonnen straatstenen - 22/11/10 cm],MATCH(TRUE,OW_indexen___màj_aout_2025[OW 475 - betonproducten voor het wegennetwerk - betonnen straatstenen - 22/11/10 cm]<>"",0)),'Materiaalindexen o.w.'!CD$33)),NA()) -> 1 | DN128: =IFERROR(IF('Materiaalindexen o.w.'!CE34/IF('Materiaalindexen o.w.'!CE$33=0,INDEX(OW_indexen___màj_aout_2025[OW 476 - betonproducten voor de bouwsector - holle betonblokken - klasse p - 0,8 39/19/19],MATCH(TRUE,OW_indexen___màj_aout_2025[OW 476 - betonproducten voor de bouwsector - holle betonblokken - klasse p - 0,8 39/19/19]<>"",0)),'Materiaalindexen o.w.'!CE$33)=0,NA(),'Materiaalindexen o.w.'!CE34/IF('Materiaalindexen o.w.'!CE$33=0, INDEX(OW_indexen___màj_aout_2025[OW 476 - betonproducten voor de bouwsector - holle betonblokken - klasse p - 0,8 39/19/19],MATCH(TRUE,OW_indexen___màj_aout_2025[OW 476 - betonproducten voor de bouwsector - holle betonblokken - klasse p - 0,8 39/19/19]<>"",0)),'Materiaalindexen o.w.'!CE$33)),NA()) -> 1 | DO128: =IFERROR(IF('Materiaalindexen o.w.'!CF34/IF('Materiaalindexen o.w.'!CF$33=0,INDEX(OW_indexen___màj_aout_2025[OW 477 - betonproducten voor de bouwsector - volle betonblokken - klasse p 2,2 - 39/19/19],MATCH(TRUE,OW_indexen___màj_aout_2025[OW 477 - betonproducten voor de bouwsector - volle betonblokken - klasse p 2,2 - 39/19/19]<>"",0)),'Materiaalindexen o.w.'!CF$33)=0,NA(),'Materiaalindexen o.w.'!CF34/IF('Materiaalindexen o.w.'!CF$33=0, INDEX(OW_indexen___màj_aout_2025[OW 477 - betonproducten voor de bouwsector - volle betonblokken - klasse p 2,2 - 39/19/19],MATCH(TRUE,OW_indexen___màj_aout_2025[OW 477 - betonproducten voor de bouwsector - volle betonblokken - klasse p 2,2 - 39/19/19]<>"",0)),'Materiaalindexen o.w.'!CF$33)),NA()) -> 1 | DP128: =IFERROR(IF('Materiaalindexen o.w.'!CG34/IF('Materiaalindexen o.w.'!CG$33=0,INDEX(OW_indexen___màj_aout_2025[OW 480 - betonproducten voor het wegennetwerk - boordstenen - 21-411 - type 1A],MATCH(TRUE,OW_indexen___màj_aout_2025[OW 480 - betonproducten voor het wegennetwerk - boordstenen - 21-411 - type 1A]<>"",0)),'Materiaalindexen o.w.'!CG$33)=0,NA(),'Materiaalindexen o.w.'!CG34/IF('Materiaalindexen o.w.'!CG$33=0, INDEX(OW_indexen___màj_aout_2025[OW 480 - betonproducten voor het wegennetwerk - boordstenen - 21-411 - type 1A],MATCH(TRUE,OW_indexen___màj_aout_2025[OW 480 - betonproducten voor het wegennetwerk - boordstenen - 21-411 - type 1A]<>"",0)),'Materiaalindexen o.w.'!CG$33)),NA()) -> 1 | DQ128: =IFERROR(IF('Materiaalindexen o.w.'!CH34/IF('Materiaalindexen o.w.'!CH$33=0,INDEX(OW_indexen___màj_aout_2025[OW 486 - betonproducten voor het wegennetwerk - buizen ongewapend - L : 2,5 m - diam. 80cm],MATCH(TRUE,OW_indexen___màj_aout_2025[OW 486 - betonproducten voor het wegennetwerk - buizen ongewapend - L : 2,5 m - diam. 80cm]<>"",0)),'Materiaalindexen o.w.'!CH$33)=0,NA(),'Materiaalindexen o.w.'!CH34/IF('Materiaalindexen o.w.'!CH$33=0, INDEX(OW_indexen___màj_aout_2025[OW 486 - betonproducten voor het wegennetwerk - buizen ongewapend - L : 2,5 m - diam. 80cm],MATCH(TRUE,OW_indexen___màj_aout_2025[OW 486 - betonproducten voor het wegennetwerk - buizen ongewapend - L : 2,5 m - diam. 80cm]<>"",0)),'Materiaalindexen o.w.'!CH$33)),NA()) -> 1 | DR128: =IFERROR(IF('Materiaalindexen o.w.'!CI34/IF('Materiaalindexen o.w.'!CI$33=0,INDEX(OW_indexen___màj_aout_2025[OW 486² - betonproducten voor het wegennetwerk - buizen ongewapend - L : 2 m - diam. 80cm],MATCH(TRUE,OW_indexen___màj_aout_2025[OW 486² - betonproducten voor het wegennetwerk - buizen ongewapend - L : 2 m - diam. 80cm]<>"",0)),'Materiaalindexen o.w.'!CI$33)=0,NA(),'Materiaalindexen o.w.'!CI34/IF('Materiaalindexen o.w.'!CI$33=0, INDEX(OW_indexen___màj_aout_2025[OW 486² - betonproducten voor het wegennetwerk - buizen ongewapend - L : 2 m - diam. 80cm],MATCH(TRUE,OW_indexen___màj_aout_2025[OW 486² - betonproducten voor het wegennetwerk - buizen ongewapend - L : 2 m - diam. 80cm]<>"",0)),'Materiaalindexen o.w.'!CI$33)),NA()) -> 1 | DS128: =IFERROR(IF('Materiaalindexen o.w.'!CJ34/IF('Materiaalindexen o.w.'!CJ$33=0,INDEX(OW_indexen___màj_aout_2025[OW 549 - Diesel B7 aan de pomp - 10 ppm],MATCH(TRUE,OW_indexen___màj_aout_2025[OW 549 - Diesel B7 aan de pomp - 10 ppm]<>"",0)),'Materiaalindexen o.w.'!CJ$33)=0,NA(),'Materiaalindexen o.w.'!CJ34/IF('Materiaalindexen o.w.'!CJ$33=0, INDEX(OW_indexen___màj_aout_2025[OW 549 - Diesel B7 aan de pomp - 10 ppm],MATCH(TRUE,OW_indexen___màj_aout_2025[OW 549 - Diesel B7 aan de pomp - 10 ppm]<>"",0)),'Materiaalindexen o.w.'!CJ$33)),NA()) -> 0.990913811 | DT128: =IFERROR(IF('Materiaalindexen o.w.'!CK34/IF('Materiaalindexen o.w.'!CK$33=0,INDEX(OW_indexen___màj_aout_2025[OW 549² - Diesel B7 aan de pomp - 50 ppm],MATCH(TRUE,OW_indexen___màj_aout_2025[OW 549² - Diesel B7 aan de pomp - 50 ppm]<>"",0)),'Materiaalindexen o.w.'!CK$33)=0,NA(),'Materiaalindexen o.w.'!CK34/IF('Materiaalindexen o.w.'!CK$33=0, INDEX(OW_indexen___màj_aout_2025[OW 549² - Diesel B7 aan de pomp - 50 ppm],MATCH(TRUE,OW_indexen___màj_aout_2025[OW 549² - Diesel B7 aan de pomp - 50 ppm]<>"",0)),'Materiaalindexen o.w.'!CK$33)),NA()) -> 0.9907852044 | DU128: =IFERROR(IF('Materiaalindexen o.w.'!CL34/IF('Materiaalindexen o.w.'!CL$33=0,INDEX(OW_indexen___màj_aout_2025[OW 549³ - Diesel B7 aan de pomp - -],MATCH(TRUE,OW_indexen___màj_aout_2025[OW 549³ - Diesel B7 aan de pomp - -]<>"",0)),'Materiaalindexen o.w.'!CL$33)=0,NA(),'Materiaalindexen o.w.'!CL34/IF('Materiaalindexen o.w.'!CL$33=0, INDEX(OW_indexen___màj_aout_2025[OW 549³ - Diesel B7 aan de pomp - -],MATCH(TRUE,OW_indexen___màj_aout_2025[OW 549³ - Diesel B7 aan de pomp - -]<>"",0)),'Materiaalindexen o.w.'!CL$33)),NA()) -> 0.9907840083 | DV128: =IFERROR(IF('Materiaalindexen o.w.'!CM34/IF('Materiaalindexen o.w.'!CM$33=0,INDEX(OW_indexen___màj_aout_2025[OW 550 - Gasolie verwarming - 1000 ppm],MATCH(TRUE,OW_indexen___màj_aout_2025[OW 550 - Gasolie verwarming - 1000 ppm]<>"",0)),'Materiaalindexen o.w.'!CM$33)=0,NA(),'Materiaalindexen o.w.'!CM34/IF('Materiaalindexen o.w.'!CM$33=0, INDEX(OW_indexen___màj_aout_2025[OW 550 - Gasolie verwarming - 1000 ppm],MATCH(TRUE,OW_indexen___màj_aout_2025[OW 550 - Gasolie verwarming - 1000 ppm]<>"",0)),'Materiaalindexen o.w.'!CM$33)),NA()) -> 0.9573241061 | DW128: =IFERROR(IF('Materiaalindexen o.w.'!CN34/IF('Materiaalindexen o.w.'!CN$33=0,INDEX(OW_indexen___màj_aout_2025[OW 550² - Gasolie verwarming - 2000 ppm],MATCH(TRUE,OW_indexen___màj_aout_2025[OW 550² - Gasolie verwarming - 2000 ppm]<>"",0)),'Materiaalindexen o.w.'!CN$33)=0,NA(),'Materiaalindexen o.w.'!CN34/IF('Materiaalindexen o.w.'!CN$33=0, INDEX(OW_indexen___màj_aout_2025[OW 550² - Gasolie verwarming - 2000 ppm],MATCH(TRUE,OW_indexen___màj_aout_2025[OW 550² - Gasolie verwarming - 2000 ppm]<>"",0)),'Materiaalindexen o.w.'!CN$33)),NA()) -> 0.9573241061 | DX128: =IFERROR(IF('Materiaalindexen o.w.'!CO34/IF('Materiaalindexen o.w.'!CO$33=0,INDEX(OW_indexen___màj_aout_2025[OW 551 - Eurosuper 95 aan de pomp - 10 ppm],MATCH(TRUE,OW_indexen___màj_aout_2025[OW 551 - Eurosuper 95 aan de pomp - 10 ppm]<>"",0)),'Materiaalindexen o.w.'!CO$33)=0,NA(),'Materiaalindexen o.w.'!CO34/IF('Materiaalindexen o.w.'!CO$33=0, INDEX(OW_indexen___màj_aout_2025[OW 551 - Eurosuper 95 aan de pomp - 10 ppm],MATCH(TRUE,OW_indexen___màj_aout_2025[OW 551 - Eurosuper 95 aan de pomp - 10 ppm]<>"",0)),'Materiaalindexen o.w.'!CO$33)),NA()) -> 0.9877888184 | DY128: =IFERROR(IF('Materiaalindexen o.w.'!CP34/IF('Materiaalindexen o.w.'!CP$33=0,INDEX(OW_indexen___màj_aout_2025[OW 551² - Eurosuper 95 aan de pomp - 50 ppm],MATCH(TRUE,OW_indexen___màj_aout_2025[OW 551² - Eurosuper 95 aan de pomp - 50 ppm]<>"",0)),'Materiaalindexen o.w.'!CP$33)=0,NA(),'Materiaalindexen o.w.'!CP34/IF('Materiaalindexen o.w.'!CP$33=0, INDEX(OW_indexen___màj_aout_2025[OW 551² - Eurosuper 95 aan de pomp - 50 ppm],MATCH(TRUE,OW_indexen___màj_aout_2025[OW 551² - Eurosuper 95 aan de pomp - 50 ppm]<>"",0)),'Materiaalindexen o.w.'!CP$33)),NA()) -> 0.9876720527 | DZ128: =IFERROR(IF('Materiaalindexen o.w.'!CQ34/IF('Materiaalindexen o.w.'!CQ$33=0,INDEX(OW_indexen___màj_aout_2025[OW 551³ - Eurosuper 95 aan de pomp - -],MATCH(TRUE,OW_indexen___màj_aout_2025[OW 551³ - Eurosuper 95 aan de pomp - -]<>"",0)),'Materiaalindexen o.w.'!CQ$33)=0,NA(),'Materiaalindexen o.w.'!CQ34/IF('Materiaalindexen o.w.'!CQ$33=0, INDEX(OW_indexen___màj_aout_2025[OW 551³ - Eurosuper 95 aan de pomp - -],MATCH(TRUE,OW_indexen___màj_aout_2025[OW 551³ - Eurosuper 95 aan de pomp - -]<>"",0)),'Materiaalindexen o.w.'!CQ$33)),NA()) -> 0.9869167535 | EA128: =IFERROR(IF('Materiaalindexen o.w.'!CR34/IF('Materiaalindexen o.w.'!CR$33=0,INDEX(OW_indexen___màj_aout_2025[OW 552 - LPG - -],MATCH(TRUE,OW_indexen___màj_aout_2025[OW 552 - LPG - -]<>"",0)),'Materiaalindexen o.w.'!CR$33)=0,NA(),'Materiaalindexen o.w.'!CR34/IF('Materiaalindexen o.w.'!CR$33=0, INDEX(OW_indexen___màj_aout_2025[OW 552 - LPG - -],MATCH(TRUE,OW_indexen___màj_aout_2025[OW 552 - LPG - -]<>"",0)),'Materiaalindexen o.w.'!CR$33)),NA()) -> 0.9175285426 | EB128: =IFERROR(IF('Materiaalindexen o.w.'!CS34/IF('Materiaalindexen o.w.'!CS$33=0,INDEX(OW_indexen___màj_aout_2025[OW 563 - Oliebitumen - vaten],MATCH(TRUE,OW_indexen___màj_aout_2025[OW 563 - Oliebitumen - vaten]<>"",0)),'Materiaalindexen o.w.'!CS$33)=0,NA(),'Materiaalindexen o.w.'!CS34/IF('Materiaalindexen o.w.'!CS$33=0, INDEX(OW_indexen___màj_aout_2025[OW 563 - Oliebitumen - vaten],MATCH(TRUE,OW_indexen___màj_aout_2025[OW 563 - Oliebitumen - vaten]<>"",0)),'Materiaalindexen o.w.'!CS$33)),NA()) -> 1.000684838 | EC128: =IFERROR(IF('Materiaalindexen o.w.'!CT34/IF('Materiaalindexen o.w.'!CT$33=0,INDEX(OW_indexen___màj_aout_2025[OW 564 - Oliebitumen - valk],MATCH(TRUE,OW_indexen___màj_aout_2025[OW 564 - Oliebitumen - valk]<>"",0)),'Materiaalindexen o.w.'!CT$33)=0,NA(),'Materiaalindexen o.w.'!CT34/IF('Materiaalindexen o.w.'!CT$33=0, INDEX(OW_indexen___màj_aout_2025[OW 564 - Oliebitumen - valk],MATCH(TRUE,OW_indexen___màj_aout_2025[OW 564 - Oliebitumen - valk]<>"",0)),'Materiaalindexen o.w.'!CT$33)),NA()) -> 1.00074184 | ED128: =IFERROR(IF('Materiaalindexen o.w.'!CU34/IF('Materiaalindexen o.w.'!CU$33=0,INDEX(OW_indexen___màj_aout_2025[OW 671 - polyester (UP) - vloeibaar Stop 01/2024],MATCH(TRUE,OW_indexen___màj_aout_2025[OW 671 - polyester (UP) - vloeibaar Stop 01/2024]<>"",0)),'Materiaalindexen o.w.'!CU$33)=0,NA(),'Materiaalindexen o.w.'!CU34/IF('Materiaalindexen o.w.'!CU$33=0, INDEX(OW_indexen___màj_aout_2025[OW 671 - polyester (UP) - vloeibaar Stop 01/2024],MATCH(TRUE,OW_indexen___màj_aout_2025[OW 671 - polyester (UP) - vloeibaar Stop 01/2024]<>"",0)),'Materiaalindexen o.w.'!CU$33)),NA()) -> 1.012052371 | EE128: =IFERROR(IF('Materiaalindexen o.w.'!CV34/IF('Materiaalindexen o.w.'!CV$33=0,INDEX(OW_indexen___màj_aout_2025[OW 672 - PVC - Polyvinylchloride zie OW 680],MATCH(TRUE,OW_indexen___màj_aout_2025[OW 672 - PVC - Polyvinylchloride zie OW 680]<>"",0)),'Materiaalindexen o.w.'!CV$33)=0,NA(),'Materiaalindexen o.w.'!CV34/IF('Materiaalindexen o.w.'!CV$33=0, INDEX(OW_indexen___màj_aout_2025[OW 672 - PVC - Polyvinylchloride zie OW 680],MATCH(TRUE,OW_indexen___màj_aout_2025[OW 672 - PVC - Polyvinylchloride zie OW 680]<>"",0)),'Materiaalindexen o.w.'!CV$33)),NA()) -> 1.011290505 | EF128: =IFERROR(IF('Materiaalindexen o.w.'!CW34/IF('Materiaalindexen o.w.'!CW$33=0,INDEX(OW_indexen___màj_aout_2025[OW 673 - polyethyleen lage dichtheid - PE/LD - lage dichtheid zie OW 681],MATCH(TRUE,OW_indexen___màj_aout_2025[OW 673 - polyethyleen lage dichtheid - PE/LD - lage dichtheid zie OW 681]<>"",0)),'Materiaalindexen o.w.'!CW$33)=0,NA(),'Materiaalindexen o.w.'!CW34/IF('Materiaalindexen o.w.'!CW$33=0, INDEX(OW_indexen___màj_aout_2025[OW 673 - polyethyleen lage dichtheid - PE/LD - lage dichtheid zie OW 681],MATCH(TRUE,OW_indexen___màj_aout_2025[OW 673 - polyethyleen lage dichtheid - PE/LD - lage dichtheid zie OW 681]<>"",0)),'Materiaalindexen o.w.'!CW$33)),NA()) -> 1.001995787 | EG128: =IFERROR(IF('Materiaalindexen o.w.'!CX34/IF('Materiaalindexen o.w.'!CX$33=0,INDEX(OW_indexen___màj_aout_2025[OW 674 - polyethyleen hoge dichtheid - PE/HD - hoge dichtheid zie OW 683],MATCH(TRUE,OW_indexen___màj_aout_2025[OW 674 - polyethyleen hoge dichtheid - PE/HD - hoge dichtheid zie OW 683]<>"",0)),'Materiaalindexen o.w.'!CX$33)=0,NA(),'Materiaalindexen o.w.'!CX34/IF('Materiaalindexen o.w.'!CX$33=0, INDEX(OW_indexen___màj_aout_2025[OW 674 - polyethyleen hoge dichtheid - PE/HD - hoge dichtheid zie OW 683],MATCH(TRUE,OW_indexen___màj_aout_2025[OW 674 - polyethyleen hoge dichtheid - PE/HD - hoge dichtheid zie OW 683]<>"",0)),'Materiaalindexen o.w.'!CX$33)),NA()) -> 1.009946796 | EH128: =IFERROR(IF('Materiaalindexen o.w.'!CY34/IF('Materiaalindexen o.w.'!CY$33=0,INDEX(OW_indexen___màj_aout_2025[OW 675 - buizen in polyethyleen - PE/HD - hoge dichtheid zie OW 683],MATCH(TRUE,OW_indexen___màj_aout_2025[OW 675 - buizen in polyethyleen - PE/HD - hoge dichtheid zie OW 683]<>"",0)),'Materiaalindexen o.w.'!CY$33)=0,NA(),'Materiaalindexen o.w.'!CY34/IF('Materiaalindexen o.w.'!CY$33=0, INDEX(OW_indexen___màj_aout_2025[OW 675 - buizen in polyethyleen - PE/HD - hoge dichtheid zie OW 683],MATCH(TRUE,OW_indexen___màj_aout_2025[OW 675 - buizen in polyethyleen - PE/HD - hoge dichtheid zie OW 683]<>"",0)),'Materiaalindexen o.w.'!CY$33)),NA()) -> 1.009083202 | EI128: =IFERROR(IF('Materiaalindexen o.w.'!CZ34/IF('Materiaalindexen o.w.'!CZ$33=0,INDEX(OW_indexen___màj_aout_2025[OW 680 - PVC - buizen vanaf 12/2023],MATCH(TRUE,OW_indexen___màj_aout_2025[OW 680 - PVC - buizen vanaf 12/2023]<>"",0)),'Materiaalindexen o.w.'!CZ$33)=0,NA(),'Materiaalindexen o.w.'!CZ34/IF('Materiaalindexen o.w.'!CZ$33=0, INDEX(OW_indexen___màj_aout_2025[OW 680 - PVC - buizen vanaf 12/2023],MATCH(TRUE,OW_indexen___màj_aout_2025[OW 680 - PVC - buizen vanaf 12/2023]<>"",0)),'Materiaalindexen o.w.'!CZ$33)),NA()) ->  | EJ128: =IFERROR(IF('Materiaalindexen o.w.'!DA34/IF('Materiaalindexen o.w.'!DA$33=0,INDEX(OW_indexen___màj_aout_2025[OW 681 - PELD - film vanaf 12/2023],MATCH(TRUE,OW_indexen___màj_aout_2025[OW 681 - PELD - film vanaf 12/2023]<>"",0)),'Materiaalindexen o.w.'!DA$33)=0,NA(),'Materiaalindexen o.w.'!DA34/IF('Materiaalindexen o.w.'!DA$33=0, INDEX(OW_indexen___màj_aout_2025[OW 681 - PELD - film vanaf 12/2023],MATCH(TRUE,OW_indexen___màj_aout_2025[OW 681 - PELD - film vanaf 12/2023]<>"",0)),'Materiaalindexen o.w.'!DA$33)),NA()) ->  | EK128: =IFERROR(IF('Materiaalindexen o.w.'!DB34/IF('Materiaalindexen o.w.'!DB$33=0,INDEX(OW_indexen___màj_aout_2025[OW 683 - PEHD - spuitgieten vanaf 12/2023],MATCH(TRUE,OW_indexen___màj_aout_2025[OW 683 - PEHD - spuitgieten vanaf 12/2023]<>"",0)),'Materiaalindexen o.w.'!DB$33)=0,NA(),'Materiaalindexen o.w.'!DB34/IF('Materiaalindexen o.w.'!DB$33=0, INDEX(OW_indexen___màj_aout_2025[OW 683 - PEHD - spuitgieten vanaf 12/2023],MATCH(TRUE,OW_indexen___màj_aout_2025[OW 683 - PEHD - spuitgieten vanaf 12/2023]<>"",0)),'Materiaalindexen o.w.'!DB$33)),NA()) ->  | EL128: =IFERROR(IF('Materiaalindexen o.w.'!DC34/IF('Materiaalindexen o.w.'!DC$33=0,INDEX(OW_indexen___màj_aout_2025[OW 684 - PP - polypropyleen (homopolymeer) vanaf 12/2023],MATCH(TRUE,OW_indexen___màj_aout_2025[OW 684 - PP - polypropyleen (homopolymeer) vanaf 12/2023]<>"",0)),'Materiaalindexen o.w.'!DC$33)=0,NA(),'Materiaalindexen o.w.'!DC34/IF('Materiaalindexen o.w.'!DC$33=0, INDEX(OW_indexen___màj_aout_2025[OW 684 - PP - polypropyleen (homopolymeer) vanaf 12/2023],MATCH(TRUE,OW_indexen___màj_aout_2025[OW 684 - PP - polypropyleen (homopolymeer) vanaf 12/2023]<>"",0)),'Materiaalindexen o.w.'!DC$33)),NA()) ->  | EM128: =IFERROR(IF('Grymafer indexen'!D33/IF('Grymafer indexen'!D$32=0,INDEX(Grymafer_maand[RSR - beton staven],MATCH(TRUE,Grymafer_maand[RSR - beton staven]<>"",0)),'Grymafer indexen'!D$32)=0,NA(),'Grymafer indexen'!D33/IF('Grymafer indexen'!D$32=0, INDEX(Grymafer_maand[RSR - beton staven],MATCH(TRUE,Grymafer_maand[RSR - beton staven]<>"",0)),'Grymafer indexen'!D$32)),NA()) -> 0.9938366718 | EN128: =IFERROR(IF('Grymafer indexen'!E33/IF('Grymafer indexen'!E$32=0,INDEX(Grymafer_maand[FKC - Koudgewalste draad],MATCH(TRUE,Grymafer_maand[FKC - Koudgewalste draad]<>"",0)),'Grymafer indexen'!E$32)=0,NA(),'Grymafer indexen'!E33/IF('Grymafer indexen'!E$32=0, INDEX(Grymafer_maand[FKC - Koudgewalste draad],MATCH(TRUE,Grymafer_maand[FKC - Koudgewalste draad]<>"",0)),'Grymafer indexen'!E$32)),NA()) -> 0.9961038961 | EO128: =IFERROR(IF('Grymafer indexen'!F33/IF('Grymafer indexen'!F$32=0,INDEX(Grymafer_maand[CWH - Warmgewalste draad],MATCH(TRUE,Grymafer_maand[CWH - Warmgewalste draad]<>"",0)),'Grymafer indexen'!F$32)=0,NA(),'Grymafer indexen'!F33/IF('Grymafer indexen'!F$32=0, INDEX(Grymafer_maand[CWH - Warmgewalste draad],MATCH(TRUE,Grymafer_maand[CWH - Warmgewalste draad]<>"",0)),'Grymafer indexen'!F$32)),NA()) -> 1.001112347 | EP128: =IFERROR(IF('Grymafer indexen'!G33/IF('Grymafer indexen'!G$32=0,INDEX(Grymafer_maand[TNM - Netten],MATCH(TRUE,Grymafer_maand[TNM - Netten]<>"",0)),'Grymafer indexen'!G$32)=0,NA(),'Grymafer indexen'!G33/IF('Grymafer indexen'!G$32=0, INDEX(Grymafer_maand[TNM - Netten],MATCH(TRUE,Grymafer_maand[TNM - Netten]<>"",0)),'Grymafer indexen'!G$32)),NA()) -> 0.9961290323 | EQ128: =IFERROR(IF('Materiaalindexen o.w.'!DG34/IF('Materiaalindexen o.w.'!DG$33=0,INDEX(Statbel_indexen___màj_aout_2025[Elektriciteit],MATCH(TRUE,Statbel_indexen___màj_aout_2025[Elektriciteit]<>"",0)),'Materiaalindexen o.w.'!DG$33)=0,NA(),'Materiaalindexen o.w.'!DG34/IF('Materiaalindexen o.w.'!DG$33=0, INDEX(Statbel_indexen___màj_aout_2025[Elektriciteit],MATCH(TRUE,Statbel_indexen___màj_aout_2025[Elektriciteit]<>"",0)),'Materiaalindexen o.w.'!DG$33)),NA()) -> 1.007769552 | ER128: =IFERROR(IF('Materiaalindexen o.w.'!DH34/IF('Materiaalindexen o.w.'!DH$33=0,INDEX(Statbel_indexen___màj_aout_2025[Aardgas],MATCH(TRUE,Statbel_indexen___màj_aout_2025[Aardgas]<>"",0)),'Materiaalindexen o.w.'!DH$33)=0,NA(),'Materiaalindexen o.w.'!DH34/IF('Materiaalindexen o.w.'!DH$33=0, INDEX(Statbel_indexen___màj_aout_2025[Aardgas],MATCH(TRUE,Statbel_indexen___màj_aout_2025[Aardgas]<>"",0)),'Materiaalindexen o.w.'!DH$33)),NA()) -> 1.005122832 | ES128: =IFERROR(IF('Materiaalindexen o.w.'!DI34/IF('Materiaalindexen o.w.'!DI$33=0,INDEX(Statbel_indexen___màj_aout_2025[Water],MATCH(TRUE,Statbel_indexen___màj_aout_2025[Water]<>"",0)),'Materiaalindexen o.w.'!DI$33)=0,NA(),'Materiaalindexen o.w.'!DI34/IF('Materiaalindexen o.w.'!DI$33=0, INDEX(Statbel_indexen___màj_aout_2025[Water],MATCH(TRUE,Statbel_indexen___màj_aout_2025[Water]<>"",0)),'Materiaalindexen o.w.'!DI$33)),NA()) -> 1.000439367 | ET128: =IFERROR(IF('Materiaalindexen o.w.'!DJ34/IF('Materiaalindexen o.w.'!DJ$33=0,INDEX(Statbel_indexen___màj_aout_2025[Consumptie Prijs Index Statbel],MATCH(TRUE,Statbel_indexen___màj_aout_2025[Consumptie Prijs Index Statbel]<>"",0)),'Materiaalindexen o.w.'!DJ$33)=0,NA(),'Materiaalindexen o.w.'!DJ34/IF('Materiaalindexen o.w.'!DJ$33=0, INDEX(Statbel_indexen___màj_aout_2025[Consumptie Prijs Index Statbel],MATCH(TRUE,Statbel_indexen___màj_aout_2025[Consumptie Prijs Index Statbel]<>"",0)),'Materiaalindexen o.w.'!DJ$33)),NA()) -> 1.00150858 | EU128: =IFERROR(IF('Materiaalindexen o.w.'!DK34/IF('Materiaalindexen o.w.'!DK$33=0,INDEX(Statbel_indexen___màj_aout_2025[Inflatie Index Statbel],MATCH(TRUE,Statbel_indexen___màj_aout_2025[Inflatie Index Statbel]<>"",0)),'Materiaalindexen o.w.'!DK$33)=0,NA(),'Materiaalindexen o.w.'!DK34/IF('Materiaalindexen o.w.'!DK$33=0, INDEX(Statbel_indexen___màj_aout_2025[Inflatie Index Statbel],MATCH(TRUE,Statbel_indexen___màj_aout_2025[Inflatie Index Statbel]<>"",0)),'Materiaalindexen o.w.'!DK$33)),NA()) -> 0.865497076 | EV128: =IFERROR(IF('Materiaalindexen o.w.'!DL34/IF('Materiaalindexen o.w.'!DL$33=0,INDEX(Statbel_indexen___màj_aout_2025[Gezondheids Index Statbel],MATCH(TRUE,Statbel_indexen___màj_aout_2025[Gezondheids Index Statbel]<>"",0)),'Materiaalindexen o.w.'!DL$33)=0,NA(),'Materiaalindexen o.w.'!DL34/IF('Materiaalindexen o.w.'!DL$33=0, INDEX(Statbel_indexen___màj_aout_2025[Gezondheids Index Statbel],MATCH(TRUE,Statbel_indexen___màj_aout_2025[Gezondheids Index Statbel]<>"",0)),'Materiaalindexen o.w.'!DL$33)),NA()) -> 1.001598195 | EW128: =IFERROR(IF('Materiaalindexen o.w.'!DM34/IF('Materiaalindexen o.w.'!DM$33=0,INDEX(Statbel_indexen___màj_aout_2025[Afzetprijsindex in de bouwnijverheid - Statbel],MATCH(TRUE,Statbel_indexen___màj_aout_2025[Afzetprijsindex in de bouwnijverheid - Statbel]<>"",0)),'Materiaalindexen o.w.'!DM$33)=0,NA(),'Materiaalindexen o.w.'!DM34/IF('Materiaalindexen o.w.'!DM$33=0, INDEX(Statbel_indexen___màj_aout_2025[Afzetprijsindex in de bouwnijverheid - Statbel],MATCH(TRUE,Statbel_indexen___màj_aout_2025[Afzetprijsindex in de bouwnijverheid - Statbel]<>"",0)),'Materiaalindexen o.w.'!DM$33)),NA()) -> 1 | EX128: =IFERROR(IF('Materiaalindexen o.w.'!DN34/IF('Materiaalindexen o.w.'!DN$33=0,INDEX(Statbel_indexen___màj_aout_2025[Huur index Statbel],MATCH(TRUE,Statbel_indexen___màj_aout_2025[Huur index Statbel]<>"",0)),'Materiaalindexen o.w.'!DN$33)=0,NA(),'Materiaalindexen o.w.'!DN34/IF('Materiaalindexen o.w.'!DN$33=0, INDEX(Statbel_indexen___màj_aout_2025[Huur index Statbel],MATCH(TRUE,Statbel_indexen___màj_aout_2025[Huur index Statbel]<>"",0)),'Materiaalindexen o.w.'!DN$33)),NA()) -> 1.001598195 | FA128: =B128 -> 2018-02-01 | FB128: =IFERROR(IF('Indexen goederen & diensten'!D34/'Indexen goederen & diensten'!D$33=0,NA(),'Indexen goederen & diensten'!D34/'Indexen goederen & diensten'!D$33),NA()) -> 1 | FC128: =IFERROR(IF('Indexen goederen & diensten'!E34/'Indexen goederen & diensten'!E$33=0,NA(),'Indexen goederen & diensten'!E34/'Indexen goederen & diensten'!E$33),NA()) -> 1 | FD128: =IFERROR(IF('Indexen goederen & diensten'!F34/'Indexen goederen & diensten'!F$33=0,NA(),'Indexen goederen & diensten'!F34/'Indexen goederen & diensten'!F$33),NA()) -> 1 | FE128: =IFERROR(IF('Indexen goederen & diensten'!G34/'Indexen goederen & diensten'!G$33=0,NA(),'Indexen goederen & diensten'!G34/'Indexen goederen & diensten'!G$33),NA()) -> 1 | FF128: =IFERROR(IF('Indexen goederen & diensten'!H34/'Indexen goederen & diensten'!H$33=0,NA(),'Indexen goederen & diensten'!H34/'Indexen goederen & diensten'!H$33),NA()) -> 1 | FG128: =IFERROR(IF('Indexen goederen & diensten'!I34/'Indexen goederen & diensten'!I$33=0,NA(),'Indexen goederen & diensten'!I34/'Indexen goederen & diensten'!I$33),NA()) -> 1 | FH128: =IFERROR(IF('Indexen goederen & diensten'!J34/'Indexen goederen & diensten'!J$33=0,NA(),'Indexen goederen & diensten'!J34/'Indexen goederen & diensten'!J$33),NA()) -> 1 | FI128: =IFERROR(IF('Indexen goederen & diensten'!K34/'Indexen goederen & diensten'!K$33=0,NA(),'Indexen goederen & diensten'!K34/'Indexen goederen & diensten'!K$33),NA()) -> 1 | FJ128: =IFERROR(IF('Indexen goederen & diensten'!L34/'Indexen goederen & diensten'!L$33=0,NA(),'Indexen goederen & diensten'!L34/'Indexen goederen & diensten'!L$33),NA()) -> 1 | FK128: =IFERROR(IF('Indexen goederen & diensten'!M34/'Indexen goederen & diensten'!M$33=0,NA(),'Indexen goederen & diensten'!M34/'Indexen goederen & diensten'!M$33),NA()) -> 1 | FL128: =IFERROR(IF('Indexen goederen & diensten'!N34/'Indexen goederen & diensten'!N$33=0,NA(),'Indexen goederen & diensten'!N34/'Indexen goederen & diensten'!N$33),NA()) -> 1 | FM128: =IFERROR(IF('Indexen goederen & diensten'!O34/'Indexen goederen & diensten'!O$33=0,NA(),'Indexen goederen & diensten'!O34/'Indexen goederen & diensten'!O$33),NA()) -> 1 | FN128: =IFERROR(IF('Indexen goederen & diensten'!P34/'Indexen goederen & diensten'!P$33=0,NA(),'Indexen goederen & diensten'!P34/'Indexen goederen & diensten'!P$33),NA()) -> 0.9849183075 | FO128: =IFERROR(IF('Indexen goederen & diensten'!Q34/'Indexen goederen & diensten'!Q$33=0,NA(),'Indexen goederen & diensten'!Q34/'Indexen goederen & diensten'!Q$33),NA()) -> 1.008733624 | FP128: =IFERROR(IF('Indexen goederen & diensten'!R34/'Indexen goederen & diensten'!R$33=0,NA(),'Indexen goederen & diensten'!R34/'Indexen goederen & diensten'!R$33),NA()) -> 1.013443526 | FQ128: =IFERROR(IF('Indexen goederen & diensten'!S34/'Indexen goederen & diensten'!S$33=0,NA(),'Indexen goederen & diensten'!S34/'Indexen goederen & diensten'!S$33),NA()) -> 1.02681505 | FR128: =IFERROR(IF('Indexen goederen & diensten'!T34/'Indexen goederen & diensten'!T$33=0,NA(),'Indexen goederen & diensten'!T34/'Indexen goederen & diensten'!T$33),NA()) -> 1.002262699 | FS128: =IFERROR(IF('Indexen goederen & diensten'!U34/'Indexen goederen & diensten'!U$33=0,NA(),'Indexen goederen & diensten'!U34/'Indexen goederen & diensten'!U$33),NA()) -> 1.002638825 | FT128: =IFERROR(IF('Indexen goederen & diensten'!V34/'Indexen goederen & diensten'!V$33=0,NA(),'Indexen goederen & diensten'!V34/'Indexen goederen & diensten'!V$33),NA()) -> 1 | FU128: =IFERROR(IF('Indexen goederen & diensten'!W34/'Indexen goederen & diensten'!W$33=0,NA(),'Indexen goederen & diensten'!W34/'Indexen goederen & diensten'!W$33),NA()) -> 1.008172192 | FV128: =IFERROR(IF('Indexen goederen & diensten'!X34/'Indexen goederen & diensten'!X$33=0,NA(),'Indexen goederen & diensten'!X34/'Indexen goederen & diensten'!X$33),NA()) -> 1 | FW128: =IFERROR(IF('Indexen goederen & diensten'!Y34/'Indexen goederen & diensten'!Y$33=0,NA(),'Indexen goederen & diensten'!Y34/'Indexen goederen & diensten'!Y$33),NA()) -> 1.003987928 | FX128: =IFERROR(IF('Indexen goederen & diensten'!Z34/'Indexen goederen & diensten'!Z$33=0,NA(),'Indexen goederen & diensten'!Z34/'Indexen goederen & diensten'!Z$33),NA()) -> 0.9838709677 | FY128: =IFERROR(IF('Indexen goederen & diensten'!AA34/'Indexen goederen & diensten'!AA$33=0,NA(),'Indexen goederen & diensten'!AA34/'Indexen goederen & diensten'!AA$33),NA()) -> 0.8880399925 | FZ128: =IFERROR(IF('Indexen goederen & diensten'!AB34/'Indexen goederen & diensten'!AB$33=0,NA(),'Indexen goederen & diensten'!AB34/'Indexen goederen & diensten'!AB$33),NA()) -> 1.015153461 | GA128: =IFERROR(IF('Indexen goederen & diensten'!AC34/'Indexen goederen & diensten'!AC$33=0,NA(),'Indexen goederen & diensten'!AC34/'Indexen goederen & diensten'!AC$33),NA()) -> 1.018070575 | GB128: =IFERROR(IF('Indexen goederen & diensten'!AD34/'Indexen goederen & diensten'!AD$33=0,NA(),'Indexen goederen & diensten'!AD34/'Indexen goederen & diensten'!AD$33),NA()) -> 1.01448009 | GC128: =IFERROR(IF('Indexen goederen & diensten'!AE34/'Indexen goederen & diensten'!AE$33=0,NA(),'Indexen goederen & diensten'!AE34/'Indexen goederen & diensten'!AE$33),NA()) -> 1.011367512 | GD128: =IFERROR(IF('Indexen goederen & diensten'!AF34/'Indexen goederen & diensten'!AF$33=0,NA(),'Indexen goederen & diensten'!AF34/'Indexen goederen & diensten'!AF$33),NA()) -> 1.000726041 | GE128: =IFERROR(IF('Indexen goederen & diensten'!AG34/'Indexen goederen & diensten'!AG$33=0,NA(),'Indexen goederen & diensten'!AG34/'Indexen goederen & diensten'!AG$33),NA()) -> 1.003660705 | GF128: =IFERROR(IF('Indexen goederen & diensten'!AH34/'Indexen goederen & diensten'!AH$33=0,NA(),'Indexen goederen & diensten'!AH34/'Indexen goederen & diensten'!AH$33),NA()) -> 0.9708929452 | GG128: =IFERROR(IF('Indexen goederen & diensten'!AI34/'Indexen goederen & diensten'!AI$33=0,NA(),'Indexen goederen & diensten'!AI34/'Indexen goederen & diensten'!AI$33),NA()) -> 0.9983843047 | GH128: =IFERROR(IF('Indexen goederen & diensten'!AJ34/'Indexen goederen & diensten'!AJ$33=0,NA(),'Indexen goederen & diensten'!AJ34/'Indexen goederen & diensten'!AJ$33),NA()) -> 1 | GI128: =IFERROR(IF('Indexen goederen & diensten'!AK34/'Indexen goederen & diensten'!AK$33=0,NA(),'Indexen goederen & diensten'!AK34/'Indexen goederen & diensten'!AK$33),NA()) -> 0.9552191065 | GJ128: =IFERROR(IF('Indexen goederen & diensten'!AL34/'Indexen goederen & diensten'!AL$33=0,NA(),'Indexen goederen & diensten'!AL34/'Indexen goederen & diensten'!AL$33),NA()) -> 1.004762368 | GK128: =IFERROR(IF('Indexen goederen & diensten'!AM34/'Indexen goederen & diensten'!AM$33=0,NA(),'Indexen goederen & diensten'!AM34/'Indexen goederen & diensten'!AM$33),NA()) -> 1.018667393 | GL128: =IFERROR(IF('Indexen goederen & diensten'!AN34/'Indexen goederen & diensten'!AN$33=0,NA(),'Indexen goederen & diensten'!AN34/'Indexen goederen & diensten'!AN$33),NA()) -> 0.986707918 | GM128: =IFERROR(IF('Indexen goederen & diensten'!AO34/'Indexen goederen & diensten'!AO$33=0,NA(),'Indexen goederen & diensten'!AO34/'Indexen goederen & diensten'!AO$33),NA()) -> 1.001855693 | GN128: =IFERROR(IF('Indexen goederen & diensten'!AP34/'Indexen goederen & diensten'!AP$33=0,NA(),'Indexen goederen & diensten'!AP34/'Indexen goederen & diensten'!AP$33),NA()) -> 0.9980730115 | GO128: =IFERROR(IF('Indexen goederen & diensten'!AQ34/'Indexen goederen & diensten'!AQ$33=0,NA(),'Indexen goederen & diensten'!AQ34/'Indexen goederen & diensten'!AQ$33),NA()) -> 1.002297342 | GP128: =IFERROR(IF('Indexen goederen & diensten'!AR34/'Indexen goederen & diensten'!AR$33=0,NA(),'Indexen goederen & diensten'!AR34/'Indexen goederen & diensten'!AR$33),NA()) -> 1.011790715 | GQ128: =IFERROR(IF('Indexen goederen & diensten'!AS34/'Indexen goederen & diensten'!AS$33=0,NA(),'Indexen goederen & diensten'!AS34/'Indexen goederen & diensten'!AS$33),NA()) -> 0.9987495737 | GR128: =IFERROR(IF('Indexen goederen & diensten'!AT34/'Indexen goederen & diensten'!AT$33=0,NA(),'Indexen goederen & diensten'!AT34/'Indexen goederen & diensten'!AT$33),NA()) -> 1.008519224 | GS128: =IFERROR(IF('Indexen goederen & diensten'!AU34/'Indexen goederen & diensten'!AU$33=0,NA(),'Indexen goederen & diensten'!AU34/'Indexen goederen & diensten'!AU$33),NA()) -> 1.011964874 | GT128: =IFERROR(IF('Indexen goederen & diensten'!AV34/'Indexen goederen & diensten'!AV$33=0,NA(),'Indexen goederen & diensten'!AV34/'Indexen goederen & diensten'!AV$33),NA()) -> 1.023809524 | GU128: =IFERROR(IF('Indexen goederen & diensten'!AW34/'Indexen goederen & diensten'!AW$33=0,NA(),'Indexen goederen & diensten'!AW34/'Indexen goederen & diensten'!AW$33),NA()) -> 1.084877687 | GV128: =IFERROR(IF('Indexen goederen & diensten'!AX34/'Indexen goederen & diensten'!AX$33=0,NA(),'Indexen goederen & diensten'!AX34/'Indexen goederen & diensten'!AX$33),NA()) -> 1.014726737 | GW128: =IFERROR(IF('Indexen goederen & diensten'!AY34/'Indexen goederen & diensten'!AY$33=0,NA(),'Indexen goederen & diensten'!AY34/'Indexen goederen & diensten'!AY$33),NA()) -> 1.014848783 | GX128: =IFERROR(IF('Indexen goederen & diensten'!AZ34/'Indexen goederen & diensten'!AZ$33=0,NA(),'Indexen goederen & diensten'!AZ34/'Indexen goederen & diensten'!AZ$33),NA()) -> 0.9906154518 | GY128: =IFERROR(IF('Indexen goederen & diensten'!BA34/'Indexen goederen & diensten'!BA$33=0,NA(),'Indexen goederen & diensten'!BA34/'Indexen goederen & diensten'!BA$33),NA()) -> 0.9768767123 | GZ128: =IFERROR(IF('Indexen goederen & diensten'!BB34/'Indexen goederen & diensten'!BB$33=0,NA(),'Indexen goederen & diensten'!BB34/'Indexen goederen & diensten'!BB$33),NA()) -> 1.016393443 | HA128: =IFERROR(IF('Indexen goederen & diensten'!BC34/'Indexen goederen & diensten'!BC$33=0,NA(),'Indexen goederen & diensten'!BC34/'Indexen goederen & diensten'!BC$33),NA()) -> 1.018233558 | HB128: =IFERROR(IF('Indexen goederen & diensten'!BD34/'Indexen goederen & diensten'!BD$33=0,NA(),'Indexen goederen & diensten'!BD34/'Indexen goederen & diensten'!BD$33),NA()) -> 1.019291875 | HC128: =IFERROR(IF('Indexen goederen & diensten'!BE34/'Indexen goederen & diensten'!BE$33=0,NA(),'Indexen goederen & diensten'!BE34/'Indexen goederen & diensten'!BE$33),NA()) -> 0.9934566787 | HD128: =IFERROR(IF('Indexen goederen & diensten'!BF34/'Indexen goederen & diensten'!BF$33=0,NA(),'Indexen goederen & diensten'!BF34/'Indexen goederen & diensten'!BF$33),NA()) -> 1 | HE128: =IFERROR(IF('Indexen goederen & diensten'!BG34/'Indexen goederen & diensten'!BG$33=0,NA(),'Indexen goederen & diensten'!BG34/'Indexen goederen & diensten'!BG$33),NA()) -> 1.011916708 | HF128: =IFERROR(IF('Indexen goederen & diensten'!BH34/'Indexen goederen & diensten'!BH$33=0,NA(),'Indexen goederen & diensten'!BH34/'Indexen goederen & diensten'!BH$33),NA()) -> 0.9918022288 | HG128: =IFERROR(IF('Indexen goederen & diensten'!BI34/'Indexen goederen & diensten'!BI$33=0,NA(),'Indexen goederen & diensten'!BI34/'Indexen goederen & diensten'!BI$33),NA()) -> 1.007956555 | HH128: =IFERROR(IF('Indexen goederen & diensten'!BJ34/'Indexen goederen & diensten'!BJ$33=0,NA(),'Indexen goederen & diensten'!BJ34/'Indexen goederen & diensten'!BJ$33),NA()) -> 0.993381397 | HI128: =IFERROR(IF('Indexen goederen & diensten'!BK34/'Indexen goederen & diensten'!BK$33=0,NA(),'Indexen goederen & diensten'!BK34/'Indexen goederen & diensten'!BK$33),NA()) -> 0.9926717924 | HJ128: =IFERROR(IF('Indexen goederen & diensten'!BL34/'Indexen goederen & diensten'!BL$33=0,NA(),'Indexen goederen & diensten'!BL34/'Indexen goederen & diensten'!BL$33),NA()) -> 0.982894561 | HK128: =IFERROR(IF('Indexen goederen & diensten'!BM34/'Indexen goederen & diensten'!BM$33=0,NA(),'Indexen goederen & diensten'!BM34/'Indexen goederen & diensten'!BM$33),NA()) -> 0.9990828092 | HL128: =IFERROR(IF('Indexen goederen & diensten'!BN34/'Indexen goederen & diensten'!BN$33=0,NA(),'Indexen goederen & diensten'!BN34/'Indexen goederen & diensten'!BN$33),NA()) -> 1 | HM128: =IFERROR(IF('Indexen goederen & diensten'!BO34/'Indexen goederen & diensten'!BO$33=0,NA(),'Indexen goederen & diensten'!BO34/'Indexen goederen & diensten'!BO$33),NA()) -> 1 | HN128: =IFERROR(IF('Indexen goederen & diensten'!BP34/'Indexen goederen & diensten'!BP$33=0,NA(),'Indexen goederen & diensten'!BP34/'Indexen goederen & diensten'!BP$33),NA()) -> 1.021165308 | HO128: =IFERROR(IF('Indexen goederen & diensten'!BQ34/'Indexen goederen & diensten'!BQ$33=0,NA(),'Indexen goederen & diensten'!BQ34/'Indexen goederen & diensten'!BQ$33),NA()) -> 1.00830225 | HP128: =IFERROR(IF('Indexen goederen & diensten'!BR34/'Indexen goederen & diensten'!BR$33=0,NA(),'Indexen goederen & diensten'!BR34/'Indexen goederen & diensten'!BR$33),NA()) -> 1.011229023 | HQ128: =IFERROR(IF('Indexen goederen & diensten'!BS34/'Indexen goederen & diensten'!BS$33=0,NA(),'Indexen goederen & diensten'!BS34/'Indexen goederen & diensten'!BS$33),NA()) -> 1.00134786 | HR128: =IFERROR(IF('Indexen goederen & diensten'!BT34/'Indexen goederen & diensten'!BT$33=0,NA(),'Indexen goederen & diensten'!BT34/'Indexen goederen & diensten'!BT$33),NA()) -> 1.008747045 | HS128: =IFERROR(IF('Indexen goederen & diensten'!BU34/'Indexen goederen & diensten'!BU$33=0,NA(),'Indexen goederen & diensten'!BU34/'Indexen goederen & diensten'!BU$33),NA()) -> 1.011112397 | HT128: =IFERROR(IF('Indexen goederen & diensten'!BV34/'Indexen goederen & diensten'!BV$33=0,NA(),'Indexen goederen & diensten'!BV34/'Indexen goederen & diensten'!BV$33),NA()) -> 1.025992202 | HU128: =IFERROR(IF('Indexen goederen & diensten'!BW34/'Indexen goederen & diensten'!BW$33=0,NA(),'Indexen goederen & diensten'!BW34/'Indexen goederen & diensten'!BW$33),NA()) -> 1 | HV128: =IFERROR(IF('Indexen goederen & diensten'!BX34/'Indexen goederen & diensten'!BX$33=0,NA(),'Indexen goederen & diensten'!BX34/'Indexen goederen & diensten'!BX$33),NA()) -> 1.025211934 | HW128: =IFERROR(IF('Indexen goederen & diensten'!BY34/'Indexen goederen & diensten'!BY$33=0,NA(),'Indexen goederen & diensten'!BY34/'Indexen goederen & diensten'!BY$33),NA()) -> 1.043463497 | HX128: =IFERROR(IF('Indexen goederen & diensten'!BZ34/'Indexen goederen & diensten'!BZ$33=0,NA(),'Indexen goederen & diensten'!BZ34/'Indexen goederen & diensten'!BZ$33),NA()) -> 1.020474591 | HY128: =IFERROR(IF('Indexen goederen & diensten'!CA34/'Indexen goederen & diensten'!CA$33=0,NA(),'Indexen goederen & diensten'!CA34/'Indexen goederen & diensten'!CA$33),NA()) -> 1.048813559 | HZ128: =IFERROR(IF('Indexen goederen & diensten'!CB34/'Indexen goederen & diensten'!CB$33=0,NA(),'Indexen goederen & diensten'!CB34/'Indexen goederen & diensten'!CB$33),NA()) -> 1 | IA128: =IFERROR(IF('Indexen goederen & diensten'!CC34/'Indexen goederen & diensten'!CC$33=0,NA(),'Indexen goederen & diensten'!CC34/'Indexen goederen & diensten'!CC$33),NA()) -> 1.002037752 | IB128: =IFERROR(IF('Indexen goederen & diensten'!CD34/'Indexen goederen & diensten'!CD$33=0,NA(),'Indexen goederen & diensten'!CD34/'Indexen goederen & diensten'!CD$33),NA()) -> 1.010361599 | IC128: =IFERROR(IF('Indexen goederen & diensten'!CE34/'Indexen goederen & diensten'!CE$33=0,NA(),'Indexen goederen & diensten'!CE34/'Indexen goederen & diensten'!CE$33),NA()) -> 1.001924187 | ID128: =IFERROR(IF('Indexen goederen & diensten'!CF34/'Indexen goederen & diensten'!CF$33=0,NA(),'Indexen goederen & diensten'!CF34/'Indexen goederen & diensten'!CF$33),NA()) -> 1.002280873 | IE128: =IFERROR(IF('Indexen goederen & diensten'!CG34/'Indexen goederen & diensten'!CG$33=0,NA(),'Indexen goederen & diensten'!CG34/'Indexen goederen & diensten'!CG$33),NA()) -> 1 | IF128: =IFERROR(IF('Indexen goederen & diensten'!CH34/'Indexen goederen & diensten'!CH$33=0,NA(),'Indexen goederen & diensten'!CH34/'Indexen goederen & diensten'!CH$33),NA()) -> 1.001088969 | IG128: =IFERROR(IF('Indexen goederen & diensten'!CI34/'Indexen goederen & diensten'!CI$33=0,NA(),'Indexen goederen & diensten'!CI34/'Indexen goederen & diensten'!CI$33),NA()) -> 1.003171771 | IH128: =IFERROR(IF('Indexen goederen & diensten'!CJ34/'Indexen goederen & diensten'!CJ$33=0,NA(),'Indexen goederen & diensten'!CJ34/'Indexen goederen & diensten'!CJ$33),NA()) -> 1.002651438 | II128: =IFERROR(IF('Indexen goederen & diensten'!CK34/'Indexen goederen & diensten'!CK$33=0,NA(),'Indexen goederen & diensten'!CK34/'Indexen goederen & diensten'!CK$33),NA()) -> 0.9920965656 | IJ128: =IFERROR(IF('Indexen goederen & diensten'!CL34/'Indexen goederen & diensten'!CL$33=0,NA(),'Indexen goederen & diensten'!CL34/'Indexen goederen & diensten'!CL$33),NA()) -> 0.9890032426 | IK128: =IFERROR(IF('Indexen goederen & diensten'!CM34/'Indexen goederen & diensten'!CM$33=0,NA(),'Indexen goederen & diensten'!CM34/'Indexen goederen & diensten'!CM$33),NA()) -> 1.002860821 | IL128: =IFERROR(IF('Indexen goederen & diensten'!CN34/'Indexen goederen & diensten'!CN$33=0,NA(),'Indexen goederen & diensten'!CN34/'Indexen goederen & diensten'!CN$33),NA()) -> 1.000924689 | IN128: =B128 -> 2018-02-01 | IO128: =IFERROR(IF(Standaardindexen!J29/Standaardindexen!J$28=0,NA(),Standaardindexen!J29/Standaardindexen!J$28),NA()) -> 1.000353994 | IP128: =IFERROR(IF(Standaardindexen!K29/Standaardindexen!K$28=0,NA(),Standaardindexen!K29/Standaardindexen!K$28),NA()) -> 1.00031295 | IQ128: =IFERROR(IF(Standaardindexen!L29/Standaardindexen!L$28=0,NA(),Standaardindexen!L29/Standaardindexen!L$28),NA()) -> 1.000344299 | IR128: =IFERROR(IF(Standaardindexen!M29/Standaardindexen!M$28=0,NA(),Standaardindexen!M29/Standaardindexen!M$28),NA()) -> 1.000354359 | IS128: =IFERROR(IF(Standaardindexen!N29/Standaardindexen!N$28=0,NA(),Standaardindexen!N29/Standaardindexen!N$28),NA()) -> 1.000313264 | IT128: =IFERROR(IF(Standaardindexen!O29/Standaardindexen!O$28=0,NA(),Standaardindexen!O29/Standaardindexen!O$28),NA()) -> 1.000344644 | IU128: =IFERROR(IF(Standaardindexen!P29/Standaardindexen!P$28=0,NA(),Standaardindexen!P29/Standaardindexen!P$28),NA()) -> 1.000361973 | IV128: =IFERROR(IF(Standaardindexen!Q29/Standaardindexen!Q$28=0,NA(),Standaardindexen!Q29/Standaardindexen!Q$28),NA()) -> 1.000319806 | IW128: =IFERROR(IF(Standaardindexen!R29/Standaardindexen!R$28=0,NA(),Standaardindexen!R29/Standaardindexen!R$28),NA()) -> 1.000351842 | IX128: =IFERROR(IF(Standaardindexen!S29/Standaardindexen!S$28=0,NA(),Standaardindexen!S29/Standaardindexen!S$28),NA()) -> 1.000367955 | IY128: =IFERROR(IF(Standaardindexen!T29/Standaardindexen!T$28=0,NA(),Standaardindexen!T29/Standaardindexen!T$28),NA()) -> 1.000357433 | IZ128: =IFERROR(IF(Standaardindexen!U29/Standaardindexen!U$28=0,NA(),Standaardindexen!U29/Standaardindexen!U$28),NA()) -> 1.000357491 | JA128: =IFERROR(IF(Standaardindexen!V29/Standaardindexen!V$28=0,NA(),Standaardindexen!V29/Standaardindexen!V$28),NA()) -> 1.000795355 | JB128: =IFERROR(IF(Standaardindexen!W29/Standaardindexen!W$28=0,NA(),Standaardindexen!W29/Standaardindexen!W$28),NA()) -> 1.000747737 | JC128: =IFERROR(IF(Standaardindexen!X29/Standaardindexen!X$28=0,NA(),Standaardindexen!X29/Standaardindexen!X$28),NA()) -> 0.9960738123 | JD128: =IFERROR(IF(Standaardindexen!Y29/Standaardindexen!Y$28=0,NA(),Standaardindexen!Y29/Standaardindexen!Y$28),NA()) -> 0.9968739717 | JE128: =IFERROR(IF(Standaardindexen!Z29/Standaardindexen!Z$28=0,NA(),Standaardindexen!Z29/Standaardindexen!Z$28),NA()) -> 0.995246718 | JF128: =IFERROR(IF(Standaardindexen!AA29/Standaardindexen!AA$28=0,NA(),Standaardindexen!AA29/Standaardindexen!AA$28),NA()) -> 0.9961118311 | JG128: =IFERROR(IF(Standaardindexen!AB29/Standaardindexen!AB$28=0,NA(),Standaardindexen!AB29/Standaardindexen!AB$28),NA()) -> 0.9951576345 | JH128: =IFERROR(IF(Standaardindexen!AC29/Standaardindexen!AC$28=0,NA(),Standaardindexen!AC29/Standaardindexen!AC$28),NA()) -> 0.9935228745 | JI128: =IFERROR(IF('Indexeringen Lonen per PC'!BZ33/'Indexeringen Lonen per PC'!BZ$32=0,NA(),'Indexeringen Lonen per PC'!BZ33/'Indexeringen Lonen per PC'!BZ$32),NA()) -> 1 | JJ128: =IFERROR(IF('Indexeringen Lonen per PC'!CA33/'Indexeringen Lonen per PC'!CA$32=0,NA(),'Indexeringen Lonen per PC'!CA33/'Indexeringen Lonen per PC'!CA$32),NA()) -> 1 | JK128: =IFERROR(IF('Indexeringen Lonen per PC'!CB33/'Indexeringen Lonen per PC'!CB$32=0,NA(),'Indexeringen Lonen per PC'!CB33/'Indexeringen Lonen per PC'!CB$32),NA()) -> 1 | JL128: =IFERROR(IF('Indexeringen Lonen per PC'!CC33/'Indexeringen Lonen per PC'!CC$32=0,NA(),'Indexeringen Lonen per PC'!CC33/'Indexeringen Lonen per PC'!CC$32),NA()) -> 1 | JM128: =IFERROR(IF('Indexeringen Lonen per PC'!CD33/'Indexeringen Lonen per PC'!CD$32=0,NA(),'Indexeringen Lonen per PC'!CD33/'Indexeringen Lonen per PC'!CD$32),NA()) -> 1 | JN128: =IFERROR(IF('Indexeringen Lonen per PC'!CE33/'Indexeringen Lonen per PC'!CE$32=0,NA(),'Indexeringen Lonen per PC'!CE33/'Indexeringen Lonen per PC'!CE$32),NA()) -> 1 | JO128: =IFERROR(IF('Indexeringen Lonen per PC'!CF33/'Indexeringen Lonen per PC'!CF$32=0,NA(),'Indexeringen Lonen per PC'!CF33/'Indexeringen Lonen per PC'!CF$32),NA()) -> 1 | JP128: =IFERROR(IF('Indexeringen Lonen per PC'!CG33/'Indexeringen Lonen per PC'!CG$32=0,NA(),'Indexeringen Lonen per PC'!CG33/'Indexeringen Lonen per PC'!CG$32),NA()) -> 1 | JQ128: =IFERROR(IF('Indexeringen Lonen per PC'!CH33/'Indexeringen Lonen per PC'!CH$32=0,NA(),'Indexeringen Lonen per PC'!CH33/'Indexeringen Lonen per PC'!CH$32),NA()) -> 1 | JR128: =IFERROR(IF('Indexeringen Lonen per PC'!CI33/'Indexeringen Lonen per PC'!CI$32=0,NA(),'Indexeringen Lonen per PC'!CI33/'Indexeringen Lonen per PC'!CI$32),NA()) -> 1
